Workbook

Sheet Инструкция
B1: Шаблон расчета. Версия 2022-11-10
B3: Краткая инструкция

Sheet Структура
B1: Структура файла
B3: № пп | C3: Вид расчета | D3: Используемые листы
B4: 0 | C4: Краткая инструкция к шаблону расчета | D4: Инструкция
B5: 1 | C5: Описание содержания листов расчетного файла, включающих расчет цены "альтернативной котельной" и иные расчеты, необходимые для отнесения поселения, городского округа к ценовой зоне теплоснабжения | D5: Структура
B6: 2 | C6: Расчет цены "альтернативной котельной" на 2 полугодие первого расчетного периода регулирования (предельного уровня цены на тепловую энергию (мощность) в соответствии с Разделом II Постановления № 1562) | D6: Содержание
D7: Листы И1 - И3, C1 - С6
D8: Проверка
B9: 3 | C9: Цена "альтернативной котельной" на 2 полугодие первого расчетного периода регулирования и прогноз цены "альтернативной котельной" | D9: АК_прогноз
B10: 4 | C10: Расчеты, необходимые для отнесения поселения, городского округа к ценовой зоне теплоснабжения, в случае если цена "альтернативной котельной" выше тарифов на тепловую энергию на предполагаемый первый год функционирования ценовой зоны теплоснабжения | D10: Гр&ПУЦ_v1
B11: 5 | C11: Расчеты, необходимые для отнесения поселения, городского округа к ценовой зоне теплоснабжения, в случае если цена "альтернативной котельной" ниже тарифов на тепловую энергию на предполагаемый первый год функционирования ценовой зоны теплоснабжения | D11: Заморозка
B12: 6 | C12: Оценка возможного изменения предельного (максимального) индекса изменения размера вносимой гражданами платы за коммунальные услуги в поселении, городском округе в случае его отнесения к ценовой зоне теплоснабжения | D12: ИПГ_мо
B13: 7 | C13: Расчет предполагаемого размера превышения установленного индекса изменения размера вносимой гражданами платы за коммунальные услуги в среднем по субъекту Российской Федерации более чем на величину отклонения по субъекту Российской Федерации в случае отнесения поселения, городского округа к ценовой зоне теплоснабжения | D13: ИПГ_рег
B14: 8 | C14: Оценка отклонений расчетных темпов роста от индексов изменения размера вносимой гражданами платы за коммунальные услуги в среднем по субъекту Российской Федерации и установленного отклонения по субъекту Российской Федерации, предельных (максимальных) индексов изменения размера вносимой гражданами платы за коммунальные услуги по муниципальным образованиям, на территории которых находятся рассматриваемые системы теплоснабжения | D14: Темп VS ИПГ
B15: 9 | C15: Таблица "Основные ценовые параметры внедрения целевой модели рынка тепловой энергии" (Таблица 1 Приложения № 6 МУ-770) | D15: МУ770_Т1
B16: 10 | C16: Вспомогательный лист с индексами инфляции и индексом совокупного платежа граждан за коммунальные услуги | D16: ИПЦ_ИПГ

Sheet Содержание
B3: № | C3: Название формы | D3: Выбор листа
B4: И1 | C4: Информация о системе теплоснабжения | D4: Перейти на лист И1
B5: И2, И2.1 | C5: Технико-экономические параметры работы котельных и тепловых сетей, используемые для расчета предельного уровня цены на тепловую энергию (мощность) | D5: Перейти на лист И2
B6: С1 | C6: Расчет составляющей предельного уровня цены на тепловую энергию (мощность), обеспечивающей компенсацию расходов на топливо при производстве тепловой энергии котельной | D6: Перейти на лист С1
B7: С1.1 | C7: Исходные данные для расчета составляющей предельного уровня цены на тепловую энергию (мощность), обеспечивающей компенсацию расходов на топливо при производстве тепловой энергии котельной | D7: Перейти на лист С1.1
B8: С1.2 | C8: Информация с официального сайта единой информационной системы в сфере закупок, региональных и муниципальных информационных систем в сфере закупок по завершенным закупкам, в результате которых заключены договоры на поставку топлива покупателю по ценам на топливо, включающим затраты на его доставку (форма таблицы для сбора исходных данных) | D8: Перейти на лист С1.2
B9: С1.3 | C9: Информация о рыночных ценах на топливо, включающих затраты на его доставку, сложившихся на организованных торговых площадках, в том числе на биржах, функционирующих на территории Российской Федерации (форма таблицы для сбора исходных данных) | D9: Перейти на лист С1.3
B10: С2 | C10: Расчет составляющей предельного уровня цены на тепловую энергию (мощность), обеспечивающей возврат капитальных затрат на строительство котельной и тепловых сетей | D10: Перейти на лист С2
B11: С2.1 | C11: Исходные данные для расчета составляющей предельного уровня цены на тепловую энергию (мощность), обеспечивающей возврат капитальных затрат на строительство котельной и тепловых сетей | D11: Перейти на лист С2.1
B12: С2.2 | C12: Расчет базовой величины капитальных затрат на строительство тепловых сетей в базовом (2019) году | D12: Перейти на лист С2.2
B13: С2.3 | C13: Расчет затрат на подключение (технологическое присоединение) котельной к централизованной системе водоснабжения и водоотведения в базовом (2019) году | D13: Перейти на лист С2.3
B14: С2.4 | C14: Информация об удельной базовой стоимости земельного участка для размещения котельной | D14: Перейти на лист С2.4
B15: С2.5 | C15: Расчет прогнозного индекса цен производителей промышленной продукции в i-м расчетном периоде регулирования | D15: Перейти на лист С2.5
B16: С2.6 | C16: Расчет средневзвешенной по дням 9 месяцев (i-1)-го расчетного периода регулирования ключевой ставки Центрального банка Российской Федерации | D16: Перейти на лист С2.6
B17: С3 | C17: Расчет составляющей предельного уровня цены на тепловую энергию (мощность), обеспечивающей компенсацию расходов на уплату налогов | D17: Перейти на лист С3
B18: С3.1 | C18: Исходные данные для расчета составляющей предельного уровня цены на тепловую энергию (мощность), обеспечивающей компенсацию расходов на уплату налогов | D18: Перейти на лист С3.1
B19: С4 | C19: Расчет составляющей предельного уровня цены на тепловую энергию (мощность), обеспечивающей компенсацию прочих расходов при производстве тепловой энергии котельной | D19: Перейти на лист С4
B20: С4.1 | C20: Исходные данные для расчета составляющей предельного уровня цены на тепловую энергию (мощность), обеспечивающей компенсацию прочих расходов при производстве тепловой энергии котельной | D20: Перейти на лист С4.1
B21: С4.2 | C21: Информация о цене (тарифе) на электрическую энергию (мощность), поставляемую покупателям на розничном рынке, функционирующем в поселении, городском округе, на территории которого находится система теплоснабжения, в базовом (2019) году | D21: Перейти на лист С4.2
B22: С4.3 | C22: Расчет расходов на водоподготовку и водоотведение котельной в базовом (2019) году | D22: Перейти на лист С4.3
B23: С4.4 | C23: Расчет расходов на оплату труда персонала котельной с использованием угля в базовом (2019) году | D23: Перейти на лист С4.4
B24: С5 | C24: Расчет составляющей предельного уровня цены на тепловую энергию (мощность), обеспечивающей создание резерва по сомнительным долгам | D24: Перейти на лист С5
B25: С6 | C25: Расчет составляющей предельного уровня цены на тепловую энергию (мощность), обеспечивающей учет отклонений фактических показателей от прогнозных показателей, используемых при расчете предельного уровня цены на тепловую энергию (мощность) | D25: Перейти на лист С6
B26: И3 | C26: Предельный уровень цены на тепловую энергию (мощность), рассчитанный в соответствии с частью 1 статьи 23.6 Федерального закона от 27.07.2010 № 190-ФЗ "О теплоснабжении" и Постановлением № 1562, а также сведения о параметрах, использованных при расчете (далее - лист "Итог") | D26: Перейти на лист И3
B27: Проверка | C27: Проверка корректности и полноты заполнения шаблона | D27: Перейти на лист "Проверка"

Sheet И1
C4: вернуться на лист "Содержание" | K4: да | L4: впервые после отнесения муниципального образования к ценовой зоне теплоснабжения
E5: Форма И1 | K5: нет | L5: на второй и последующие годы функционирования ценовой зоны теплоснабжения после окончания переходного периода
D6: Информация о системе теплоснабжения
K7: 2022-11-03
D8: =CONCATENATE("Период регулирования ",IF(AND(E19="да",OR(E23="нет",Инвест.об.!E12="нет"),E8<>2023),"(j)-й","(i)-й")) -> Период регулирования (i)-й | E8: 2024 | G8: (см.примечание №1) | K8: =IF(E20="","",IF(E20>=K7,"после","до")) -> 
D9: =CONCATENATE("Период регулирования ",IF(AND(E19="да",OR(E23="нет",Инвест.об.!E12="нет"),E8<>2023),"(j-1)-й","(i-1)-й")) -> Период регулирования (i-1)-й | E9: =E8-1 -> 2023
D10: =CONCATENATE("Период регулирования ",IF(AND(E19="да",OR(E23="нет",Инвест.об.!E12="нет"),E8<>2023),"(j-2)-й","(i-2)-й")) -> Период регулирования (i-2)-й | E10: =E8-2 -> 2022
D11: Базовый год (б) | E11: 2019 | G11: (см.примечание №1)
D13: Субъект Российской Федерации | E13: Ненецкий автономный округ
D14: Тип муниципального образования (выберите из списка) | E14: Заполярный район | G14: (см.примечание №2)
D15: =IF(D14="Муниципальный район", "Поселение", IF(D14="Муниципальный округ","Населенный пункт","")) -> 
D16: Код ОКТМО | E16: Нижняя Пеша; Верхняя Пеша; Волоковая | G16: (см.примечание №3)
D17: Система теплоснабжения | G17: (см.примечание №4)
D18: Вид топлива, использование которого преобладает в системе теплоснабжения | E18: Уголь
D19: Муниципальное образование, на территории которого находится система теплоснабжения, отнесено к ценовой зоне теплоснабжения? (выберите из списка) | E19: нет
D20: Дата отнесения муниципального образования к ценовой зоне теплоснабжения | G20: (см.примечание №5)
D21: Утвержден ли предельный уровень цены на тепловую энергию (мощность) для системы теплоснабжения на 2 полугодие 2022 года? (выберите из списка)
D22: Расчет предельного уровня цены осуществляется (выберите из списка)
D23: Имеется ли отклонение на j-й расчетный период регулирования: - прогнозного индекса роста цены на топливо более чем на 10%, и (или) - прогнозного индекса цен производителей промышленной продукции более чем на 5%, и (или) - средневзвешенной по дням 9 месяцев предшествующего планируемому расчетному периоду регулирования ключевой ставки Центрального банка Российской Федерации более чем на 5% , от аналогичных показателей на i-й расчетный период регулирования, в котором предельный уровень цены был определен в соответствии с пунктом 10 Правил? (выберите из списка)
C25: Примечание:
C26: 1 | D26: Период регулирования определяется в соответствии с пунктом 94 Правил. Базовый год определяется в соответствии с Постановлением №1562.
C27: 2 3 | D27: В случае, если соответствующая система теплоснабжения находится в границах муниципального округа, территория которого полностью отнесена к ценовой зоне теплоснабжения, в целях расчета предельного уровня цены на тепловую энергию (мощность) используются правила расчета, предусмотренные для городского округа. Строка "Населенный пункт" в таком случае не заполняется. В случае, если соответствующая система теплоснабжения находится в границах муниципального округа, территория которого не отнесена полностью к ценовой зоне теплоснабжения, в строке "Населенный пункт" требуется указать наименование населенного пункта, отнесенного к ценовой зоне теплоснабжения. В целях расчета предельного уровня цены на тепловую энергию (мощность) используется данные, установленные для указанного населенного пункта, а при их отсутствии данные по муниципальному округу. Код территории, в границах которой находится система теплоснабжения, в отношении которой осуществляется расчет, в соответствии с ОКТМО.
C28: 4 | D28: Наименование системы теплоснабжения, в отношении которой выполняется расчет, определяемое в соответствии с утвержденной схемой теплоснабжения поселения, городского округа.
C29: 5 | D29: Дата отнесения муниципального образования к ценовой зоне теплоснабжения вводится в виде даты в формате ДД.ММ.ГГГГ

Sheet Инвест.об. (hidden)
K4: да
C5: Информация о наличии условий, при которых не применяются изменения, утвержденные постановлением Правительства Российской Федерации от 03.11.2022 № 1985 "О внесении изменений в постановление Правительства Российской Федерации от 15 декабря 2017 г. № 1562" | K5: нет
C7: № пп | D7: Наименование | E7: Значение | F7: Источник информации
C8: 1 | D8: 2 | E8: 3 | F8: 4
C9: 1 | D9: В опубликованной ЕТО отчетной информации о выполнении соглашения об исполнении схемы теплоснабжения за весь период (годы) функционирования ценовой зоны до 31.12.2021 года указано о неполном исполнении обязательств ЕТО по выполнению за весь период (годы) функционирования ценовой зоны теплоснабжения до 31.12.2021 года мероприятий по строительству, реконструкции и (или) модернизации объектов теплоснабжения, необходимых для развития, повышения надежности и энергетической эффективности системы теплоснабжения, определенных для нее в схеме теплоснабжения (далее - мероприятий) (подпункт "а" пункта 66 Правил)? (выберите из списка)
C10: 2 | D10: В отношении ЕТО в 2021-2022 годах имеются: -вступившие в законную силу два и более решения суда о применении мер ответственности за неисполнение или ненадлежащее исполнение обязательств по выполнению предусмотренных соглашением об исполнении схемы теплоснабжения мероприятий; -и (или) вступившие в законную силу два и более постановления по делу об административном правонарушении о назначении наказания за невыполнение ЕТО в установленный срок законного предписания (постановления, представления, решения) органа, осуществляющего муниципальный контроль за выполнением ЕТО в системе теплоснабжения мероприятий (подпункт "б" пункта 66 Правил)? (выберите из списка)
C11: 3 | D11: В каком году условия пункта 67 раздела V Правил были выполнены? | H11: (см.примечание №1)
C12: =IF(AND(E11="",E12=""),3,4) -> 3 | D12: Имеется ли отклонение на j-й расчетный период регулирования: - прогнозного индекса роста цены на топливо более чем на 10%, и (или) - прогнозного индекса цен производителей промышленной продукции более чем на 5%, и (или) - средневзвешенной по дням 9 месяцев предшествующего планируемому расчетному периоду регулирования ключевой ставки Центрального банка Российской Федерации более чем на 5% , от аналогичных показателей на i-й расчетный период регулирования, в котором предельный уровень цены был определен в соответствии с пунктом 10 Правил? (выберите из списка)
B14: Примечание:
B15: 1 | C15: В стр.3 укажите год в формате ДДДД В случае, если условия пункта 67 раздела V Правил на момент заполнения стр.3 не были выполнены, оставьте поле пустым.

Sheet И2
A1: Вернуться на лист "Содержание"
F2: Форма И2
A3: Технико-экономические параметры работы котельных и тепловых сетей, используемые для расчета предельного уровня цены на тепловую энергию (мощность)
A4: утверждены Постановлением № 1562
A5: I. Технико-экономические параметры работы котельных
B6: Наименование параметра | C6: Единица измерения | D6: Тип котельной по виду используемого топлива
D7: уголь
A8: 1. | B8: Установленная тепловая мощность | C8: Гкал/ч | D8: 7
A9: 2. | B9: Площадь земельного участка под строительство | C9: кв. м | D9: 4200
A10: 3. | B10: Общая жилая площадь жилого квартала, на территории которого находится котельная | C10: кв. м | D10: 184-250
A11: 4. | B11: Средняя этажность жилой застройки | C11: этажей | D11: 5
A12: 5 | B12: Тип оборудования по видам используемого топлива | C12: - | D12: блочно-модульная котельная
A13: 6. | B13: Коэффициент готовности, учитывающий продолжительность годовой работы оборудования котельной | C13: - | D13: 0.97
A14: 7. | B14: Удельный расход топлива при производстве тепловой энергии котельной | C14: кг у.т./Гкал | D14: 176.4
A15: 8. | B15: Низшая теплота сгорания мазута, дифференциация технико-экономических параметров работы котельных и тепловых сетей по которому применяется для целей расчета предельного уровня цены на тепловую энергию (мощность) в случае, если в структуре топливного баланса системы теплоснабжения отсутствуют виды топлива: природный газ, уголь и мазут | C15: ккал/кг | D15: -
A16: 9. | B16: Диапазон объема потребления газа при производстве тепловой энергии котельной | C16: млн куб. м/год | D16: -
A17: 10. | B17: Ценовая категория потребителя розничного рынка электрической энергии | C17: - | D17: первая ценовая категория (для технологически изолированных территориальных электроэнергетических систем и территорий, технологически не связанных с Единой энергетической системой России и технологически изолированными территориальными электроэнергетическими системами - категория, для которой применяется одноставочная цена (тариф) на электрическую энергию без дифференциации по зонам суток )
A18: 11. | B18: Расход воды на водоподготовку | C18: куб. м/год | D18: 1871
A19: 12. | B19: Расход воды на собственные нужды котельной | C19: куб. м/год | D19: 1636
A20: 13. | B20: Объем водоотведения | C20: куб. м/год | D20: 204
A21: 14. | B21: Базовая величина капитальных затрат на строительство котельной | C21: тыс. рублей | D21: 113455
A22: 15. | B22: Базовая величина капитальных затрат на основные средства котельной | C22: тыс. рублей | D22: 73547
A23: 16. | B23: Коэффициент расходов на техническое обслуживание и ремонт основных средств котельной | C23: - | D23: 0.02
A26: II. Технико-экономические параметры работы тепловых сетей
A27: Наименование параметра | C27: Единица измерения | D27: Значение
A28: 1. | B28: Температурный график | C28: °C | D28: 110/70
A29: 2. | B29: Теплоноситель | C29: - | D29: горячая вода
A30: 3. | B30: Расчетное давление в сети | C30: МПа (кгс/кв. см) | D30: 0,6 (6,0)
A31: 4. | B31: Тип схемы тепловых сетей для территорий, не относящихся к территориям распространения вечномерзлых грунтов | C31: - | D31: двухтрубная, независимая закрытая, строительство индивидуальных тепловых пунктов не включается
A32: 5 | B32: Тип схемы тепловых сетей для территорий, относящихся к территориям распространения вечномерзлых грунтов | C32: - | D32: четырехтрубная, независимая закрытая, строительство индивидуальных тепловых пунктов не включается
A33: 6. | B33: Способ прокладки тепловой сети для территорий, не относящихся к территориям распространения вечномерзлых грунтов | C33: - | D33: подземный бесканальный
A34: 7. | B34: Тип изоляции для территорий, не относящихся к территориям распространения вечномерзлых грунтов | C34: - | D34: пенополиуретан в полиэтиленовой оболочке
A35: 8. | B35: Способ прокладки тепловой сети для территорий, относящихся к территориям распространения вечномерзлых грунтов | C35: - | D35: наземная прокладка на опорах
A36: 9. | B36: Тип изоляции для территорий, относящихся к территориям распространения вечномерзлых грунтов | C36: - | D36: пенополиуретан в оцинкованной оболочке
A37: 10. | B37: Параметры тепловой сети | C37: - | D37: определяются в соответствии с таблицей 1 "Параметры тепловой сети"
A38: 11. | B38: Базовая величина капитальных затрат на основные средства тепловых сетей | C38: тыс.рублей | D38: определяется в соответствии с таблицей 2 "Базовая величина капитальных затрат на основные средства тепловых сетей в базовом году и сметная стоимость строительно-монтажных и пусконаладочных работ по объекту строительства "Внешние инженерные сети теплоснабжения", учитывающая прямые затраты, накладные расходы и сметную прибыль, в ценах 2001 года"
A39: 12. | B39: Сметная стоимость строительно-монтажных и пусконаладочных работ по объекту строительства «Внешние инженерные сети теплоснабжения», учитывающая прямые затраты, накладные расходы и сметную прибыль, в ценах 2001 года | C39: тыс.рублей | D39: определяется в соответствии с таблицей 2 "Базовая величина капитальных затрат на основные средства тепловых сетей в базовом году и сметная стоимость строительно-монтажных и пусконаладочных работ по объекту строительства "Внешние инженерные сети теплоснабжения", учитывающая прямые затраты, накладные расходы и сметную прибыль, в ценах 2001 года"
A40: 13. | B40: Индекс изменения сметной стоимости строительно-монтажных и пусконаладочных работ по объекту строительства «Внешние инженерные сети теплоснабжения» в базовом году | C40: - | D40: в соответствии с таблицей 3 "Индекс изменения сметной стоимости строительно-монтажных и пусконаладочных работ по объекту строительства "Внешние инженерные сети теплоснабжения" на базовый год"
A41: 14. | B41: Коэффициент расходов на техническое обслуживание и ремонт основных средств тепловых сетей | C41: - | D41: 0.015
A43: Перейти к таблице 1 "Параметры тепловой сети"
A44: Перейти к таблице 2 "Базовая величина капитальных затрат на основные средства тепловых сетей в базовом году и сметная стоимость строительно-монтажных и пусконаладочных работ по объекту строительства "Внешние инженерные сети теплоснабжения", учитывающая прямые затраты, накладные расходы и сметную прибыль, в ценах 2001 года"
A45: Перейти к таблице 3 "Индекс изменения сметной стоимости строительно-монтажных и пусконаладочных работ по объекту строительства "Внешние инженерные сети теплоснабжения" на базовый год"
B47: II.1. Коэффициент учета потерь тепловой энергии в тепловых сетях в зависимости от типа этажности и вида используемого топлива
B48: II.2. Коэффициент учета стоимости транспортных услуг, оказываемых на подъездных железнодорожных путях организациями промышленного железнодорожного транспорта и другими хозяйствующими субъектами независимо от организационно-правовой формы, за исключением организаций федерального железнодорожного транспорта
A50: III. Параметры технологического присоединения (подключения) энергопринимающих устройств котельной к электрическим сетям
A52: Наименование параметра | C52: Единица измерения | D52: Тип котельной по виду используемого топлива
D53: уголь
A54: 1. | B54: Общая максимальная мощность энергопринимающих устройств котельной | C54: кВт | D54: 180
A55: 2. | B55: Уровень напряжения электрической сети | C55: кВ | D55: 10 (6)
A56: 3. | B56: Категория надежности электроснабжения | C56: - | D56: первая
A57: 4. | B57: Подготовка и выдача сетевой организацией технических условий заявителю (котельной) | C57: - | D57: осуществляется
A58: 5. | B58: Разработка сетевой организацией проектной документации по строительству "последней мили" | C58: - | D58: осуществляется
A59: 6. | B59: Выполнение сетевой организацией мероприятий, связанных со строительством "последней мили" | C59: - | D59: выполняются
A60: а) | B60: строительство воздушных линий | C60: - | D60: не осуществляется
A61: б) | B61: строительство кабельных линий: | C61: - | D61: осуществляется
B62: протяженность линий | C62: км | D62: 0.6
D63: (2 линии в траншее по 0,3 км каждая)
B64: сечение жилы | C64: кв. мм | D64: 25
B65: материал жилы | C65: - | D65: алюминий
B66: количество жил в линии | C66: штук | D66: 3
B67: способ прокладки | C67: - | D67: в траншее
B68: вид изоляции кабеля | C68: - | D68: кабели с изоляцией из поливинилхлоридного пластиката или сшитого полиэтилена, с наружной оболочкой или защитным шлангом из поливинилхлоридного пластиката или кабели с изоляцией из сшитого полиэтилена с защитным шлангом из полиэтилена (общепромышленное исполнение) или с металлической, свинцовой и другой оболочкой
A69: в) | B69: строительство пунктов секционирования | D69: осуществляется
A70: г) | B70: количество пунктов секционирования | C70: штук | D70: 2
A71: д) | B71: строительство комплектных трансформаторных подстанций по уровням напряжения | D71: не осуществляется
A72: е) | B72: строительство распределительных трансформаторных подстанций по уровням напряжения | D72: не осуществляется
A73: ж) | B73: строительство распределительных пунктов по уровням напряжения | D73: не осуществляется
A74: з) | B74: строительство центров питания, подстанций по уровням напряжения | D74: не осуществляется
A75: 7. | B75: Проверка сетевой организацией выполнения заявителем (котельной) технических условий | D75: осуществляется
A76: 8. | B76: Участие сетевой организации в осмотре должностным лицом органа федерального государственного энергетического надзора присоединяемых устройств заявителя (котельной) | D76: осуществляется
A77: 9. | B77: Фактические действия по присоединению и обеспечению работы устройств в электрической сети | D77: осуществляются
A78: 10. | B78: Базовая величина затрат на подключение (технологическое присоединение) к электрическим сетям:
B79: Дальневосточный федеральный округ | C79: тыс. рублей | D79: 3447
B80: Приволжский федеральный округ | C80: тыс. рублей | D80: 6121
B81: Северо-Западный федеральный округ | C81: тыс. рублей | D81: 3132
B82: Северо-Кавказский федеральный округ | C82: тыс. рублей | D82: 2166
B83: Сибирский федеральный округ | C83: тыс. рублей | D83: 1990
B84: Уральский федеральный округ | C84: тыс. рублей | D84: 2571
B85: Центральный федеральный округ | C85: тыс. рублей | D85: 3758
B86: Южный федеральный округ | C86: тыс. рублей | D86: 3612
A89: IV. Параметры подключения (технологического присоединения) котельной к централизованной системе водоснабжения и водоотведения
A91: Наименование параметра | C91: Единица измерения | D91: Тип котельной по виду используемого топлива уголь
A92: 1. | B92: Объем бака аварийного запаса воды | C92: куб. м | D92: 90
A93: 2. | B93: Размер поперечного сечения трубопровода сетей централизованного водоснабжения и водоотведения | C93: кв. см | D93: до 300
A94: 3. | B94: Величина подключаемой (технологически присоединяемой) нагрузки | C94: куб. м/ч | D94: до 10
A95: 4. | B95: Диаметр трубопровода сетей централизованного водоснабжения | C95: мм | D95: 25
A96: 5. | B96: Диаметр трубопровода сетей водоотведения | C96: мм | D96: 100
A97: 6. | B97: Условия прокладки сетей централизованного водоснабжения и водоотведения:
B98: а) тип прокладки сетей централизованного водоснабжения и водоотведения | C98: - | D98: подземная
B99: б) материал трубопровода сетей централизованного водоснабжения (водоотведения) | C99: - | D99: полиэтилен, или сталь, или чугун, или иной материал
B100: в) глубина залегания | C100: - | D100: ниже глубины промерзания
B101: г) стесненность условий при прокладке сетей централизованного водоснабжения и водоотведения | C101: - | D101: городская застройка, новое строительство
B102: д) тип грунта | C102: - | D102: по местным условиям
A103: 7. | B103: Величина подключаемой (технологически присоединяемой) нагрузки к централизованной системе водоснабжения | C103: куб. м/сутки | D103: 9.89
A104: 8. | B104: Величина подключаемой (технологически присоединяемой) нагрузки к централизованной системе водоотведения | C104: куб. м/ сутки | D104: 0.56
A105: 9. | B105: Протяженность сетей от котельной до места подключения к централизованной системе водоснабжения и водоотведения | C105: М | D105: 300
A106: 10. | B106: Базовая ставка тарифа за подключаемую (технологически присоединяемую) нагрузку водопроводной сети | C106: рублей/ куб. м/сутки | D106: 61211
A107: 11. | B107: Базовая ставка тарифа за расстояние от точки подключения (технологического присоединения) котельной до точки подключения водопроводных сетей к централизованной системе водоснабжения | C107: рублей/м | D107: 45675
A108: 12. | B108: Базовая ставка тарифа за подключаемую (технологически присоединяемую) нагрузку канализационной сети | C108: рублей/куб. м/сутки | D108: 65637
A109: 13. | B109: Базовая ставка тарифа за расстояние от точки подключения (технологического присоединения) котельной до точки подключения канализационных сетей к централизованной системе водоотведения | C109: рублей/м | D109: 31684
A112: V. Параметры подключения (технологического присоединения) котельной к газораспределительным сетям
A114: Наименование параметра | C114: Единица измерения | D114: Для котельной с видом используемого топлива - природный газ
A115: 1. | B115: Тип газопровода | C115: - | D115: оцинкованный, однотрубный
A116: 2. | B116: Тип прокладки газопровода (подземная или надземная (наземная) | C116: - | D116: наземная
A117: 3. | B117: Диаметр газопровода | C117: мм | D117: 100
A118: 4. | B118: Масса газопровода | C118: т/м | D118: 0.0125
A119: 5. | B119: Протяженность газопровода | C119: м | D119: 1000
A120: 6. | B120: Максимальный часовой расход газа | C120: куб. м/ч | D120: 1065
A121: 7. | B121: Газорегуляторные пункты шкафные | C121: Штук | D121: 1
A122: 8. | B122: Тип газорегуляторного пункта | C122: - | D122: 2 нитки редуцирования
A123: 9. | B123: Пункт учета расхода газа | C123: Штук | D123: 1
A124: 10. | B124: Базовая величина затрат на технологическое присоединение к газораспределительным сетям | C124: тыс. рублей | D124: 2892
A127: VI. Коэффициент использования установленной тепловой мощности в зависимости от типа этажности и вида используемого топлива
A128: Поселение, городской округ | C128: Температурная зона | D128: Коэффициент использования установленной тепловой мощности котельной в зависимости от типа этажности и вида используемого топлива
D129: 5-этажная жилая застройка уголь
A130: 1. | B130: Якутск | C130: VII | D130: 0.388
A131: 2. | B131: Белогорск | C131: VI | D131: 0.382
A132: 3. | B132: Благовещенск | C132: VI | D132: 0.38
A133: 4. | B133: Магадан | C133: VI | D133: 0.456
A134: 5. | B134: Улан-Удэ | C134: V | D134: 0.39
A135: 6. | B135: Братск | C135: V | D135: 0.353
A136: 7. | B136: Иркутск | C136: V | D136: 0.383
A137: 8. | B137: Кемерово | C137: V | D137: 0.346
A138: 9. | B138: Киселевск | C138: V | D138: 0.34
A139: 10. | B139: Воркута | C139: V | D139: 0.415
A140: 11. | B140: Ачинск | C140: V | D140: 0.359
A141: 12. | B141: Канск | C141: V | D141: 0.347
A142: 13. | B142: Красноярск | C142: V | D142: 0.352
A143: 14. | B143: Минусинск | C143: V | D143: 0.333
A144: 15. | B144: Новосибирск | C144: V | D144: 0.35
A145: 16. | B145: Омск | C145: V | D145: 0.345
A146: 17. | B146: Томск | C146: V | D146: 0.351
A147: 18. | B147: Кызыл | C147: V | D147: 0.352
A148: 19. | B148: Сургут | C148: V | D148: 0.372
A149: 20. | B149: Тобольск | C149: V | D149: 0.35
A150: 21. | B150: Тюмень | C150: V | D150: 0.354
A151: 22. | B151: Уренгой | C151: V | D151: 0.401
A152: 23. | B152: Ханты-Мансийск | C152: V | D152: 0.368
A153: 24. | B153: Биробиджан | C153: V | D153: 0.395
A154: 25. | B154: Комсомольск-на-Амуре | C154: V | D154: 0.385
A155: 26. | B155: Хабаровск | C155: V | D155: 0.381
A156: 27. | B156: Чита | C156: V | D156: 0.39
A157: 28. | B157: Абакан | C157: V | D157: 0.351
A158: 29. | B158: Барнаул | C158: IV | D158: 0.342
A159: 30. | B159: Бийск | C159: IV | D159: 0.342
A160: 31. | B160: Рубцовск | C160: IV | D160: 0.334
A161: 32. | B161: Архангельск | C161: IV | D161: 0.374
A162: 33. | B162: Котлас | C162: IV | D162: 0.377
A163: 34. | B163: Белорецк | C163: IV | D163: 0.365
A164: 35. | B164: Уфа | C164: IV | D164: 0.342
A165: 36. | B165: Петропавловск-Камчатский | C165: IV | D165: 0.448
A166: 37. | B166: Киров | C166: IV | D166: 0.362
A167: 38. | B167: Сыктывкар | C167: IV | D167: 0.359
A168: 39. | B168: Ухта | C168: IV | D168: 0.368
A169: 40. | B169: Курган | C169: IV | D169: 0.342
A170: 41. | B170: Йошкар-Ола | C170: IV | D170: 0.34
A171: 42. | B171: Саранск | C171: IV | D171: 0.338
A172: 43. | B172: Мурманск | C172: IV | D172: 0.397
A173: 44. | B173: Арзамас | C173: IV | D173: 0.345
A174: 45. | B174: Выкса | C174: IV | D174: 0.337
A175: 46. | B175: Нижний Новгород | C175: IV | D175: 0.345
A176: 47. | B176: Оренбург | C176: IV | D176: 0.332
A177: 48. | B177: Пенза | C177: IV | D177: 0.343
A178: 49. | B178: Пермь | C178: IV | D178: 0.345
A179: 50. | B179: Владивосток | C179: IV | D179: 0.369
A180: 51. | B180: Самара | C180: IV | D180: 0.338
A181: 52. | B181: Южно-Сахалинск | C181: IV | D181: 0.414
A182: 53. | B182: Екатеринбург | C182: IV | D182: 0.356
A183: 54. | B183: Каменск-Уральский | C183: IV | D183: 0.353
A184: 55. | B184: Бугульма | C184: IV | D184: 0.354
A185: 56. | B185: Елабуга | C185: IV | D185: 0.341
A186: 57. | B186: Казань | C186: IV | D186: 0.343
A187: 58. | B187: Глазов | C187: IV | D187: 0.355
A188: 59. | B188: Ижевск | C188: IV | D188: 0.35
A189: 60. | B189: Сарапул | C189: IV | D189: 0.346
A190: 61. | B190: Ульяновск | C190: IV | D190: 0.352
A191: 62. | B191: Челябинск | C191: IV | D191: 0.351
A192: 63. | B192: Чебоксары | C192: IV | D192: 0.348
A193: 64. | B193: Белгород | C193: III | D193: 0.338
A194: 65. | B194: Брянск | C194: III | D194: 0.342
A195: 66. | B195: Владимир | C195: III | D195: 0.346
A196: 67. | B196: Муром | C196: III | D196: 0.339
A197: 68. | B197: Волгоград | C197: III | D197: 0.331
A198: 69. | B198: Камышин | C198: III | D198: 0.335
A199: 70. | B199: Вологда | C199: III | D199: 0.352
A200: 71. | B200: Воронеж | C200: III | D200: 0.336
A201: 72. | B201: Иваново | C201: III | D201: 0.344
A202: 73. | B202: Кинешма | C202: III | D202: 0.351
A203: 74. | B203: Калуга | C203: III | D203: 0.343
A204: 75. | B204: Петрозаводск | C204: III | D204: 0.367
A205: 76. | B205: Кострома | C205: III | D205: 0.351
A206: 77. | B206: Курск | C206: III | D206: 0.339
A207: 78. | B207: Липецк | C207: III | D207: 0.339
A208: 79. | B208: Санкт-Петербург | C208: III | D208: 0.35
A209: 80. | B209: Тихвин | C209: III | D209: 0.343
A210: 81. | B210: Дмитров | C210: III | D210: 0.345
A211: 82. | B211: Москва | C211: III | D211: 0.344
A212: 83. | B212: Боровичи | C212: III | D212: 0.341
A213: 84. | B213: Великий Новгород | C213: III | D213: 0.349
A214: 85. | B214: Орел | C214: III | D214: 0.339
... 211 more rows

Sheet И2.1
A1: Вернуться на лист "Содержание"
A2: Вернуться на лист "И2"
A5: II.1. Коэффициент учета потерь тепловой энергии в тепловых сетях в зависимости от типа этажности и вида используемого топлива
A6: Поселение, городской округ | C6: Коэффициент учета потерь тепловой энергии в тепловых сетях в зависимости от типа этажности и вида используемого топлива
C7: 5-этажная жилая застройка уголь
A8: 1. | B8: Якутск | C8: 1.054
A9: 2. | B9: Белогорск | C9: 1.034
A10: 3. | B10: Благовещенск | C10: 1.036
A11: 4. | B11: Магадан | C11: 1.03
A12: 5. | B12: Улан-Удэ | C12: 1.034
A13: 6. | B13: Братск | C13: 1.035
A14: 7. | B14: Иркутск | C14: 1.035
A15: 8. | B15: Кемерово | C15: 1.037
A16: 9. | B16: Киселевск | C16: 1.038
A17: 10. | B17: Воркута | C17: 1.055
A18: 11. | B18: Ачинск | C18: 1.037
A19: 12. | B19: Канск | C19: 1.036
A20: 13. | B20: Красноярск | C20: 1.037
A21: 14. | B21: Минусинск | C21: 1.038
A22: 15. | B22: Новосибирск | C22: 1.037
A23: 16. | B23: Омск | C23: 1.038
A24: 17. | B24: Томск | C24: 1.037
A25: 18. | B25: Кызыл | C25: 1.034
A26: 19. | B26: Сургут | C26: 1.034
A27: 20. | B27: Тобольск | C27: 1.037
A28: 21. | B28: Тюмень | C28: 1.038
A29: 22. | B29: Уренгой | C29: 1.055
A30: 23. | B30: Ханты-Мансийск | C30: 1.035
A31: 24. | B31: Биробиджан | C31: 1.034
A32: 25. | B32: Комсомольск-на-Амуре | C32: 1.035
A33: 26. | B33: Хабаровск | C33: 1.036
A34: 27. | B34: Чита | C34: 1.033
A35: 28. | B35: Абакан | C35: 1.037
A36: 29. | B36: Барнаул | C36: 1.039
A37: 30. | B37: Бийск | C37: 1.039
A38: 31. | B38: Рубцовск | C38: 1.04
A39: 32. | B39: Архангельск | C39: 1.036
A40: 33. | B40: Котлас | C40: 1.036
A41: 34. | B41: Белорецк | C41: 1.037
A42: 35. | B42: Уфа | C42: 1.039
A43: 36. | B43: Петропавловск-Камчатский | C43: 1.033
A44: 37. | B44: Киров | C44: 1.037
A45: 38. | B45: Сыктывкар | C45: 1.037
A46: 39. | B46: Ухта | C46: 1.035
A47: 40. | B47: Курган | C47: 1.039
A48: 41. | B48: Йошкар-Ола | C48: 1.04
A49: 42. | B49: Саранск | C49: 1.041
A50: 43. | B50: Мурманск | C50: 1.035
A51: 44. | B51: Арзамас | C51: 1.039
A52: 45. | B52: Выкса | C52: 1.041
A53: 46. | B53: Нижний Новгород | C53: 1.04
A54: 47. | B54: Оренбург | C54: 1.041
A55: 48. | B55: Пенза | C55: 1.041
A56: 49. | B56: Пермь | C56: 1.039
A57: 50. | B57: Владивосток | C57: 1.039
A58: 51. | B58: Самара | C58: 1.041
A59: 52. | B59: Южно-Сахалинск | C59: 1.035
A60: 53. | B60: Екатеринбург | C60: 1.038
A61: 54. | B61: Каменск-Уральский | C61: 1.038
A62: 55. | B62: Бугульма | C62: 1.038
A63: 56. | B63: Елабуга | C63: 1.04
A64: 57. | B64: Казань | C64: 1.04
A65: 58. | B65: Глазов | C65: 1.037
A66: 59. | B66: Ижевск | C66: 1.039
A67: 60. | B67: Сарапул | C67: 1.039
A68: 61. | B68: Ульяновск | C68: 1.039
A69: 62. | B69: Челябинск | C69: 1.038
A70: 63. | B70: Чебоксары | C70: 1.039
A71: 64. | B71: Белгород | C71: 1.043
A72: 65. | B72: Брянск | C72: 1.042
A73: 66. | B73: Владимир | C73: 1.04
A74: 67. | B74: Муром | C74: 1.041
A75: 68. | B75: Волгоград | C75: 1.044
A76: 69. | B76: Камышин | C76: 1.042
A77: 70. | B77: Вологда | C77: 1.039
A78: 71. | B78: Воронеж | C78: 1.043
A79: 72. | B79: Иваново | C79: 1.04
A80: 73. | B80: Кинешма | C80: 1.039
A81: 74. | B81: Калуга | C81: 1.041
A82: 75. | B82: Петрозаводск | C82: 1.038
A83: 76. | B83: Кострома | C83: 1.039
A84: 77. | B84: Курск | C84: 1.042
A85: 78. | B85: Липецк | C85: 1.042
A86: 79. | B86: Санкт-Петербург | C86: 1.041
A87: 80. | B87: Тихвин | C87: 1.04
A88: 81. | B88: Дмитров | C88: 1.04
A89: 82. | B89: Москва | C89: 1.041
A90: 83. | B90: Боровичи | C90: 1.041
A91: 84. | B91: Великий Новгород | C91: 1.04
A92: 85. | B92: Орел | C92: 1.042
A93: 86. | B93: Рязань | C93: 1.041
A94: 87. | B94: Балашов | C94: 1.042
A95: 88. | B95: Саратов | C95: 1.042
A96: 89. | B96: Вязьма | C96: 1.04
A97: 90. | B97: Смоленск | C97: 1.041
A98: 91. | B98: Тамбов | C98: 1.042
A99: 92. | B99: Ржев | C99: 1.041
A100: 93. | B100: Тверь | C100: 1.041
A101: 94. | B101: Тула | C101: 1.041
A102: 95. | B102: Ярославль | C102: 1.039
A103: 96. | B103: Астрахань | C103: 1.047
A104: 97. | B104: Элиста | C104: 1.047
A105: 98. | B105: Великие Луки | C105: 1.043
A106: 99. | B106: Псков | C106: 1.043
A107: 100. | B107: Ростов-на-Дону | C107: 1.046
A108: 101. | B108: Таганрог | C108: 1.046
A109: 102. | B109: Майкоп | C109: 1.053
A110: 103. | B110: Дербент | C110: 1.049
A111: 104. | B111: Махачкала | C111: 1.049
A112: 105. | B112: Нальчик | C112: 1.046
A113: 106. | B113: Калининград | C113: 1.045
A114: 107. | B114: Черкесск | C114: 1.046
A115: 108. | B115: Краснодар | C115: 1.051
A116: 109. | B116: Сочи | C116: 1.058
A117: 110. | B117: Тихорецк | C117: 1.048
A118: 111. | B118: Владикавказ | C118: 1.042
A119: 112. | B119: Кисловодск | C119: 1.043
A120: 113. | B120: Невинномысск | C120: 1.046
A121: 114. | B121: Пятигорск | C121: 1.046
A122: 115. | B122: Ставрополь | C122: 1.046
A123: 116. | B123: Грозный | C123: 1.047
A124: 117. | B124: Симферополь | C124: 1.049
A125: 118. | B125: Феодосия | C125: 1.052
A126: 119. | B126: Ялта | C126: 1.051
A127: 120. | B127: Керчь | C127: 1.047
A128: 121. | B128: Севастополь | C128: 1.052
A132: II.2. Коэффициент учета стоимости транспортных услуг, оказываемых на подъездных железнодорожных путях организациями промышленного железнодорожного транспорта и другими хозяйствующими субъектами независимо от организационно-правовой формы, за исключением организаций федерального железнодорожного транспорта
A133: Наименование типа котельной | C133: Коэффициент учета стоимости транспортных услуг, оказываемых на подъездных железнодорожных путях организациями промышленного железнодорожного транспорта и другими хозяйствующими субъектами независимо от организационно-правовой формы, за исключением организаций федерального железнодорожного транспорта
A134: 1. | B134: Котельная с использованием вида топлива – мазут | C134: 1.017
A135: 2. | B135: Котельная с использованием вида топлива – уголь | C135: 1.047
A139: Таблица 1 "Параметры тепловой сети"
A140: Диапазон расчетной температуры наружного воздуха, которая соответствует температуре воздуха наиболее холодной пятидневки, °С | C140: Длина тепловой сети для территорий, не относящихся к территориям распространения вечномерзлых грунтов, м: | D140: Средневзвешенный диаметр трубопроводов для территорий, не относящихся к территориям распространения вечномерзлых грунтов, мм: | E140: Длина тепловой сети для территорий, относящихся к территориям распространения вечномерзлых грунтов, м: | F140: Средневзвешенный диаметр трубопроводов для территорий, относящихся к территориям распространения вечномерзлых грунтов, мм:
C141: для 5-этажной жилой застройки
A142: 1 | B142: от -1 до -5 | C142: 1724 | D142: 177 | E142: - | F142: -
A143: 2 | B143: от -6 до -13 | C143: 1595 | D143: 185 | E143: - | F143: -
A144: 3 | B144: от -14 до -18 | C144: 1409 | D144: 174 | E144: - | F144: -
A145: 4 | B145: от -19 до -22 | C145: 1409 | D145: 174 | E145: 1559 | F145: 175
A146: 5 | B146: от -23 до -24 | C146: 1293 | D146: 192 | E146: 1543 | F146: 205
A147: 6 | B147: от -25 до -28 | C147: 1293 | D147: 192 | E147: 1543 | F147: 205
A148: 7 | B148: от -29 до -33 | C148: 1200 | D148: 176 | E148: 1128 | F148: 182
A149: 8 | B149: от -34 до -36 | C149: 1137 | D149: 198 | E149: 1287 | F149: 196
A150: 9 | B150: от -37 до -37 | C150: 1031 | D150: 203 | E150: 1181 | F150: 203
A151: 10 | B151: от -38 до -42 | C151: 1031 | D151: 203 | E151: 1181 | F151: 203
A152: 11 | B152: от -43 до -49 | C152: 1046 | D152: 194 | E152: 1196 | F152: 193
A153: 12 | B153: от -50 до -52 | C153: 955 | D153: 201 | E153: 1015 | F153: 201
A157: Таблица 2 "Базовая величина капитальных затрат на основные средства тепловых сетей в базовом году и сметная стоимость строительно-монтажных и пусконаладочных работ по объекту строительства "Внешние инженерные сети теплоснабжения", учитывающая прямые затраты, накладные расходы и сметную прибыль, в ценах 2001 года"
A158: Диапазон расчетной температуры наружного воздуха, которая соответствует температуре воздуха наиболее холодной пятидневки, °С | C158: Базовая величина капитальных затрат на основные средства тепловых сетей в базовом году для территорий, не относящихся к территориям распространения вечномерзлых грунтов, тыс.рублей: | D158: Сметная стоимость строительно-монтажных и пусконаладочных работ по объекту строительства "Внешние инженерные сети теплоснабжения" для территорий, не относящихся к территориям распространения вечномерзлых грунтов, тыс.рублей: | E158: Базовая величина капитальных затрат на основные средства тепловых сетей в базовом году для территорий, относящихся к территориям распространения вечномерзлых грунтов, тыс.рублей: | F158: Сметная стоимость строительно-монтажных и пусконаладочных работ по объекту строительства "Внешние инженерные сети теплоснабжения" для территорий, относящихся к территориям распространения вечномерзлых грунтов, тыс.рублей:
C159: для 5-этажной жилой застройки
A160: 1 | B160: от -1 до -5 | C160: 17447 | D160: 1819 | E160: - | F160: -
A161: 2 | B161: от -6 до -13 | C161: 16841 | D161: 1709 | E161: - | F161: -
A162: 3 | B162: от -14 до -18 | C162: 13345 | D162: 1362 | E162: - | F162: -
A163: 4 | B163: от -19 до -22 | C163: 13345 | D163: 1362 | E163: 28230 | F163: 6140
A164: 5 | B164: от -23 до -24 | C164: 13668 | D164: 1380 | E164: 28913 | F164: 6222
A165: 6 | B165: от -25 до -28 | C165: 13668 | D165: 1380 | E165: 28913 | F165: 6222
A166: 7 | B166: от -29 до -33 | C166: 10527 | D166: 1238 | E166: 22269 | F166: 5580
A167: 8 | B167: от -34 до -36 | C167: 12654 | D167: 1279 | E167: 26768 | F167: 5764
A168: 9 | B168: от -37 до -37 | C168: 12104 | D168: 1287 | E168: 25605 | F168: 5802
A169: 10 | B169: от -38 до -42 | C169: 12104 | D169: 1287 | E169: 25605 | F169: 5802
A170: 11 | B170: от -43 до -49 | C170: 11200 | D170: 1136 | E170: 22656 | F170: 5143
A171: 12 | B171: от -50 до -52 | C171: 10527 | D171: 1238 | E171: 22620 | F171: 4920
A175: Таблица 3 "Индекс изменения сметной стоимости строительно-монтажных и пусконаладочных работ по объекту строительства "Внешние инженерные сети теплоснабжения" на базовый год"
A176: Наименование территории | C176: Индекс изменения сметной стоимости строительно-монтажных и пусконаладочных работ по объекту строительства "Внешние инженерные сети теплоснабжения" на базовый год
A177: 1 | B177: Республика Адыгея (Адыгея) | C177: 6.93
A178: 2 | B178: Республика Алтай | C178: 5.66
A179: 3 | B179: Республика Башкортостан | C179: 6.08
A180: 4 | B180: Республика Бурятия | C180: 8.98
A181: 5 | B181: Республика Дагестан | C181: 6.04
A182: 6 | B182: Республика Ингушетия | C182: 6.04
A183: 7 | B183: Кабардино-Балкарская Республика | C183: 6.24
A184: 8 | B184: Республика Калмыкия | C184: 6.48
A185: 9 | B185: Карачаево-Черкесская Республика | C185: 6.38
A186: 10 | B186: Республика Карелия | C186: 8.17
A187: 11 | B187: Республика Коми:
A188: а) | B188: 1 зона (г. Сыктывкар, Княжпогостский, Сысольский, Сыктывдинский, Койгородский, Усть-Вымский, Усть-Куломский, Корткеросский, Прилузский районы) | C188: 7.16
A189: б) | B189: 2 зона (г. Ухта, Сосногорский, Троицко-Печорский, Удорский районы, г. Вуктыл) | C189: 7.15
A190: в) | B190: 3 зона (г. Печора, Ижемский, Усть-Цилемский районы) | C190: 7.94
A191: г) | B191: 4 зона (г. Инта, г. Усинск) | C191: 7.94
A192: д) | B192: 5 зона (г. Воркута) | C192: 7.98
A193: 12 | B193: Республика Крым | C193: 6.04
A194: 13 | B194: Республика Марий Эл | C194: 5.35
A195: 14 | B195: Республика Мордовия | C195: 6.86
A196: 15 | B196: Республика Саха (Якутия) | C196: 11.29
A197: 16 | B197: Республика Северная Осетия - Алания | C197: 6.85
A198: 17 | B198: Республика Татарстан (Татарстан) | C198: 5.79
A199: 18 | B199: Республика Тыва | C199: 8.31
A200: 19 | B200: Удмуртская Республика | C200: 5.97
A201: 20 | B201: Республика Хакасия | C201: 7.56
A202: 21 | B202: Чеченская Республика | C202: 6.2
A203: 22 | B203: Чувашская Республика - Чувашия | C203: 5.57
A204: 23 | B204: Алтайский край | C204: 7.43
A205: 24 | B205: Забайкальский край | C205: 8.05
A206: 25 | B206: Камчатский край | C206: 10.88
A207: 26 | B207: Краснодарский край | C207: 6.88
A208: 27 | B208: Красноярский край | C208: 8.25
A209: 28 | B209: Пермский край | C209: 5.98
A210: 29 | B210: Приморский край | C210: 8.42
A211: 30 | B211: Ставропольский край | C211: 6.91
A212: 31 | B212: Хабаровский край | C212: 6.67
A213: 32 | B213: Амурская область | C213: 6.82
A214: 33 | B214: Архангельская область:
... 57 more rows

Sheet С1
C4: Перейти на лист ввода исходных данных
F5: Форма С1
C6: Расчет составляющей предельного уровня цены на тепловую энергию (мощность), обеспечивающей компенсацию расходов на топливо при производстве тепловой энергии котельной
C8: Период регулирования (i)-й | E8: =И1!E8 -> 2024
C10: № пп | D10: Наименование | E10: Единицы измерения | F10: Значения
C11: 1 | D11: 2 | E11: 3 | F11: 4
C12: 1 | D12: Составляющая предельного уровня цены на тепловую энергию (мощность), обеспечивающая компенсацию расходов на топливо при производстве тепловой энергии котельной в i-м расчетном периоде регулирования (РТi) | E12: руб./Гкал | F12: =IF(И1!E18="Газ",IFERROR(F13*F20/F21*F14*(1+F18)*(1+F19)/F17/1000,0),IFERROR(F13*F20/F21*F14*F23*(1+F18)*(1+F19)/F17/1000,0)) -> 4455.505036 | I12: расчетное значение
C13: 1.1 | D13: Удельный расход условного топлива при производстве тепловой энергии котельной с использованием угля в i-м расчетном периоде регулирования (bi,k) | E13: кг у.т./Гкал | F13: =И2!D14 -> 176.4
C14: 1.2 | D14: Фактическая цена на топливо (уголь), используемое при производстве тепловой энергии котельной, с учетом затрат на его доставку, сложившаяся в (i-2)-м расчетном периоде регулирования, без НДС (ЦТi-2,kф, нат.) | E14: руб./т н.т. | F14: =IF('С1.1'!E27="",0,'С1.1'!E27) -> 21220.53666 | I14: Подтягивается в порядке приоритетности источников информации с листа, где заполнены данные
C15: 1.3 | D15: Низшая теплота сгорания натурального топлива (угля) | E15: ккал/кг н.т. | F15: ='С1.1'!E16 -> 5500 | I15: Подтягивается с листа Топливо
C16: 1.4 | D16: Низшая теплота сгорания 1 кг условного топлива | E16: ккал/кг у.т. | F16: 7000 | I16: Константа
C17: 1.5 | D17: Коэффициент перевода натурального топлива в условное топливо (К) | E17: кг у.т./кг | F17: =F15/F16 -> 0.7857142857 | I17: расчетное значение
C18: 1.6 | D18: Прогнозный индекс роста цены на топливо в (i-1)-м расчетном периоде регулирования (Ii-1,kП) | E18: % | F18: ='С1.1'!E19 -> -0.199 | I18: Подтягивается с листа Топливо
C19: 1.7 | D19: Прогнозный индекс роста цены на топливо в i-м расчетном периоде регулирования (Ii,kП) | E19: % | F19: ='С1.1'!E20 -> 0.057 | I19: Подтягивается с листа Топливо
C20: 1.8 | D20: Объем отпуска тепловой энергии с коллекторов котельной (QОТП) | E20: тыс. Гкал | F20: =F21*F22 -> 26.04200613
C21: 1.8.1 | D21: Объем полезного отпуска тепловой энергии котельной (QПО) | E21: тыс. Гкал | F21: =С2!F37 -> 24.684366
C22: 1.8.2 | D22: Коэффициент учета потерь тепловой энергии в тепловых сетях (КП) | F22: 1.055
C23: 1.9 | D23: Коэффициент учета стоимости транспортных услуг, оказываемых на подъездных железнодорожных путях организациями промышленного железнодорожного транспорта и другими хозяйствующими субъектами независимо от организационно-правовой формы, за исключением организаций федерального железнодорожного транспорта (Кппжт) | F23: =IF(И1!$E$18="Мазут",'И2.1'!$C$134,IF(И1!$E$18="Уголь",'И2.1'!$C$135,"-")) -> 1.047
C25: Вернуться на лист "Содержание"
C26: Перейти на лист "Итог"

Sheet С1.1
C4: Вернуться на лист "Содержание"
F5: Форма С1.1
C6: Исходные данные для расчета составляющей предельного уровня цены на тепловую энергию (мощность), обеспечивающей компенсацию расходов на топливо при производстве тепловой энергии котельной
I7: Источник информации
C8: Период регулирования (i)-й | E8: =И1!E8 -> 2024 | I8: <выберите источник информации>
I9: цены (тарифы), подлежащие государственному регулированию, действовавшие на день окончания (i-2)-го расчетного периода в системе теплоснабжения | K9: Источник информации
C10: № пп | D10: Наименование | E10: Значения | F10: Источник информации | I10: информация с официального сайта единой информационной системы в сфере закупок | K10: <необходимо выбрать источник информации>
C11: 1 | D11: 2 | E11: 3 | F11: 4 | I11: рыночные цены на топливо, сложившиеся на организованных торговых площадках, в т.ч. на биржах, функционирующих на территории РФ | K11: цены (тарифы), действовавшие во 2 п/г (i-2) года в системе теплоснабжения
C12: 1 | D12: Обоснование вида топлива, использование которого преобладает в системе теплоснабжения в i-м расчетном периоде регулирования: | I12: рыночные цены на топливо, информация о которых предоставляется независимыми специализированными информационно-аналитическими организациями
C13: 1.1 | D13: Вид топлива, использование которого преобладает в системе теплоснабжения (выберите из списка) | E13: каменный уголь | H13: (см.примечание №1) | I13: данные Федеральной службы государственной статистики | K13: информация с официального сайта единой информационной системы в сфере закупок
C14: 1.2 | D14: Обоснование вида топлива, использование которого преобладает в системе теплоснабжения (выберите из списка) | E14: доля использования топлива в структуре топливного баланса рассматриваемой системы теплоснабжения, % | K14: рыночные цены на топливо, сложившиеся на организованных торговых площадках, в т.ч. на биржах, функционирующих на территории РФ
C15: 1.2.1 | D15: Укажите долю использования топлива в структуре топливного баланса рассматриваемой системы теплоснабжения, % | E15: более 50% | I15: Обоснование вида топлива | K15: рыночные цены на топливо, информация о которых предоставляется независимыми специализированными информационно-аналитическими организациями
C16: 1.3 | D16: Низшая теплота сгорания натурального топлива (угля), ккал/кг | E16: 5500 | F16: договор от 07.04.2022 № 58/2022 | I16: доля использования топлива в структуре топливного баланса рассматриваемой системы теплоснабжения, % | K16: данные Федеральной службы государственной статистики
I17: исходя из приоритетного направления развития топливного баланса (если в структуре топливного баланса системы теплоснабжения представлены виды топлива с одинаковой долей)
C18: 2 | D18: Прогнозные индексы роста цены на уголь в соответствии с прогнозом социально-экономического развития Российской Федерации:
C19: 2.1 | D19: Прогнозный индекс роста цены на топливо в (i-1)-м расчетном периоде регулирования, % (Ii-1,kП) | E19: -0.199 | F19: Прогноз социально-экономического развития Российской Федерации на 2024 год и на плановый период 2025 и 2026 годов (размещен на официальном сайте Министерства экономического развития Российской Федерации (далее - Минэкономразвития России) 22.09.2023): файл в формате Microsoft Excel "6. Дефляторы базовый", таблица "Прогноз индексов цен производителей и индексов-дефляторов по видам экономической деятельности, в % г/г (Базовый)", "Добыча полезных ископаемых (Раздел B)", строка "Добыча угля (05)", (показатель "ИЦП") | H19: (см.примечание №2) | I19: каменный уголь
C20: 2.2 | D20: Прогнозный индекс роста цены на топливо в i-м расчетном периоде регулирования, % (Ii,kП) | E20: 0.057 | F20: Прогноз социально-экономического развития Российской Федерации на 2024 год и на плановый период 2025 и 2026 годов (размещен на официальном сайте Министерства экономического развития Российской Федерации (далее - Минэкономразвития России) 22.09.2023): файл в формате Microsoft Excel "6. Дефляторы базовый", таблица "Прогноз индексов цен производителей и индексов-дефляторов по видам экономической деятельности, в % г/г (Базовый)", "Добыча полезных ископаемых (Раздел B)", строка "Добыча угля (05)", (показатель "ИЦП") | H20: (см.примечание №2) | I20: бурый уголь
I21: антрацит
C22: 3 | D22: Фактическая цена на топливо (уголь), используемое при производстве тепловой энергии котельной, с учетом затрат на его доставку без НДС в (i-2)-м расчетном периоде регулирования (ЦТi-2,kф, нат.): | I22: уголь (вид угля не указан в топливном балансе)
C23: 3.1 | D23: Источник информации о ценах (тарифах) на топливо (выберите из списка) | E23: информация с официального сайта единой информационной системы в сфере закупок | F23: >>Перейти к внесению информации
C24: 3.2 | D24: Регулируемая цена (тариф) на топливо (уголь), действовавшая на день окончания (i-2)-го расчетного периода в системе теплоснабжения, без НДС, руб. / т н. т. (ЦТi-2,kф,нат.) | I24: Добавить в случае мазута:
C25: 3.2 | D25: Рыночная цена на топливо (уголь), включающая затраты на его доставку, в (i-2)-м расчетном периоде регулирования, информация о которой предоставляется независимыми специализированными информационно-аналитическими организациями без НДС, руб. / т н. т. (ЦТi-2,kф,нат.) | I25: В структуре топливного баланса системы теплоснабжения отсутствует использование газа, угля, мазута
C26: 3.2 | D26: Цена (тариф) на топливо (уголь) с учетом затрат на его доставку в (i-2)-м расчетном периоде по данным Федеральной службы государственной статистики без НДС, руб. / т н. т. (ЦТi-2,kф, нат.)
C27: =IF(OR(E23=I10,E23=I11,E23=I8),"3.2","3.3") -> 3.2 | D27: Фактическая цена на топливо (уголь), используемое при производстве тепловой энергии котельной, с учетом затрат на его доставку, сложившаяся в системе теплоснабжения в (i-2)-м расчетном периоде регулирования, без НДС, руб. / т н.т. (ЦТi-2,kф, нат.) | E27: =IF(AND('С1.1'!$E$24>0,E23=I9),'С1.1'!$E$24,IF(AND('С1.2'!$F$8>0,E23=I10),'С1.2'!$F$8,IF(AND('С1.3'!$F$11>0,E23=I11),'С1.3'!$F$11,IF(AND('С1.1'!$E$25>0,E23=I12),'С1.1'!$E$25,IF(AND($E$26>0,E23=I13),$E$26,""))))) -> 21220.53666
C29: 4 | D29: Поселение, городской округ, по которому определяется коэффициент учета потерь тепловой энергии в тепловых сетях (выберите из списка) | E29: 25
C31: Перейти на лист расчета составляющей, обеспечивающей компенсацию расходов на топливо
C32: Перейти на лист "Итог"
C33: Примечание:
C34: 1 | D34: Вид топлива, использование которого преобладает в системе теплоснабжения, определяется как вид топлива с наибольшей долей использования в структуре топливного баланса этой системы теплоснабжения в соответствии со схемой теплоснабжения поселения или городского округа, на территории которого находится система теплоснабжения. В случае если в соответствии со схемой теплоснабжения в структуре топливного баланса системы теплоснабжения представлены виды топлива с одинаковой долей их использования, вид топлива, использование которого преобладает в системе теплоснабжения, при отсутствии указанной информации в схеме теплоснабжения, определяется исходя из приоритетного направления развития топливного баланса поселения, городского округа, указанного в схеме теплоснабжения, или исходя из приоритетного направления развития топливного баланса субъекта Российской Федерации.
C35: 2 | D35: Значения, указанные в Прогнозе социально-экономического развития, необходимо перевести в % сверх 100%. Полученные значения в % указываются с точностью до первого знака после запятой (десятых долей процента), при этом округление первого знака после запятой производится по правилам математического округления. Для котельной с использованием угля подлежит применению индекс цен производителей промышленной продукции по виду экономической деятельности "Добыча угля" без дифференциации по видам топлива

Sheet С1.2
C4: Вернуться к заполнению исходных данных
M5: Форма С1.2
D6: Информация с официального сайта единой информационной системы в сфере закупок, региональных и муниципальных информационных систем в сфере закупок по завершенным закупкам, в результате которых заключены договоры на поставку топлива покупателю по ценам на топливо, включающим затраты на его доставку
D8: Средневзвешенная по объему фактическая цена на топливо (уголь), используемое при производстве тепловой энергии котельной, с учетом затрат на его доставку, сложившаяся в системе теплоснабжения в (i-2)-м расчетном периоде регулирования, без НДС, руб. / т н.т. (ЦТi-2,kф,нат.) | F8: =IFERROR(SUM($D$13:$D$9996)/SUM($E$13:$E$9996),0) -> 21220.53666
D10: Информация для расчета средневзвешенной по объему цены на топливо (уголь) с учетом затрат на его доставку за (i-2)-й год без НДС | G10: Обоснование использования данных
D11: Стоимость топлива за (i-2)-й год с учетом затрат на его доставку без НДС, руб. | E11: Объем топлива за (i-2)-й год, соответствующий стоимости топлива, указанной в гр. 1, т н.т. | F11: Цена 1 т н.т. за (i-2)-й год без НДС, руб./т н.т. | G11: Источник информации | H11: № закупки, № договора | I11: Стоимость топлива по заключенному договору (на весь срок договора) без НДС, руб. | J11: Объем топлива по заключенному договору (на весь срок договора), т н.т. | K11: Вид угля | L11: Сроки или график поставки | M11: Территориальный признак (выберите из списка)
D12: 1 | E12: 2 | F12: 3 | G12: 4 | H12: 5 | I12: 6 | J12: 7 | K12: 8 | L12: 9 | M12: 10
D13: 25613187.75 | E13: 1207 | F13: =IFERROR(D13/E13,0) -> 21220.53666 | H13: (32211194482 от 24.03.2022),договор №58/2022 от 07.04.2022, доп.согл.№1 к договору от 07.04.2022 №58/2022 от 14.04.2022 | I13: 1736983711 | J13: 20582 | K13: Каменный уголь | L13: 30.09.2022 | M13: в поселении, городском округе | O13: (см.примечание №1, №2)
D14: Добавить строку | Q14: end2
C16: Перейти на лист расчета составляющей, обеспечивающей компенсацию расходов на топливо
C17: Перейти на лист "Итог"
C18: Примечание:
C19: 1 | D19: В графе "Сроки или график поставки" введите дату начала и окончания исполнения контракта, если даты начала или окончания исполнения контракта находятся за пределами диапазона с 01.01.(i-2) по 31.12.(i-2), дополнительно указывается информация о сроках и объемах поставки в соответствии с графиком поставки на (i-2) год при его наличии
C20: 2 | D20: В графе "Территориальный признак" выберите из списка территорию, в отношении которой используются сведения для определения средневзвешенной по объему цены на топливо за (i-2) год: по системе теплоснабжения, при отсутствии данных по системе теплоснабжения - по поселению, городскому округу, при отсутствии данных по поселению - по муниципальному району, в состав которого входит соответствующее поселение.

Sheet Data1.2 (hidden)
B1: Удалить | F1: =IFERROR(D1/E1,0) -> 0 | O1: (см.примечание №1, №2)

Sheet С1.3 (hidden)
C4: Вернуться к заполнению исходных данных
G5: Форма С1.3
D6: Информация о рыночных ценах на топливо, включающих затраты на его доставку, сложившихся на организованных торговых площадках, в том числе на биржах, функционирующих на территории Российской Федерации | J6: Ввод средневзвешенной по объему цены
J7: Ввод информации для расчета средневзвешенной по объему цены
D8: Наименование | F8: Значения | G8: Источник информации
D9: Способ ввода данных о средневзвешенной цене на топливо с учетом затрат на его доставку за (i-2)-й год (выберите из списка) | F9: Ввод информации для расчета средневзвешенной по объему цены
D10: Средневзвешенная по объему цена на топливо (уголь) с учетом затрат на его доставку за (i-2)-й год без НДС, руб./т н.т (ЦТi-2,kф, нат.) | K10: start1
D11: Средневзвешенная по объему цена на топливо (уголь) с учетом затрат на его доставку за (i-2)-й год без НДС, руб./т н.т (ЦТi-2,kф,нат.) | F11: =IF(F9=J6, F10, IF(F9=J7, IFERROR(SUM(D16:D9998)/SUM(E16:E9998), 0), 0)) -> 0 | K11: start2
D13: Информация для расчета средневзвешенной по объему цены на топливо (уголь) с учетом затрат на его доставку за (i-2)-й год без НДС | G13: Источник информации
D14: Стоимость топлива за (i-2)-й год с учетом затрат на его доставку без НДС, руб. | E14: Объем топлива за (i-2)-й год, соответствующий стоимости топлива, указанной в гр. 1, т н.т. | F14: Цена 1 т н.т. за (i-2)-й год без НДС, руб./т н.т.
D15: 1 | E15: 2 | F15: 3 | G15: 4
F16: =IFERROR(D16/E16,0) -> 0
D17: Добавить строку | K17: end2
C20: Перейти на лист расчета составляющей, обеспечивающей компенсацию расходов на топливо
C21: Перейти на лист "Итог"

Sheet Data1.3 (hidden)
B1: Удалить | F1: =IFERROR(D1/E1,0) -> 0

Sheet С2
C4: Перейти на лист ввода исходных данных
F5: Форма С2
C6: Расчет составляющей предельного уровня цены на тепловую энергию (мощность), обеспечивающей возврат капитальных затрат на строительство котельной и тепловых сетей
C8: Период регулирования (i)-й | E8: =И1!E8 -> 2024
C10: № пп | D10: Наименование | E10: Единицы измерения | F10: Значения
C11: 1 | D11: 2 | E11: 3 | F11: 4
C12: 1 | D12: Составляющая предельного уровня цены на тепловую энергию (мощность), обеспечивающая возврат капитальных затрат на строительство котельной и тепловых сетей в i-м расчетном периоде регулирования (КРi) | E12: руб./Гкал | F12: =PMT(F29,F33,-SUM(F13,F18,F22,F26))/F37 -> 2357.020669 | I12: п.16 ф.(4)
C13: 1.1 | D13: Величина капитальных затрат на строительство котельной с использованием угля в i-м расчетном периоде регулирования (КЗi,kкот) | E13: тыс. руб. | F13: =F14*F15*F16*F17*F35 -> 181661.0301 | I13: п.19 ф.(7)
C14: 1.1.1 | D14: Базовая величина капитальных затрат на строительство котельной с использованием угля в базовом (2019) году (КЗб,kкот(б)) | E14: тыс. руб. | F14: =И2!D21 -> 113455 | I14: ТЭП
C15: 1.1.2 | D15: Коэффициент температурной зоны для котельной (Ккот,т) | F15: =HLOOKUP('С2.1'!E12,И2!C255:J256,2,FALSE) -> 1.038 | I15: ТЭП | J15: подтянуть из ТЭП согласно выбранной пользователем температурной зоне
C16: 1.1.3 | D16: Коэффициент сейсмического влияния для котельной(Ккот,с) | F16: =HLOOKUP('С2.1'!E13,И2!C261:F263,2,FALSE) -> 1 | I16: ТЭП | J16: подтянуть из ТЭП согласно выбранной пользователем сейсмичности
C17: 1.1.4 | D17: Коэффициент влияния расстояния на транспортировку основных средств котельной (Ктр) | F17: =HLOOKUP('С2.1'!E14,И2!C407:G408,2,FALSE) -> 1.03 | I17: ТЭП | J17: подтянуть из ТЭП согласно выбранному пользователем диапазону расстояния
C18: 1.2 | D18: Величина капитальных затрат на строительство тепловых сетей в i-м расчетном периоде регулирования (КЗiсети) | E18: тыс. руб. | F18: =IF('С2.1'!E18>0,F19*F21*F35,F20*F21*F35) -> 133807.821 | I18: п.21 ф. (9)
C19: 1.2.1 | D19: Величина капитальных затрат на строительство тепловых сетей в базовом (2019) году на основании предложения теплоснабжающей организации, функционирующей в соответствующей системе теплоснабжения, полученного в период проведения общественного обсуждения (КЗбсети(б)) | E19: тыс. руб. | F19: ='С2.1'!E18 -> 0
C20: 1.2.1 | D20: Базовая величина капитальных затрат на строительство тепловых сетей в базовом (2019) году (КЗбсети(б)) | E20: тыс. руб. | F20: ='С2.1'!E26 -> 89346.58229 | I20: ТЭП
C21: 1.2.2 | D21: Коэффициент сейсмического влияния для тепловых сетей (Ксети,с) | F21: =HLOOKUP('С2.1'!E13,И2!C261:F263,3,FALSE) -> 1 | I21: ТЭП
C22: 1.3 | D22: Затраты на подключение (технологическое присоединение) котельной с использованием угля к электрическим сетям, к централизованной системе водоснабжения и водоотведения в i-м расчетном периоде регулирования (ТПi,k) | E22: тыс. руб. | F22: =(F23+F24+F25)*F35 -> 40408.71241 | I22: п.22 ф.(10)
C23: 1.3.1 | D23: Базовая величина затрат на подключение (технологическое присоединение) котельной с использованием угля к электрическим сетям (ТПб,kэс) | E23: тыс. руб. | F23: =IF('С2.1'!E21="","",VLOOKUP('С2.1'!E21,И2!B79:D86,3)) -> 3132 | I23: МУ 209
C24: 1.3.2 | D24: Затраты на подключение (технологическое присоединение) котельной к централизованной системе водоснабжения в базовом (2019) году (ТПбвс) | E24: тыс. руб. | F24: ='С2.1'!E27 -> 14307.87679
C25: 1.3.3 | D25: Затраты на подключение (технологическое присоединение) котельной к централизованной системе водоотведения в базовом (2019) году (ТПбво) | E25: тыс. руб. | F25: ='С2.1'!E28 -> 9541.95672
C26: 1.4 | D26: Стоимость земельного участка для размещения котельной в i-м расчетном периоде регулирования (Зi,k) | E26: тыс. руб. | F26: =F27*F28*F35 -> 7908.172401 | I26: п.23 ф.(11)
C27: 1.4.1 | D27: Удельная базовая стоимость земельного участка (Рб) | E27: тыс. руб./ кв. м | F27: =IF('С2.1'!E29="",0,'С2.1'!E29) -> 1.257254747
C28: 1.4.2 | D28: Площадь земельного участка для размещения котельной с использованием угля (Sk) | E28: кв. м | F28: =И2!D9 -> 4200
C29: 1.5 | D29: Норма доходности инвестированного капитала в i-м расчетном периоде регулирования (НДi) | E29: % | F29: =(1+F31)*(1+F30)/(1+F32)-1 -> 0.09596286526 | I29: п. 26 ф.(12)
C30: 1.5.1 | D30: Средневзвешенная по дням 9 месяцев (i-1)-го расчетного периода регулирования ключевая ставка Центрального банка Российской Федерации (КСi-1) | E30: % | F30: ='С2.1'!E25 -> 0.08402930403 | I30: по информации Банка России
C31: 1.5.2 | D31: Базовый уровень нормы доходности инвестированного капитала (НДб) | E31: % | F31: =И2!C413 -> 0.1388 | I31: ТЭП (XI)
C32: 1.5.3 | D32: Базовый уровень ключевой ставки Центрального банка Российской Федерации (КСб) | E32: % | F32: =И2!C414 -> 0.1264 | I32: ТЭП (XI)
C33: 1.6 | D33: Срок возврата инвестированного капитала (СВК) | E33: лет | F33: =И2!C415 -> 10 | I33: подтягивается из таблиц ТЭП (XI)
C35: 1.7 | D35: Индекс цен производителей промышленной продукции в i-м расчетном периоде регулирования (накопленным итогом) (ИЦПi) | E35: % | F35: =HLOOKUP(E8,'С2.5'!E10:CG12,3,FALSE) -> 1.497626631 | I35: п.20 ф.(8)
C37: 1.8 | D37: Объем полезного отпуска тепловой энергии котельной (QПО) | E37: тыс. Гкал | F37: =F38*F39*F42/1000 -> 24.684366 | I37: п.17 ф.(5)
C38: 1.8.1 | D38: Установленная тепловая мощность котельной (p) | E38: Гкал/ч | F38: =И2!D8 -> 7 | I38: ТЭП
C39: 1.8.2 | D39: Продолжительность годовой работы оборудования котельной с учетом коэффициента готовности, учитывающего продолжительность годовой работы оборудования (ГР) | E39: ч | F39: =F40*F41 -> 8497.2 | I39: п.18 ф.(6)
C40: 1.8.3 | D40: Коэффициент готовности, учитывающий продолжительность годовой работы оборудования (Кr) | F40: =И2!D13 -> 0.97 | I40: ТЭП
C41: 1.8.4 | D41: Число часов в году | E41: ч | F41: 8760
C42: 1.8.5 | D42: Коэффициент использования установленной тепловой мощности котельной (КИУМ) | F42: ='С2.1'!E17 -> 0.415 | I42: ТЭП (VI) по 116 городам.
C44: Вернуться на лист "Содержание"
C45: Перейти на лист "Итог"

Sheet С2.1
C4: Вернуться на лист "Содержание" | L4: I | M4: да | N4: до 200 | P4: 6 и менее баллов | R4: <выберите из списка> | T4: нет
F5: Форма С2.1 | L5: II | M5: нет | N5: от 200 до 500 | P5: 7 баллов | R5: Свод правил СП 131.13330.2020 "СНиП 23-01-99* Строительная климатология" "Температура воздуха наиболее холодной пятидневки с обеспеченностью 0,92" | T5: относится к районам Крайнего Севера
C6: Исходные данные для расчета составляющей предельного уровня цены на тепловую энергию (мощность), обеспечивающей возврат капитальных затрат на строительство котельной и тепловых сетей | L6: III | N6: от 500 до 1000 | P6: 8 баллов | R6: Схема теплоснабжения (расчетная температура наружного воздуха) | T6: относится к местностям, приравненным к районам Крайнего Севера
L7: IV | N7: от 1000 до 1500 | P7: 9 и более баллов | R7: Информация, предоставленная органом местного самоуправления
C8: Период регулирования (i)-й | E8: =И1!E8 -> 2024 | L8: V | N8: от 1500 до 2000
L9: VI
C10: № пп | D10: Наименование | E10: Значения | F10: Источник информации | L10: VII
C11: 1 | D11: 2 | E11: 3 | F11: 4 | L11: VIII
C12: 1 | D12: Температурная зона, к которой относится поселение или городской округ, на территории которого находится система теплоснабжения (выберите из списка) | E12: IV
C13: 2 | D13: Степень сейсмической опасности сейсмического района, к которому относится поселение или городской округ, на территории которого находится система теплоснабжения (выберите из списка) | E13: 6 и менее баллов | F13: Приложение А (обязательное) "Общее сейсмическое районирование территории Российской Федерации ОСР-2015. Список населенных пунктов Российской Федерации, расположенных в сейсмических районах, с указанием расчетной сейсмической интенсивности в баллах шкалы MSK-64 для средних грунтовых условий и трех степеней сейсмической опасности - A (10%), B (5%), C (1%) в течение 50 лет" к своду правил "СП 14.13330.2018 Строительство в сейсмических районах. Актуализир. редакция СНиП II-7-81".
C14: 3 | D14: Расстояние от границы системы теплоснабжения до границы ближайшего административного центра субъекта Российской Федерации с железнодорожным сообщением, км (выберите из списка) | E14: от 500 до 1000 | F14: Карта Российской Федерации в масштабе, позволяющем определить расстояние на транспортировку основных средств котельной, определяется как расстояние от границы системы теплоснабжения до границы ближайшего административного центра субъекта РФ с железнодорожным сообщением
C15: 4 | D15: Поселение, городской округ, на территории которого находится система теплоснабжения, отнесено к территории распространения вечномерзлых грунтов? (выберите из списка да/нет) | E15: да
C16: 5 | D16: Поселение, городской округ, по которому определяется коэффициент использования установленной тепловой мощности котельной (выберите из списка) | E16: 25 | H16: (см.примечание №1)
C17: 6 | D17: Коэффициент использования установленной тепловой мощности котельной (КИУМ) | E17: 0.415
C18: 7 | D18: Величина капитальных затрат на строительство тепловых сетей в базовом (2019) году на основании предложения теплоснабжающей организации, функционирующей в соответствующей системе теплоснабжения, полученного в период проведения общественного обсуждения, тыс. руб. (КЗбсети(б)) | H18: (см.примечание №2)
C19: 8 | D19: Расчетная температура наружного воздуха, которая соответствует температуре воздуха наиболее холодной пятидневки, в поселении, городском округе,°C | E19: -39 | F19: Свод правил СП 131.13330.2020 "СНиП 23-01-99* Строительная климатология" "Температура воздуха наиболее холодной пятидневки с обеспеченностью 0,92"
C21: 9 | D21: Федеральный округ, в состав которого входит субъект Российской Федерации, на территории которого расположена система теплоснабжения (выберите из списка) | E21: Северо-Западный федеральный округ
C22: 10 | D22: Поселение, городской округ, на территории которого находится система теплоснабжения, отнесено к районам Крайнего Севера или местностям, приравненным к районам Крайнего Севера? (выберите из списка) | E22: относится к районам Крайнего Севера
C24: 11 | D24: Вспомогательные расчеты исходных данных:
C25: 11.1 | D25: Средневзвешенная по дням 9 месяцев (i-1)-го расчетного периода регулирования ключевая ставка Центрального банка Российской Федерации, % (КСi-1) | E25: ='С2.6'!F11 -> 0.08402930403 | F25: >>Перейти на лист вспомогательных расчетов исходных данных
C26: 11.2 | D26: Базовая величина капитальных затрат на строительство тепловых сетей в базовом (2019) году (КЗбсети(б)) | E26: ='С2.2'!E17 -> 89346.58229 | F26: >>Перейти на лист вспомогательных расчетов исходных данных
C27: 11.3 | D27: Затраты на подключение (технологическое присоединение) котельной к централизованной системе водоснабжения в базовом (2019) году, тыс. руб. (ТПбвс) | E27: ='С2.3'!E24 -> 14307.87679 | F27: >>Перейти на лист вспомогательных расчетов исходных данных
C28: 11.4 | D28: Затраты на подключение (технологическое присоединение) котельной к централизованной системе водоотведения в базовом (2019) году, тыс. руб. (ТПбво) | E28: ='С2.3'!E28 -> 9541.95672
C29: 11.5 | D29: Удельная базовая стоимость земельного участка для размещения котельной, тыс. руб./кв.м (Рб) | E29: ='С2.4'!E10 -> 1.257254747 | F29: >>Перейти на лист вспомогательных расчетов исходных данных
C30: 11.6 | D30: Индекс цен производителей промышленной продукции в i-м расчетном периоде регулирования (накопленным итогом), % (ИЦПi) | E30: =IF(HLOOKUP(E8,'С2.5'!E10:CG12,3,FALSE)=100%,"",HLOOKUP(E8,'С2.5'!E10:CG12,3,FALSE)) -> 1.497626631 | F30: >>Перейти на лист вспомогательных расчетов исходных данных
C32: Перейти на лист расчета составляющей, обеспечивающей возврат капитальных затрат
C33: Перейти на лист "Итог"
C34: Примечание:
C35: 1 | D35: Значения коэффициента использования установленной тепловой мощности котельной (КИУМ) по 121 поселению, городскому округу установлены ТЭП, используемыми для расчета предельного уровня цены на тепловую энергию (мощность), утвержденными Постановлением № 1562. В случае, если населенный пункт, на территории которого располагается система теплоснабжения, не входит в список поселений, городских округов, для которых КИУМ указан в ТЭП, используемых для расчета предельного уровня цены на тепловую энергию (мощность), утверждаемых Постановлением № 1562, для расчетов используется значение КИУМ по ближайшему поселению, городскому округу, расположенному в аналогичной температурной зоне, по которому имеется установленное значение.
C36: 2 | D36: В стр.7 в соответствии с пунктами 21 и 63 Постановления № 1562 пользователь вводит значение только в случае принятия по итогам общественного обсуждения решения об использовании в расчете величины капитальных затрат на строительство тепловых сетей в базовом году, на основании предложения теплоснабжающей организации, функционирующей в соответствующей системе теплоснабжения, полученного в период проведения общественного обсуждения. Указанное значение вводится в ценах базового (2019) года без учета региональных особенностей, то есть требуется дополнительное применение коэффициентов, указанных в формуле 9 Постановления № 1562.

Sheet Data2.1 (hidden)
A1: Абакан | F1: -1 | H1: -5
A2: Арзамас | F2: -6 | H2: -13
A3: Архангельск | F3: -14 | H3: -18
A4: Астрахань | F4: -19 | H4: -22
A5: Ачинск | F5: -23 | H5: -24
A6: Балашов | F6: -25 | H6: -28
A7: Барнаул | F7: -29 | H7: -33
A8: Белгород | F8: -34 | H8: -36
A9: Белогорск | F9: -37 | H9: -37
A10: Белорецк | F10: -38 | H10: -42
A11: Бийск | F11: -43 | H11: -49
A12: Биробиджан | F12: -50 | H12: -52
A13: Благовещенск | F13: Диапазон температур для определения,в каком диапазоне из ТЭП расчетная температура
A14: Боровичи | E14: № | F14: от | H14: до | J14: №диапазона
A15: Братск | E15: 1 | F15: =F1+0.5 -> -0.5 | H15: =H1-0.5 -> -5.5 | J15: =IF(AND('С2.1'!$E$19<=Data2.1!F15,Data2.1!H15<'С2.1'!$E$19),E15,"") -> 
A16: Брянск | E16: 2 | F16: -5.5 | H16: -13.5 | J16: =IF(AND('С2.1'!$E$19<=Data2.1!F16,Data2.1!H16<'С2.1'!$E$19),E16,"") -> 
A17: Бугульма | E17: 3 | F17: -13.5 | H17: -18.5 | J17: =IF(AND('С2.1'!$E$19<=Data2.1!F17,Data2.1!H17<'С2.1'!$E$19),E17,"") -> 
A18: Великие Луки | E18: 4 | F18: -18.5 | H18: -22.5 | J18: =IF(AND('С2.1'!$E$19<=Data2.1!F18,Data2.1!H18<'С2.1'!$E$19),E18,"") -> 
A19: Великий Новгород | E19: 5 | F19: -22.5 | H19: -24.5 | J19: =IF(AND('С2.1'!$E$19<=Data2.1!F19,Data2.1!H19<'С2.1'!$E$19),E19,"") -> 
A20: Владивосток | E20: 6 | F20: -24.5 | H20: -28.5 | J20: =IF(AND('С2.1'!$E$19<=Data2.1!F20,Data2.1!H20<'С2.1'!$E$19),E20,"") -> 
A21: Владикавказ | E21: 7 | F21: -28.5 | H21: -33.5 | J21: =IF(AND('С2.1'!$E$19<=Data2.1!F21,Data2.1!H21<'С2.1'!$E$19),E21,"") -> 
A22: Владимир | E22: 8 | F22: -33.5 | H22: -36.5 | J22: =IF(AND('С2.1'!$E$19<=Data2.1!F22,Data2.1!H22<'С2.1'!$E$19),E22,"") -> 
A23: Волгоград | E23: 9 | F23: -36.5 | H23: -37.5 | J23: =IF(AND('С2.1'!$E$19<=Data2.1!F23,Data2.1!H23<'С2.1'!$E$19),E23,"") -> 
A24: Вологда | E24: 10 | F24: -37.5 | H24: -42.5 | J24: =IF(AND('С2.1'!$E$19<=Data2.1!F24,Data2.1!H24<'С2.1'!$E$19),E24,"") -> 10
A25: Воркута | E25: 11 | F25: -42.5 | H25: -49.5 | J25: =IF(AND('С2.1'!$E$19<=Data2.1!F25,Data2.1!H25<'С2.1'!$E$19),E25,"") -> 
A26: Воронеж | E26: 12 | F26: -49.5 | H26: -52.5 | J26: =IF(AND('С2.1'!$E$19<=Data2.1!F26,Data2.1!H26<'С2.1'!$E$19),E26,"") -> 
A27: Выкса | J27: =SUM(J15:J26) -> 10
A28: Вязьма
A29: Глазов
A30: Грозный
A31: Дербент
A32: Дмитров
A33: Екатеринбург
A34: Елабуга
A35: Иваново
A36: Ижевск
A37: Иркутск
A38: Йошкар-Ола
A39: Казань
A40: Калининград
A41: Калуга
A42: Каменск-Уральский
A43: Камышин
A44: Канск
A45: Кемерово
A46: Керчь
A47: Кинешма
A48: Киров
A49: Киселевск
A50: Кисловодск
A51: Комсомольск-на-Амуре
A52: Кострома
A53: Котлас
A54: Краснодар
A55: Красноярск
A56: Курган
A57: Курск
A58: Кызыл
A59: Липецк
A60: Магадан
A61: Майкоп
A62: Махачкала
A63: Минусинск
A64: Москва
A65: Мурманск
A66: Муром
A67: Нальчик
A68: Невинномысск
A69: Нижний Новгород
A70: Новосибирск
A71: Омск
A72: Орел
A73: Оренбург
A74: Пенза
A75: Пермь
A76: Петрозаводск
A77: Петропавловск-Камчатский
A78: Псков
A79: Пятигорск
A80: Ржев
A81: Ростов-на-Дону
A82: Рубцовск
A83: Рязань
A84: Самара
A85: Санкт-Петербург
A86: Саранск
A87: Сарапул
A88: Саратов
A89: Севастополь
A90: Симферополь
A91: Смоленск
A92: Сочи
A93: Ставрополь
A94: Сургут
A95: Сыктывкар
A96: Таганрог
A97: Тамбов
A98: Тверь
A99: Тихвин
A100: Тихорецк
A101: Тобольск
A102: Томск
A103: Тула
A104: Тюмень
A105: Улан-Удэ
A106: Ульяновск
A107: Уренгой
A108: Уфа
A109: Ухта
A110: Феодосия
A111: Хабаровск
A112: Ханты-Мансийск
A113: Чебоксары
A114: Челябинск
A115: Черкесск
A116: Чита
A117: Элиста
A118: Южно-Сахалинск
A119: Якутск
A120: Ялта
A121: Ярославль
A125: Алтайский край | B125: 7.43
A126: Амурская область | B126: 6.82
A127: Архангельская область: районы Крайнего Cевера | B127: 8.9
A128: Архангельская область:районы остр.Север.Ледов. Океана | B128: 11.42
A129: Астраханская область | B129: 6.97
A130: Белгородская область | B130: 6.31
A131: Брянская область | B131: 5.68
A132: Владимирская область | B132: 5.85
A133: Волгоградская область | B133: 6.94
A134: Вологодская область | B134: 7.48
A135: Воронежская область | B135: 5.64
A136: г. Москва | B136: 6.26
A137: г. Санкт-Петербург | B137: 6.41
A138: г. Севастополь | B138: 6.04
A139: Еврейская автономная область | B139: 5.32
A140: Забайкальский край | B140: 8.05
A141: Ивановская область | B141: 6.43
A142: Иркутская область | B142: 7.82
A143: Кабардино-Балкарская Республика | B143: 6.24
A144: Калининградская область | B144: 7.28
A145: Калужская область | B145: 6.1
A146: Камчатский край | B146: 10.88
A147: Карачаево-Черкесская Республика | B147: 6.38
A148: Кемеровская область - Кузбасс | B148: 7.9
A149: Кировская область | B149: 6.11
A150: Костромская область | B150: 6.43
A151: Краснодарский край | B151: 6.88
A152: Красноярский край | B152: 8.25
A153: Курганская область | B153: 5.98
A154: Курская область | B154: 7.62
A155: Ленинградская область | B155: 5.72
A156: Липецкая область | B156: 5.88
A157: Магаданская область | B157: 11.34
A158: Московская область | B158: 6.58
A159: Мурманская область | B159: 7.66
A160: Ненецкий автономный округ | B160: 8.39
A161: Нижегородская область: вся терр., кроме г. Сарова | B161: 6.32
A162: Нижегородская область: г. Саров | B162: 5.93
A163: Новгородская область | B163: 6.79
A164: Новосибирская область | B164: 5.97
A165: Омская область | B165: 8.91
A166: Оренбургская область | B166: 6.76
A167: Орловская область | B167: 6.64
A168: остальная территория Архангельской области | B168: 7.75
A169: Пензенская область | B169: 5.99
A170: Пермский край | B170: 5.98
A171: Приморский край | B171: 8.42
A172: Псковская область | B172: 6.72
A173: Республика Адыгея (Адыгея) | B173: 6.93
A174: Республика Алтай | B174: 5.66
A175: Республика Башкортостан | B175: 6.08
A176: Республика Бурятия | B176: 8.98
A177: Республика Дагестан | B177: 6.04
A178: Республика Ингушетия | B178: 6.04
A179: Республика Калмыкия | B179: 6.48
A180: Республика Карелия | B180: 8.17
A181: Республика Коми:1 зона(г. Сыктывкар, Княжпогостский, Сысольский, Сыктывдинский, Койгородский, Усть-Вымский, Усть-Куломский, Корткеросский, Прилузский районы) | B181: 7.16
A182: Республика Коми:2 зона(г. Ухта,Сосногорский,Троицко-Печорский, Удорский районы, г. Вуктыл) | B182: 7.15
A183: Республика Коми:3 зона(г.Печора,Ижемский,Усть-Цилемский районы) | B183: 7.94
A184: Республика Коми:4 зона (г. Инта, г. Усинск) | B184: 7.94
A185: Республика Коми:5 зона (г. Воркута) | B185: 7.98
A186: Республика Крым | B186: 6.04
A187: Республика Марий Эл | B187: 5.35
A188: Республика Мордовия | B188: 6.86
A189: Республика Саха (Якутия) | B189: 11.29
A190: Республика Северная Осетия - Алания | B190: 6.85
A191: Республика Татарстан (Татарстан) | B191: 5.79
A192: Республика Тыва | B192: 8.31
A193: Республика Хакасия | B193: 7.56
A194: Ростовская область | B194: 6.99
A195: Рязанская область | B195: 6.11
A196: Самарская область | B196: 7.19
A197: Саратовская область | B197: 6.89
A198: Сахалинская область | B198: 8.47
A199: Свердловская область | B199: 7.4
A200: Смоленская область | B200: 6.88
A201: Ставропольский край | B201: 6.91
A202: Тамбовская область | B202: 6.76
A203: Тверская область | B203: 6.06
... 13 more rows

Sheet С2.2
L2: стандартизированные тарифные ставки
L3: ставки платы за единицу максимальной мощности
C4: Вернуться к заполнению исходных данных
E5: Форма С2.2
C6: Расчет базовой величины капитальных затрат на строительство тепловых сетей в базовом (2019) году
C8: № пп | D8: Наименование | E8: Значения
C9: 1 | D9: 2 | E9: 3
C10: 1 | D10: Сметная стоимость строительно-монтажных и пусконаладочных работ по объекту строительства "Внешние инженерные сети теплоснабжения", учитывающая прямые затраты, накладные расходы и сметную прибыль, в ценах 2001 года,тыс. рублей (Р) | E10: =IF('С2.1'!$E$15="нет",VLOOKUP(Data2.1!$J$27,'И2.1'!$A$160:$F$171,4,FALSE),IF('С2.1'!$E$15="да",VLOOKUP(Data2.1!$J$27,'И2.1'!$A$160:$F$171,6,FALSE),0)) -> 5802
C11: 2 | D11: Территория,в отношении которой установлен индекс изменения сметной стоимости строительно-монтажных и пусконаладочных работ (выберите из списка) | E11: 36 | G11: (см.примечание №1)
C12: 3 | D12: Индекс изменения сметной стоимости строительно-монтажных и пусконаладочных работ по объекту строительства "Внешние инженерные сети теплоснабжения" на базовый год (И) | E12: 8.39
C13: 4 | D13: Коэффициент, применяемый для учета повышенной нормы накладных расходов к индексу изменения сметной стоимости строительно-монтажных и пусконаладочных работ в случае отнесения поселения, городского округа к районам Крайнего Севера или местностям, приравненным к районам Крайнего Севера (Ккс) | E13: =IF('С2.1'!E22='С2.1'!T5,1.02,IF('С2.1'!E22='С2.1'!T6,1.01,1)) -> 1.02
C14: 5 | D14: Базовая величина капитальных затрат на основные средства тепловых сетей в базовом году, тыс.рублей (КЗОбсети(б)) | E14: =IF('С2.1'!$E$15="нет",VLOOKUP(Data2.1!$J$27,'И2.1'!$A$160:$F$171,3,FALSE),IF('С2.1'!$E$15="да",VLOOKUP(Data2.1!$J$27,'И2.1'!$A$160:$F$171,5,FALSE),0)) -> 25605
C15: 6 | D15: Сметная норма дополнительных затрат по виду строительства "Энергетическое строительство. Тепловые сети",% (z) | E15: 0.036 | G15: (см.примечание №2)
C16: 7 | D16: Коэффициент к сметным нормам по видам строительства (h) | E16: 1.4 | G16: (см.примечание №3)
C17: 8 | D17: Базовая величина капитальных затрат на строительство тепловых сетей в базовом (2019) году, тыс.рублей (КЗбсети(б)) | E17: =(E10*E12*E13+E14)*(1.133788507+1.0600286*E15*E16) -> 89346.58229
C19: Перейти на лист расчета составляющей, обеспечивающей возврат капитальных затрат
C20: Перейти на лист "Итог"
C21: Примечание:
C22: 1 | D22: Расшифровка используемых сокращений в строке 2 согласно таблице 3 раздела II Технико-экономических параметров работы котельных и тепловых сетей: Архангельская область: районы Крайнего Cевера (районы Лешуконский, Мезенский, Пинежский и город Северодвинск с территорией, находящейся в подчинении Северодвинского городского Совета народных депутатов) районы островов Северного Ледовитого океана и его морей (за исключением островов Белого моря) Республика Коми: 1 зона (г. Сыктывкар, Княжпогостский, Сысольский, Сыктывдинский, Койгородский, Усть-Вымский, Усть-Куломский, Корткеросский, Прилузский районы) 2 зона (г. Ухта, Сосногорский, Троицко-Печорский, Удорский районы, г. Вуктыл) 3 зона (г. Печора, Ижемский, Усть-Цилемский районы) 4 зона (г. Инта, г. Усинск) 5 зона (г. Воркута)
C23: 2 | D23: Сметная норма дополнительных затрат по виду строительства "Энергетическое строительство. Тепловые сети", дифференцированная по температурным зонам, указывается в соответствии с данными в таблице 4 Сборника сметных норм дополнительных затрат при производстве строительно-монтажных работ в зимнее время (ГСН 81-05-02-2007).
C24: 3 | D24: Коэффициент к сметным нормам по видам строительства, дифференцированный по температурным зонам и территориям субъектов Российской Федерации, указывается в соответствии с данными в Приложении № 1 Сборника сметных норм дополнительных затрат при производстве строительно-монтажных работ в зимнее время (ГСН 81-05-02-2007). В отношении систем теплоснабжения, расположенных на территории Республики Крым и г. Севастополя, применяется коэффициент, определенный в отношении Республики Дагестан (остальная территория республики).

Sheet С2.3
C4: Вернуться к заполнению исходных данных
F5: Форма С2.3
C6: Расчет затрат на подключение (технологическое присоединение) котельной к централизованной системе водоснабжения и водоотведения в базовом (2019) году
C8: № пп | D8: Наименование | E8: Значения | F8: Источник информации
C9: 1 | D9: 2 | E9: 3 | F9: 4
C10: 1 | D10: Технико-экономические параметры работы котельных и тепловых сетей, используемые для расчета:
C11: 1.1 | D11: Величина подключаемой (технологически присоединяемой) нагрузки к централизованной системе водоснабжения, куб. м/сут | E11: =И2!$D$103 -> 9.89
C12: 1.2 | D12: Величина подключаемой (технологически присоединяемой) нагрузки к централизованной системе водоотведения, куб. м/сут | E12: =И2!$D$104 -> 0.56
C13: 1.3 | D13: Протяженность сетей от котельной до места подключения к централизованной системе водоснабжения и водоотведения, м | E13: =И2!$D$105 -> 300
C14: 1.4 | D14: Базовая ставка тарифа за подключаемую (технологически присоединяемую) нагрузку водопроводной сети, руб./куб. м/сут | E14: =И2!$D$106 -> 61211
C15: 1.5 | D15: Базовая ставка тарифа за расстояние от точки подключения (технологического присоединения) котельной до точки подключения водопроводных сетей к централизованной системе водоснабжения, руб./м | E15: =И2!$D$107 -> 45675
C16: 1.6 | D16: Базовая ставка тарифа за подключаемую (технологически присоединяемую) нагрузку канализационной сети, руб./куб. м/сут | E16: =И2!$D$108 -> 65637
C17: 1.7 | D17: Базовая ставка тарифа за расстояние от точки подключения (технологического присоединения) котельной до точки подключения канализационных сетей к централизованной системе водоотведения, руб./м | E17: =И2!$D$109 -> 31684
C18: 1.8
C20: 2 | D20: Исходные данные, используемые для расчета затрат на подключение (технологическое присоединение) котельной к централизованной системе водоснабжения и водоотведения в базовом (2019) году:
C21: 2.1 | D21: Гарантирующая организация в сфере холодного водоснабжения, обеспечивающая максимальный объем отпуска воды в поселении, городском округе, на территории которого находится система теплоснабжения
C22: 2.2 | D22: Ставка тарифа за подключаемую (технологически присоединяемую) нагрузку водопроводной сети, действующая на день окончания базового (2019) года, без НДС, руб./куб. м/сут | H22: (см.примечание №1)
C23: 2.3 | D23: Ставка тарифа за расстояние от точки подключения (технологического присоединения) котельной до точки подключения водопроводных сетей к централизованной системе водоснабжения, действующих на день окончания базового (2019) года, без НДС, руб./м | H23: (см.примечание №1)
C24: 2.4 | D24: Затраты на подключение (технологическое присоединение) котельной к централизованной системе водоснабжения в базовом (2019) году, тыс. руб. (ТПбвс) | E24: =(IF(E22<>"",E22,E14)*E11+IF(E23<>"",E23,E15)*E13)/1000 -> 14307.87679
C25: 2.5 | D25: Гарантирующая организация в сфере холодного водоотведения, обеспечивающая максимальный объем принятых сточных вод в поселении, городском округе, на территории которого находится система теплоснабжения
C26: 2.6 | D26: Ставка тарифа за подключаемую (технологически присоединяемую) нагрузку канализационной сети, действующая на день окончания базового (2019) года, без НДС, руб./куб. м/сут | H26: (см.примечание №1)
C27: 2.7 | D27: Ставка тарифа за расстояние от точки подключения (технологического присоединения) котельной до точки подключения канализационных сетей к централизованной системе водоотведения, действующая на день окончания базового (2019) года, без НДС, руб./м | H27: (см.примечание №1)
C28: 2.8 | D28: Затраты на подключение (технологическое присоединение) котельной к централизованной системе водоотведения в базовом (2019) году, тыс. руб. (ТПбво) | E28: =(IF(E26<>"",E26,E16)*E12+IF(E27<>"",E27,E17)*E13)/1000 -> 9541.95672
C30: Перейти на лист расчета составляющей, обеспечивающей возврат капитальных затрат
C31: Перейти на лист "Итог"
C32: Примечание:
C33: 1 | D33: В гр. 3 стр. 2.2, 2.3, 2.6, 2.7 вводятся действующие на день окончания базового (2019) года ставки тарифов, установленные органом исполнительной власти субъекта РФ в области государственного регулирования тарифов в отношении гарантирующей организации в сфере холодного водоснабжения с максимальным объемом отпуска воды в населенном пункте, на территории которого находится система теплоснабжения, определенным на основании схемы водоснабжения и водоотведения. При отсутствии одной или нескольких установленных ставок, указанные строки не заполняются, значение ставки автоматически принимается равным указанному в ТЭП.

Sheet С2.4
C4: Вернуться к заполнению исходных данных
G5: Форма С2.4
D6: Информация об удельной базовой стоимости земельного участка для размещения котельной | K6: <выберите наименование>
K7: среднее значение удельного показателя кадастровой стоимости земельных участков для кадастрового квартала, в границах которого располагается система теплоснабжения
D8: Способ определения удельной базовой стоимости земельного участка для размещения котельной | E8: удельная кадастровая стоимость земельного участка | K8: среднее значение удельного показателя кадастровой стоимости земельных участков для поселения, городского округа
K9: среднее значение удельного показателя кадастровой стоимости земельных участков для муниципального района, в состав которого входит поселение
D10: Удельная базовая стоимость земельного участка, тыс. руб./кв.м (Рk,б) | E10: =IF(F13="до 31.12.2015 (включительно)",F16*1.2929,IF(F13="после 31.12.2015",F16,"")) -> 1.257254747 | K10: средний уровень кадастровой стоимости земель по муниципальному району, в состав которого входит соответствующее поселение или городской округ
D11: Информация об удельной кадастровой стоимости земельного участка в базовом (2019) году:
D12: Реквизиты нормативного акта, содержащего результаты определения кадастровой стоимости земель населенных пунктов субъекта Российской Федерации, действующие на день окончания базового (2019) года
D13: Результаты определения кадастровой стоимости, действующие на день окончания базового (2019) года были утверждены в период (выберите из списка) | F13: до 31.12.2015 (включительно)
D14: Наименование показателя кадастровой стоимости земельного участка (выберите из списка) | F14: среднее значение удельного показателя кадастровой стоимости земельных участков для поселения, городского округа
D15: Вид разрешенного использования земельного участка в соответствии с нормативным актом, содержащим результаты определения кадастровой стоимости земель населенных пунктов субъекта Российской Федерации | F15: Земельные участки, предназначенные для размещения производственных и административных зданий, строений, сооружений промышленности, коммунального хозяйства, материально-технического, продовольственного снабжения, сбыта и заготовок | I15: (см.примечание №1)
D16: Удельная кадастровая стоимость земельного участка, полученная на основе результатов определения кадастровой стоимости земель населенных пунктов субъекта Российской Федерации, действующих на день окончания базового (2019) года, тыс. руб./кв. м | F16: =972.43/1000 -> 0.97243
C18: Перейти на лист расчета составляющей, обеспечивающей возврат капитальных затрат
C19: Перейти на лист "Итог"
C20: Примечание:
C21: 1 | D21: Вид разрешенного использования земельного участка выбирается в соответствии с пунктом 25 Правил

Sheet Data2.4 (hidden)
B1: Удалить | D1: 0 | E1: 0
B10: Удалить | D10: 0 | E10: 0 | F10: 10

Sheet С2.5
C4: Вернуться к заполнению исходных данных
H5: Форма С2.5
D6: Расчет индекса цен производителей промышленной продукции в i-м расчетном периоде регулирования
D8: Период регулирования (i)-й | E8: =И1!E8 -> 2024
D10: Наименование | E10: 2020 | F10: =E10+1 -> 2021 | G10: =F10+1 -> 2022 | H10: 2023 | I10: 2024 | J10: 2025 | K10: 2026 | L10: 2027 | M10: 2028 | N10: 2029 | O10: 2030 | P10: 2031 | Q10: 2032 | R10: 2033 | S10: 2034 | T10: 2035 | U10: 2036 | V10: 2037 | W10: 2038 | X10: 2039 | Y10: 2040 | Z10: 2041 | AA10: 2042 | AB10: 2043 | AC10: 2044 | AD10: 2045 | AE10: 2046 | AF10: 2047 | AG10: 2048 | AH10: 2049 | AI10: 2050 | AJ10: 2051 | AK10: 2052 | AL10: 2053 | AM10: 2054 | AN10: 2055 | AO10: 2056 | AP10: 2057 | AQ10: 2058 | AR10: 2059 | AS10: 2060 | AT10: 2061 | AU10: 2062 | AV10: 2063 | AW10: 2064 | AX10: 2065 | AY10: 2066 | AZ10: 2067 | BA10: 2068 | BB10: 2069 | BC10: 2070 | BD10: 2071 | BE10: 2072 | BF10: 2073 | BG10: 2074 | BH10: 2075 | BI10: 2076 | BJ10: 2077 | BK10: 2078 | BL10: 2079 | BM10: 2080 | BN10: 2081 | BO10: 2082 | BP10: 2083 | BQ10: 2084 | BR10: 2085 | BS10: =BR10+1 -> 2086 | BT10: 2087 | BU10: 2088 | BV10: 2089 | BW10: =BV10+1 -> 2090 | BX10: 2091 | BY10: 2092 | BZ10: 2093 | CA10: 2094 | CB10: 2095 | CC10: 2096 | CD10: 2097 | CE10: 2098 | CF10: 2099 | CG10: 2100
D11: Индекс цен производителей промышленной продукции (в среднем за год к предыдущему году), % г/г (ИЦПпб+1, ИЦПпб+2,…,ИЦПпi) | E11: =97.1%-1 -> -0.029 | F11: 0.245 | G11: 0.114 | H11: 0.024 | I11: 0.086 | J11: 0.2121596086 | K11: 0.03581336177 | L11: 0.0326823036 | CI11: (см.примечание №1)
D12: Индекс цен производителей промышленной продукции (накопленным итогом), % (по годам, начиная с (б+1)-го года до i-го года (ИЦПi)) | E12: =1+E11 -> 0.971 | F12: =E12*(1+F11) -> 1.208895 | G12: =F12*(1+G11) -> 1.34670903 | H12: =G12*(1+H11) -> 1.379030047 | I12: =H12*(1+I11) -> 1.497626631 | J12: =I12*(1+J11) -> 1.815362511 | K12: =J12*(1+K11) -> 1.880376745 | L12: 1.941831789 | M12: 1.941831789 | N12: 1.941831789 | O12: 1.941831789 | P12: 1.941831789 | Q12: 1.941831789 | R12: 1.941831789 | S12: 1.941831789 | T12: 1.941831789 | U12: 1.941831789 | V12: 1.941831789 | W12: 1.941831789 | X12: 1.941831789 | Y12: 1.941831789 | Z12: 1.941831789 | AA12: 1.941831789 | AB12: 1.941831789 | AC12: 1.941831789 | AD12: 1.941831789 | AE12: 1.941831789 | AF12: 1.941831789 | AG12: 1.941831789 | AH12: 1.941831789 | AI12: 1.941831789 | AJ12: 1.941831789 | AK12: 1.941831789 | AL12: 1.941831789 | AM12: 1.941831789 | AN12: 1.941831789 | AO12: 1.941831789 | AP12: 1.941831789 | AQ12: 1.941831789 | AR12: 1.941831789 | AS12: 1.941831789 | AT12: 1.941831789 | AU12: 1.941831789 | AV12: 1.941831789 | AW12: 1.941831789 | AX12: 1.941831789 | AY12: 1.941831789 | AZ12: 1.941831789 | BA12: 1.941831789 | BB12: 1.941831789 | BC12: 1.941831789 | BD12: 1.941831789 | BE12: 1.941831789 | BF12: 1.941831789 | BG12: 1.941831789 | BH12: 1.941831789 | BI12: 1.941831789 | BJ12: 1.941831789 | BK12: 1.941831789 | BL12: 1.941831789 | BM12: 1.941831789 | BN12: 1.941831789 | BO12: 1.941831789 | BP12: 1.941831789 | BQ12: 1.941831789 | BR12: 1.941831789 | BS12: 1.941831789 | BT12: 1.941831789 | BU12: 1.941831789 | BV12: 1.941831789 | BW12: =BV12*(1+BW11) -> 1.941831789 | BX12: =BW12*(1+BX11) -> 1.941831789 | BY12: =BX12*(1+BY11) -> 1.941831789 | BZ12: =BY12*(1+BZ11) -> 1.941831789 | CA12: =BZ12*(1+CA11) -> 1.941831789 | CB12: =CA12*(1+CB11) -> 1.941831789 | CC12: =CB12*(1+CC11) -> 1.941831789 | CD12: =CC12*(1+CD11) -> 1.941831789 | CE12: =CD12*(1+CE11) -> 1.941831789 | CF12: =CE12*(1+CF11) -> 1.941831789 | CG12: =CF12*(1+CG11) -> 1.941831789
D14: Источник информации
D15: на 2020: Прогноз социально-экономического развития Российской Федерации на 2022 год и на плановый период 2023 и 2024 годов (размещен на официальном сайте Минэкономразвития России 30.09.2021): файл в формате Microsoft Excel «12. Дефляторы базовый», таблица «Прогноз индексов цен производителей и индексов-дефляторов по видам экономической деятельности, в % г/г (Базовый вариант)», отрасль «Промышленность (BСDE)», (показатель «ИЦП»). На 2021 год: Прогноз социально-экономического развития Российской Федерации на 2023 год и на плановый период 2024 и 2025 годов (размещен на официальном сайте Минэкономразвития России 28.09.2022): файл в формате Microsoft Excel «7. Дефляторы базовый», таблица «Прогноз индексов цен производителей и индексов-дефляторов по видам экономической деятельности, в % г/г (Базовый)», отрасль «Промышленность (BСDE)», (показатель «ИЦП»); на 2022-2024 годы: Прогноз социально-экономического развития Российской Федерации на 2024 год и на плановый период 2025 и 2026 годов (размещен на официальном сайте Минэкономразвития России 22.09.2023): файл в формате Microsoft Excel «6. Дефляторы базовый», таблица «Прогноз индексов цен производителей и индексов-дефляторов по видам экономической деятельности, в % г/г (Базовый)», отрасль «Промышленность (BСDE)», (показатель «ИЦП»)
C17: Перейти на лист расчета составляющей, обеспечивающей возврат капитальных затрат
C18: Перейти на лист "Итог"
C19: Примечание:
C20: 1 | D20: Значения, указанные в Прогнозе социально-экономического развития, необходимо перевести в % сверх 100%. Полученные значения в % указываются с точностью до первого знака после запятой (десятых долей процента), при этом округление первого знака после запятой производится по правилам математического округления.

Sheet С2.6
C4: Вернуться к заполнению исходных данных
H5: Форма С2.6
D6: Расчет средневзвешенной по дням 9 месяцев (i-1)-го расчетного периода регулирования ключевой ставки Центрального банка Российской Федерации | K6: Ввести средневзвешенную по объему цену
K7: Ввести информацию для расчета средневзвешенной по объему цены
D8: Наименование | F8: Значения | G8: Источник информации
D9: Период регулирования (i-1)-й | F9: =И1!E9 -> 2023
D10: Число дней 9 месяцев (i-1)-го расчетного периода регулирования, сут | F10: 273
D11: Средневзвешенная по дням 9 месяцев (i-1)-го расчетного периода регулирования ключевая ставка Центрального банка Российской Федерации, % (КСi-1) | F11: =IF((SUMPRODUCT(D16:D1002,G16:G1002)/F10)=0,"",SUMPRODUCT(D16:D1002,G16:G1002)/F10) -> 0.08402930403 | G11: Информация с официального сайта Банка России | J11: (см.примечание №1) | L11: start1
L12: start2
D13: Информация для расчета средневзвешенной по дням 9 месяцев (i-1)-го расчетного периода регулирования ключевой ставки Центрального Банка Российской Федерации | H13: Источник данных
D14: Размер ключевой ставки (%, годовых) | E14: Срок, с которого установлена ставка (начиная с 01.01.(i-1)) | F14: Срок, до которого действовала ставка (не позднее 30.09.(i-1)) | G14: Срок действия ставки, сут
D15: 1 | E15: 2 | F15: 3 | G15: 4 | H15: 5 | J15: (см.примечание №2)
D16: 0.075 | E16: 2023-01-01 | F16: 2023-07-23 | G16: =IF(AND(E16="",F16=""),0,F16-E16+1) -> 204 | H16: Информация с официального сайта Банка России от 16.09.2022
B17: Удалить | D17: 0.085 | E17: 2023-07-24 | F17: 2023-08-14 | G17: =IF(AND(E17="",F17=""),0,F17-E17+1) -> 22 | H17: Информация с официального сайта Банка России от 21.07.2023
B18: Удалить | D18: 0.12 | E18: 2023-08-15 | F18: 2023-09-17 | G18: 34 | H18: Информация с официального сайта Банка России от 15.08.2023
B19: Удалить | D19: 0.13 | E19: 2023-09-18 | F19: 2023-09-30 | G19: 13 | H19: Информация с официального сайта Банка России от 15.09.2023
D20: Добавить строку | L20: end2
C22: Перейти на лист расчета составляющей, обеспечивающей возврат капитальных затрат
C23: Перейти на лист "Итог"
C24: Примечание:
C25: 1 | D25: В гр. "Источник информации" перечисляются наименования документов, в которых сообщены размеры ключевых ставок, действовавших в промежутке с 01.01.(i-1) года по 30.09.(i-1) года.
C26: 2 | D26: В гр.2 и гр.3 срок вводится в виде даты в формате ДД.ММ.ГГГГ. Если ключевая ставка была установлена до (i-1)-го года, в гр.2 вводится дата 01.01.(i-1). Если срок действия ключевой ставки завершается позднее 30.09.(i-1), то в гр.3 вводится дата 30.09.(i-1).

Sheet Data2.6 (hidden)
B1: Удалить | G1: =IF(AND(E1="",F1=""),0,F1-E1+1) -> 0

Sheet С3
C4: Перейти на лист ввода исходных данных
F5: Форма С3
C6: Расчет составляющей предельного уровня цены на тепловую энергию (мощность), обеспечивающей компенсацию расходов на уплату налогов
C8: Период регулирования (i)-й | E8: =И1!E8 -> 2024
C10: № пп | D10: Наименование | E10: Единицы измерения | F10: Значения
C11: 1 | D11: 2 | E11: 3 | F11: 4
C12: 1 | D12: Составляющая предельного уровня цены на тепловую энергию (мощность), обеспечивающая компенсацию расходов на уплату налогов в i-м расчетном периоде регулирования (Нi) | E12: руб./Гкал | F12: =(F14+F19+F22)/F13 -> 561.3820345 | I12: п.27 ф.(13)
C13: 1.1 | D13: Объем полезного отпуска тепловой энергии котельной (QПО) | E13: тыс. Гкал | F13: =С2!F37 -> 24.684366 | I13: формула расчета. КИУМ с С2.1
C14: 1.2 | D14: Расходы на уплату налога на прибыль от деятельности, связанной с производством и поставкой тепловой энергии (мощности), в i-м расчетном периоде регулирования (Нiп) | E14: тыс. руб. | F14: =(F16*F13-F17/F18)*F15/(1-F15) -> 8614.09749 | I14: п.28 ф.(14)
C15: 1.2.1 | D15: Ставка налога на прибыль от деятельности, связанной с производством и поставкой тепловой энергии (мощности), установленная в соответствии с законодательством Российской Федерации о налогах и сборах и действующая в i-м расчетном периоде регулирования (tiп) | E15: % | F15: ='С3.1'!E12 -> 0.2
C16: 1.2.2 | D16: Составляющая предельного уровня цены на тепловую энергию (мощность), обеспечивающая возврат капитальных затрат на строительство котельной и тепловых сетей в i-м расчетном периоде регулирования (КРi) | E16: тыс. руб. | F16: =С2!F12 -> 2357.020669 | I16: ссылка на С2
C17: 1.2.3 | D17: Величина капитальных затрат на строительство котельной и тепловых сетей в i-м расчетном периоде регулирования (КЗi,k) | E17: тыс. руб. | F17: =С2!F13+С2!F18+С2!F22 -> 355877.5635
C18: 1.2.4 | D18: Период амортизации котельной и тепловых сетей (ПА) | E18: лет | F18: =И2!C416 -> 15 | I18: ссылка на ТЭП
C19: 1.3 | D19: Расходы на уплату налога на имущество в i-м расчетном периоде регулирования (Нiим) | E19: тыс. руб. | F19: =F20*(F17+F17*(1-F21/F18))/2 -> 5219.537598
C20: 1.3.1 | D20: Ставка налога на имущество, установленная в соответствующем субъекте Российской Федерации (без учета специальных льгот по налогу на имущество организаций) в соответствии с законодательством Российской Федерации о налогах и сборах и действующая в i-м расчетном периоде регулирования (tiим) | E20: % | F20: ='С3.1'!E13 -> 0.022
C21: 1.3.2 | D21: Срок возврата инвестированного капитала (СВК) | E21: лет | F21: =И2!C415 -> 10 | I21: ссылка на ТЭП
C22: 1.4 | D22: Расходы на уплату земельного налога в i-м расчетном периоде регулирования (Нiз) | E22: тыс. руб. | F22: =F23*F24 -> 23.7245172
C23: 1.4.1 | D23: Ставка земельного налога, установленная в соответствии с законодательством Российской Федерации о налогах и сборах и нормативными правовыми актами представительных органов муниципального образования, на территории которого находится система теплоснабжения, и действующая в i-м расчетном периоде регулирования (tiз) | E23: % | F23: ='С3.1'!E14 -> 0.003
C24: 1.4.2 | D24: Стоимость земельного участка для размещения котельной в i-м расчетном периоде регулирования (Зi,k) | E24: тыс. руб. | F24: =С2!F26 -> 7908.172401
C26: Вернуться на лист "Содержание"
C27: Перейти на лист "Итог"

Sheet С3.1
C4: Вернуться на лист "Содержание"
F5: Форма С3.1
C6: Исходные данные для расчета составляющей предельного уровня цены на тепловую энергию (мощность), обеспечивающей компенсацию расходов на уплату налогов
C8: Период регулирования (i)-й | E8: =И1!E8 -> 2024
C10: № пп | D10: Наименование | E10: Значения | F10: Источник информации
C11: 1 | D11: 2 | E11: 3 | F11: 4
C12: 1 | D12: Ставка налога на прибыль от деятельности, связанной с производством и поставкой тепловой энергии (мощности), установленная в соответствии с законодательством Российской Федерации о налогах и сборах и действующая в i-м расчетном периоде регулирования, % (tiп) | E12: 0.2 | F12: "Налоговый кодекс Российской Федерации (часть вторая)" от 05.08.2000 N 117-ФЗ
C13: 2 | D13: Ставка налога на имущество, установленная в соответствующем субъекте Российской Федерации (без учета специальных льгот по налогу на имущество организаций) в соответствии с законодательством Российской Федерации о налогах и сборах и действующая в i-м расчетном периоде регулирования, % (tiим) | E13: 0.022 | F13: "Налоговый кодекс Российской Федерации (часть вторая)" от 05.08.2000 N 117-ФЗ
C14: 3 | D14: Ставка земельного налога, установленная в соответствии с законодательством Российской Федерации о налогах и сборах и нормативными правовыми актами представительных органов муниципального образования, на территории которого находится система теплоснабжения, и действующая в i-м расчетном периоде регулирования, % (tiз) | E14: 0.003 | F14: Решение Совета МО "Муниципальный район "Заполярный район" от 27 октября 2006 г. N 108
C15: Перейти на лист расчета составляющей, обеспечивающей компенсацию расходов на уплату налогов
C16: Перейти на лист "Итог"

Sheet С4
C4: Перейти на лист ввода исходных данных
F5: Форма С4
C6: Расчет составляющей предельного уровня цены на тепловую энергию (мощность), обеспечивающей компенсацию прочих расходов при производстве тепловой энергии котельной
C8: Период регулирования (i)-й | E8: =И1!E8 -> 2024
C10: № пп | D10: Наименование | E10: Единицы измерения | F10: Значения
C11: 1 | D11: 2 | E11: 3 | F11: 4
C12: 1 | D12: Составляющая предельного уровня цены на тепловую энергию (мощность), обеспечивающая компенсацию прочих расходов при производстве тепловой энергии котельной в i-м расчетном периоде регулирования (ПРi) | E12: руб./Гкал | F12: =(F15+F30)/F13 -> 2953.198274
C13: 1.1 | D13: Объем полезного отпуска тепловой энергии котельной (QПО) | E13: тыс. Гкал | F13: =С2!F37 -> 24.684366
C14: 1.2 | D14: Индекс цен производителей промышленной продукции в i-м расчетном периоде регулирования (накопленным итогом) (ИЦПi) | E14: % | F14: =С2!F35 -> 1.497626631
C15: 1.3 | D15: Прочие расходы при производстве тепловой энергии котельной в i-м расчетном периоде регулирования (ПРiпроч) | E15: тыс. руб. | F15: =(F16+F21+F26+F27)*F14 -> 63184.34925
C16: 1.3.1 | D16: Расходы на техническое обслуживание и ремонт основных средств котельной с использованием угля и тепловых сетей в базовом (2019) году (ТОб,k) | E16: тыс. руб. | F16: =F17*F18+F19*F20 -> 1855.015
C17: 1.3.1.1 | D17: Базовая величина капитальных затрат на основные средства котельной с использованием угля в базовом году (КЗОб,kкот(б)) | E17: тыс. руб. | F17: =И2!D22 -> 73547
C18: 1.3.1.2 | D18: Коэффициент расходов на техническое обслуживание и ремонт основных средств котельной (Кkкот, ТО) | F18: =И2!D23 -> 0.02
C19: 1.3.1.3 | D19: Базовая величина капитальных затрат на основные средства тепловых сетей в базовом году (КЗОбсети(б)) | E19: тыс. руб. | F19: ='С2.2'!E14 -> 25605
C20: 1.3.1.4 | D20: Коэффициент расходов на техническое обслуживание и ремонт основных средств тепловых сетей (Ксети, ТО) | F20: =И2!D41 -> 0.015
C21: 1.3.2 | D21: Расходы на электрическую энергию на собственные нужды котельной с использованием угля в базовом (2019) году (РЭб,k) | E21: тыс. руб. | F21: =F22*F23*F24*F25/1000 -> 24777.10869
C22: 1.3.2.1 | D22: Среднеарифметическая величина из значений цен (тарифов) на электрическую энергию (мощность), поставляемую покупателям на розничном рынке, функционирующем в поселении или городском округе, на территории которого находится система теплоснабжения, в базовом (2019) году для категории потребителей, установленной технико-экономическими параметрами работы котельных и тепловых сетей, без НДС (ЦЭб) | E22: руб./кВтч | F22: =IF('С4.1'!E15="",0,'С4.1'!E15) -> 39.035
C23: 1.3.2.2 | D23: Общая максимальная мощность энергопринимающих устройств котельной с использованием угля (Эk) | E23: кВт | F23: =И2!D54 -> 180
C24: 1.3.2.3 | D24: Продолжительность годовой работы оборудования котельной с учетом коэффициента готовности (ГР) | E24: ч | F24: =С2!F39 -> 8497.2
C25: 1.3.2.4 | D25: Коэффициент использования установленной тепловой мощности котельной (КИУМ) | F25: =С2!F42 -> 0.415
C26: 1.3.3 | D26: Расходы на водоподготовку и водоотведение котельной в базовом (2019) году (РВб) | E26: тыс. руб. | F26: ='С4.1'!E16 -> 11903.42433
C27: 1.3.4 | D27: Расходы на оплату труда персонала котельной с использованием угля в базовом (2019) году (РПб,k) | E27: тыс. руб. | F27: =F28+F29 -> 3654.1059
C28: 1.3.4.1 | D28: Заработная плата сотрудников котельной, производящей тепловую энергию с использованием угля, в базовом (2019) году | E28: тыс. руб. | F28: ='С4.4'!F27 -> 2749.619746
C29: 1.3.4.2 | D29: Расходы на уплату в базовом (2019) году страховых взносов по персоналу котельной, определяемые в соответствии с требованиями законодательства Российской Федерации о страховых взносах исходя из расходов на оплату труда персонала котельной (Рб,kСВ) | E29: тыс. руб. | F29: ='С4.4'!F36 -> 904.486154
C30: 1.4 | D30: Иные прочие расходы при производстве тепловой энергии котельной в i-м расчетном периоде регулирования (ПРiиные) | E30: тыс. руб. | F30: =0.05*(F31+F32*F13)+F33 -> 9713.477819
C31: 1.4.1 | D31: Прочие расходы при производстве тепловой энергии котельной в i-м расчетном периоде регулирования без учета расходов на электрическую энергию на собственные нужды котельной в базовом (2019) году (ПРiпроч(п)) | E31: тыс. руб. | F31: =(F16+F26+F27)*F14 -> 26077.49144
C32: 1.4.2 | D32: Составляющая предельного уровня цены на тепловую энергию (мощность), обеспечивающая компенсацию расходов на уплату налогов в i-м расчетном периоде регулирования (Нi) | E32: руб./Гкал | F32: =С3!F12 -> 561.3820345
C33: 1.4.3 | D33: Расходы на плату за выбросы загрязняющих веществ в атмосферный воздух в пределах установленных нормативов и (или) лимитов, на утилизацию и размещение золы и шлака для котельной с использованием угля в i-м расчетном периоде регулирования (ЗВiуголь) | E33: тыс. руб. | F33: =0.07*F34*F13+F35 -> 7716.735266
C34: 1.4.3.1 | D34: Составляющая предельного уровня цены на тепловую энергию (мощность), обеспечивающая компенсацию расходов на топливо (уголь) при производстве тепловой энергии котельной в i-м расчетном периоде регулирования (РТi) | E34: руб./Гкал | F34: =С1!F12 -> 4455.505036
C35: 1.4.3.2 | D35: Дополнительные расходы на плату за выбросы загрязняющих веществ в атмосферный воздух в пределах установленных нормативов и (или) лимитов для котельной с использованием угля (Yiуголь) | E35: тыс. руб. | F35: =F36*F37/1000 -> 18.043074
C36: 1.4.3.2.1 | D36: Базовая величина платы за выбросы загрязняющих веществ в атмосферный воздух (ПВб) | E36: руб. | F36: =И2!C443 -> 14319.9
C37: 1.4.3.2.2 | D37: Коэффициент, применяемый к базовой величине платы за выбросы загрязняющих веществ в атмосферный воздух (КiОС) | F37: ='С4.1'!E12 -> 1.26
C39: Вернуться на лист "Содержание"
C40: Перейти на лист "Итог"

Sheet С4.1
C4: Вернуться на лист "Содержание"
F5: Форма С4.1
C6: Исходные данные для расчета составляющей предельного уровня цены на тепловую энергию (мощность), обеспечивающей компенсацию прочих расходов при производстве тепловой энергии котельной
C8: Период регулирования (i)-й | E8: =И1!E8 -> 2024
C10: № пп | D10: Наименование | E10: Значения | F10: Источник информации
C11: 1 | D11: 2 | E11: 3 | F11: 4
C12: 1 | D12: Коэффициент, применяемый к базовой величине платы за выбросы загрязняющих веществ в атмосферный воздух, в i-м расчетном периоде регулирования | E12: 1.26 | F12: Постановление Правительства РФ от 20 марта 2023 г. № 437 | H12: (см.примечание №1)
C14: 2 | D14: Вспомогательные расчеты исходных данных:
C15: 2.1 | D15: Среднеарифметическая величина из значений цен (тарифов) на электрическую энергию (мощность), поставляемую покупателям на розничном рынке, функционирующем в поселении или городском округе, на территории которого находится система теплоснабжения, в базовом (2019) году для категории потребителей, установленной технико-экономическими параметрами работы котельных и тепловых сетей, без НДС, руб./кВтч (ЦЭб) | E15: =IF(AND('С4.2'!F10>0,'С4.2'!F8="нет"),'С4.2'!F10,IF(AND('С4.2'!F16>0,'С4.2'!F8="да"),'С4.2'!F16,"")) -> 39.035 | F15: >>Перейти на лист вспомогательных расчетов исходных данных
C16: 2.2 | D16: Расходы на водоподготовку и водоотведение котельной в базовом (2019) году, тыс. руб. (РВб) | E16: ='С4.3'!E20 -> 11903.42433 | F16: >>Перейти на лист вспомогательных расчетов исходных данных
C17: 2.3 | D17: Расходы на оплату труда персонала котельной с использованием угля в базовом (2019) году, тыс. руб. (РПб,k) | E17: ='С4.4'!F27+'С4.4'!F36 -> 3654.1059 | F17: >>Перейти на лист вспомогательных расчетов исходных данных
C19: Перейти на лист расчета составляющей, обеспечивающей компенсацию прочих расходов
C20: Перейти на лист "Итог"
C21: Примечание:
C22: 1 | D22: Коэффициент, применяемый к базовой величине платы за выбросы загрязняющих веществ в атмосферный воздух, заполняется на основании размера дополнительного коэффициента, применяемого к ставкам платы за негативное воздействие на окружающую среду, утверждаемого ежегодно Правительством Российской Федерации в соответствии с законодательством в области охраны окружающей среды на i-й расчетный период регулирования. В случае если на дату определения предельного уровня цены на тепловую энергию (мощность) указанный дополнительный коэффициент на i-й расчетный период регулирования не установлен, то применяется последний установленный на дату определения предельного уровня цены на тепловую энергию (мощность) дополнительный коэффициент.

Sheet С4.2
C4: Вернуться к заполнению исходных данных
Q5: Форма С4.2
D6: Информация о цене (тарифе) на электрическую энергию (мощность), поставляемую покупателям на розничном рынке, функционирующем в поселении, городском округе, на территории которого находится система теплоснабжения, в базовом (2019) году
D8: Розничный рынок электрической энергии расположен в технологически изолированной территориальной энергетической системе или на территории, технологически не связанной с Единой энергетической системой России и технологически изолированными территориальными электроэнергетическими системами? (выберите из списка да/нет) | F8: да | S8: (см. примечание №1)
D10: Среднеарифметическая величина из значений цен (тарифов) на электрическую энергию (мощность), поставляемую покупателям на розничном рынке, функционирующем в поселении или городском округе, на территории которого находится система теплоснабжения, в базовом (2019) году для категории потребителей, установленной технико-экономическими параметрами работы котельных и тепловых сетей, без НДС, руб./кВтч (ЦЭб) | F10: =IFERROR(SUMIF(F15:Q15,">0",F15:Q15)/COUNTIF(F15:Q15,">0"),0) -> 0
D12: Наименование гарантирующего поставщика | E12: Источник информации | F12: Цена (тариф) на электрическую энергию (мощность), поставляемую покупателям на розничном рынке, функционирующем в поселении или городском округе, на территории которого находится система теплоснабжения, в базовом (2019) году для категории потребителей, установленной технико-экономическими параметрами работы котельных и тепловых сетей, без НДС, руб./кВтч
F13: январь | G13: февраль | H13: март | I13: апрель | J13: май | K13: июнь | L13: июль | M13: август | N13: сентябрь | O13: октябрь | P13: ноябрь | Q13: декабрь
D14: 1 | E14: 2 | F14: 3 | G14: 4 | H14: 5 | I14: 6 | J14: 7 | K14: 8 | L14: 9 | M14: 10 | N14: 11 | O14: 12 | P14: 13 | Q14: 14
D16: Среднеарифметическая величина из значений цен (тарифов) на электрическую энергию (мощность), поставляемую покупателям на розничном рынке, функционирующем в поселении или городском округе, на территории которого находится система теплоснабжения, в базовом (2019) году для категории потребителей, установленной технико-экономическими параметрами работы котельных и тепловых сетей, без НДС, руб./кВтч (ЦЭб) | F16: =IFERROR(SUMIF(F21:I21,">0",F21:I21)/COUNTIF(F21:I21,">0"),0) -> 39.035
D18: Наименование гарантирующего поставщика | E18: Источник информации | F18: Цена (тариф) на электрическую энергию (мощность), поставляемую покупателям на розничном рынке, функционирующем в поселении или городском округе, на территории которого находится система теплоснабжения, в базовом (2019) году для категории потребителей, установленной технико-экономическими параметрами работы котельных и тепловых сетей, без НДС, руб./кВтч
F19: 1 полугодие | H19: 2 полугодие
D20: 1 | E20: 2 | F20: 3 | H20: 4
D21: Муниципальное предприятие Заполярного района «Севержилкомсервис» | E21: Приказ Управления по государственному регулированию цен (тарифов) НАО от 18.12.18 №61 | F21: 33.95 | H21: 44.12
C23: Перейти на лист расчета составляющей, обеспечивающей компенсацию прочих расходов
C24: Перейти на лист "Итог"
C25: Примечание:
C26: 1 | D26: Указываются значения цен (тарифов) на электрическую энергию (мощность), поставляемую покупателям на розничном рынке, функционирующем в поселении или городском округе, на территории которого находится система теплоснабжения, определяемых гарантирующим поставщиком (устанавливаемых органом регулирования - для технологически изолированных территориальных энергетических систем и территорий, технологически не связанных с Единой энергетической системой России и технологически изолированными территориальными электроэнергетическими системами), в базовом (2019) году в соответствии с законодательством Российской Федерации об электроэнергетике для первой ценовой категории потребителей (для технологически изолированных территориальных электроэнергетических систем - категории, для которой применяется одноставочная цена (тариф) на электрическую энергию без дифференциации по зонам суток) на уровне напряжения СН2 (6-10 кВ), для максимальной мощности энергопринимающих устройств 180 кВт, в рублях/кВтч.

Sheet С4.3
C4: Вернуться к заполнению исходных данных
F5: Форма С4.3
C6: Расчет расходов на водоподготовку и водоотведение котельной в базовом (2019) году
C8: № пп | D8: Наименование | E8: Значения | F8: Источник информации
C9: 1 | D9: 2 | E9: 3 | F9: 4
C10: 1 | D10: Технико-экономические параметры работы котельных и тепловых сетей, используемые для расчета:
C11: 1.1 | D11: Расход воды на водоподготовку, куб.м/год | E11: =И2!D18 -> 1871
C12: 1.2 | D12: Расход воды на собственные нужды котельной, куб.м/год | E12: =И2!D19 -> 1636
C13: 1.3 | D13: Объем водоотведения, куб.м/год | E13: =И2!D20 -> 204
C15: 2 | D15: Исходные данные, используемые для расчета расходов на водоподготовку и водоотведение котельной в базовом (2019) году:
C16: 2.1 | D16: Гарантирующая организация в сфере холодного водоснабжения, обеспечивающая максимальный объем отпуска воды в поселении, городском округе, на территории которого находится система теплоснабжения | E16: ='С2.3'!E21 -> 0 | F16: ='С2.3'!F21 -> 0
C17: 2.2 | D17: Тариф на питьевую воду (питьевое водоснабжение), действующий на день окончания базового (2019) года, без НДС, руб./куб. м | E17: 3394.19 | F17: Приказ Управления по государственному регулированию цен (тарифов) НАО от 18.12.2018 № 65
C18: 2.3 | D18: Гарантирующая организация в сфере холодного водоотведения, обеспечивающая максимальный объем принятых сточных вод в поселении, городском округе, на территории которого находится система теплоснабжения | E18: ='С2.3'!E25 -> 0 | F18: ='С2.3'!F25 -> 0
C19: 2.4 | D19: Тариф на водоотведение, действующий на день окончания базового (2019) года, без НДС, руб./куб. м | E19: 0
C20: 2.5 | D20: Расходы на водоподготовку и водоотведение котельной в базовом (2019) году, тыс. руб. (РВб) | E20: =(E17*(E11+E12)+E19*E13)/1000 -> 11903.42433
C22: Перейти на лист расчета составляющей, обеспечивающей компенсацию прочих расходов
C23: Перейти на лист "Итог"

Sheet С4.4
L1: <выберите уровень детализации данных>
L2: по муниципальному району, городскому округу
L3: по субъекту Российской Федерации
C4: Вернуться к заполнению исходных данных
F5: Форма С4.4
C6: Расчет расходов на оплату труда персонала котельной с использованием угля в базовом (2019) году
C8: Технико-экономические параметры работы котельных и тепловых сетей, используемые для расчета:
C9: №пп | D9: Должность (специальность, профессия) | E9: Количество штатных единиц персонала котельной, производящей тепловую энергию с использованием угля | F9: Базовый уровень ежемесячной оплаты труда сотрудника котельной с учетом коэффициента загрузки, тыс. руб.
C11: 1 | D11: Начальник котельной | E11: =И2!C423 -> 1 | F11: =И2!F423 -> 63.9
C12: 2 | D12: Старший оператор | E12: =И2!C424 -> 5 | F12: =И2!F424 -> 23.5
C13: 3 | D13: Слесарь | E13: =И2!C425 -> 1 | F13: =И2!F425 -> 47
C14: 4 | D14: Инженер-электрик | E14: =И2!C426 -> 1 | F14: =И2!F426 -> 15.5
C15: 5 | D15: Инженер-химик | E15: =И2!C427 -> 1 | F15: =И2!F427 -> 15.5
C16: 6 | D16: Инженер КИП | E16: =И2!C428 -> 1 | F16: =И2!F428 -> 15.5
C17: 7 | D17: Машинист (кочегар) котельной | E17: =И2!C429 -> 5 | F17: =И2!F429 -> 23.5
C19: 8 | D19: Величина среднемесячной заработной платы работников организаций отрасли "Обеспечение электрической энергией, газом и паром; кондиционирование воздуха" по г. Москве в базовом (2019) году, руб. (ЗПМСКср) | F19: =И2!$C$438 -> 112025
C21: Исходные данные для расчета расходов на оплату труда персонала котельной и на уплату страховых взносов по персоналу котельной в базовом (2019) году:
C22: № пп | D22: Наименование | F22: Значения
C23: 1 | D23: 2 | F23: 3
C24: 1 | D24: Величина среднемесячной заработной платы работников организаций отрасли "Обеспечение электрической энергией, газом и паром; кондиционирование воздуха" в базовом (2019) году, руб. (ЗПМОср) | F24: 65415
F25: по субъекту Российской Федерации
C26: 2 | D26: Коэффициент корректировки базового уровня ежемесячной оплаты труда сотрудника котельной (kМО) | F26: =F24/$F$19 -> 0.583932158
C27: 3 | D27: Заработная плата сотрудников котельной, производящей тепловую энергию с использованием угля, в базовом (2019) году, тыс. руб | F27: =SUMPRODUCT(E11:E17,F11:F17)*12*F26 -> 2749.619746
C28: 4 | D28: Тариф страховых взносов на обязательное социальное страхование на случай временной нетрудоспособности и в связи с материнством в пределах установленной предельной величины базы для исчисления страховых взносов по данному виду страхования за базовый (2019) год, % | F28: 0.029 | H28: (см.примечание №1)
C29: 5 | D29: Страховой тариф на обязательное социальное страхование от несчастных случаев на производстве и профессиональных заболеваний за базовый (2019) год, % | F29: 0.002 | H29: (см.примечание №2)
C30: 6 | D30: Предельная величина базы для исчисления страховых взносов на обязательное социальное страхование на случай временной нетрудоспособности и в связи с материнством за базовый (2019) год, тыс.руб. | F30: 865 | H30: (см.примечание №3)
C31: 7 | D31: Тариф страховых взносов на обязательное медицинское страхование за базовый (2019) год, % | F31: 0.051 | H31: (см.примечание №1)
C32: 8 | D32: Тариф страховых взносов на обязательное пенсионное страхование в пределах установленной предельной величины базы для исчисления страховых взносов по данному виду страхования за базовый (2019) год, % | F32: 0.22 | H32: (см.примечание №1)
C33: 9 | D33: Тариф страховых взносов на обязательное пенсионное страхование сверх установленной предельной величины базы для исчисления страховых взносов по данному виду страхования за базовый (2019) год, % | F33: 0.1 | H33: (см.примечание №1)
C34: 10 | D34: Предельная величина базы для исчисления страховых взносов на обязательное пенсионное страхование за базовый (2019) год, тыс.руб. | F34: 1150 | H34: (см.примечание №3)
C35: 11 | D35: Дополнительный тариф страховых взносов на обязательное пенсионное страхование в базовом (2019) году, % | F35: 0.09 | H35: (см.примечание №1)
C36: 12 | D36: Расходы на уплату в базовом (2019) году страховых взносов по персоналу котельной, определяемые в соответствии с требованиями законодательства Российской Федерации о страховых взносах исходя из расходов на оплату труда персонала котельной, тыс. руб. (Рб,kСВ) | F36: =$E$11*IF($F$11*12*$F$26<$F$34,$F$32*$F$11*12*$F$26,$F$32*$F$34+$F$33*($F$11*12*$F$26-$F$34))+ ($E$12+$E$17)*IF($F$12*12*$F$26<$F$34,$F$32*$F$12*12*$F$26,$F$32*$F$34+$F$33*($F$12*12*$F$26-$F$34))+ $E$13*IF($F$13*12*$F$26<$F$34,$F$32*$F$13*12*$F$26,$F$32*$F$34+$F$33*($F$13*12*$F$26-$F$34))+ ($E$14+$E$15+$E$16)*IF($F$14*12*$F$26<$F$34,$F$32*$F$14*12*$F$26,$F$32*$F$34+$F$33*($F$14*12*$F$26-$F$34))+ $F$17*12*$F$26*$E$17*$F$35+ $E$11*IF($F$11*12*$F$26<$F$30,$F$28*$F$11*12*$F$26,$F$28*$F$30)+ ($E$12+$E$17)*IF($F$12*12*$F$26<$F$30,$F$28*$F$12*12*$F$26,$F$28*$F$30)+ $E$13*IF($F$13*12*$F$26<$F$30,$F$28*$F$13*12*$F$26,$F$28*$F$30)+ ($E$14+$E$15+$E$16)*IF($F$14*12*$F$26<$F$30,$F$28*$F$14*12*$F$26,$F$28*$F$30)+($F$31+$F$29)*$F$27 -> 904.486154
C38: Перейти на лист расчета составляющей, обеспечивающей компенсацию прочих расходов
C39: Перейти на лист "Итог"
B40: Примечание:
B41: 1 | C41: В стр. 4, 7, 8, 9, 11 указываются значения тарифов страховых взносов на базовый (2019) год в соответствии с Главой 34 Налогового кодекса Российской Федерации (часть вторая) от 05.08.2000 № 117-ФЗ
B42: 2 | C42: В стр.5 указывается значение страхового тарифа, установленное на базовый (2019) год Федеральным законом от 22.12.2005 № 179-ФЗ "О страховых тарифах на обязательное социальное страхование от несчастных случаев на производстве и профессиональных заболеваний на 2006 год".
B43: 3 | C43: В стр.6 и 10 указываются значения предельной величины базы для исчисления страховых взносов, установленные на базовый (2019) год постановлением Правительства РФ от 28.11.2018 № 1426 "О предельной величине базы для исчисления страховых взносов на обязательное социальное страхование на случай временной нетрудоспособности и в связи с материнством и на обязательное пенсионное страхование с 1 января 2019 г."

Sheet С5
F5: Форма С5
C6: Расчет составляющей предельного уровня цены на тепловую энергию (мощность), обеспечивающей создание резерва по сомнительным долгам
C8: Период регулирования (i)-й | E8: =И1!E8 -> 2024
C10: № пп | D10: Наименование | E10: Единицы измерения | F10: Значения
C11: 1 | D11: 2 | E11: 3 | F11: 4
C12: 1 | D12: Составляющая предельного уровня цены на тепловую энергию (мощность), обеспечивающая создание резерва по сомнительным долгам в i-м расчетном периоде регулирования (РДi) | E12: руб./Гкал | F12: =SUM(F13:F16)*0.02 -> 206.5421203
C13: 1.1 | D13: Составляющая предельного уровня цены на тепловую энергию (мощность), обеспечивающая компенсацию расходов на топливо (уголь) при производстве тепловой энергии котельной в i-м расчетном периоде регулирования (РТi) | E13: руб./Гкал | F13: =С1!F12 -> 4455.505036
C14: 1.2 | D14: Составляющая предельного уровня цены на тепловую энергию (мощность), обеспечивающая возврат капитальных затрат на строительство котельной и тепловых сетей в i-м расчетном периоде регулирования (КРi) | E14: руб./Гкал | F14: =С2!F12 -> 2357.020669
C15: 1.3 | D15: Составляющая предельного уровня цены на тепловую энергию (мощность), обеспечивающая компенсацию расходов на уплату налогов в i-м расчетном периоде регулирования (Нi) | E15: руб./Гкал | F15: =С3!F12 -> 561.3820345
C16: 1.4 | D16: Составляющая предельного уровня цены на тепловую энергию (мощность), обеспечивающая компенсацию прочих расходов при производстве тепловой энергии котельной в i-м расчетном периоде регулирования (ПРi) | E16: руб./Гкал | F16: =С4!F12 -> 2953.198274
C17: 1.5 | D17: Коэффициент, отражающий размер резерва по сомнительным долгам (kРД) | F17: 0.02
C18: Вернуться на лист "Содержание"
C19: Перейти на лист "Итог"

Sheet С6
F5: Форма С6
C6: Расчет составляющей предельного уровня цены на тепловую энергию (мощность), обеспечивающей учет отклонений фактических показателей от прогнозных показателей, используемых при расчете предельного уровня цены на тепловую энергию (мощность)
C8: Период регулирования (i)-й | E8: =И1!E8 -> 2024
C10: № пп | D10: Наименование | E10: Единицы измерения | F10: Значения
C11: 1 | D11: 2 | E11: 3 | F11: 4
C12: 1 | D12: Составляющая предельного уровня цены на тепловую энергию (мощность), обеспечивающая учет отклонений фактических показателей от прогнозных показателей, используемых при расчете предельного уровня цены на тепловую энергию (мощность), в i-м расчетном периоде регулирования (ΔBi) | E12: руб./Гкал | F12: - | H12: (см.примечание №1)
C14: Вернуться на лист "Содержание"
C15: Перейти на лист "Итог"
C16: Примечание:
C17: 1 | D17: В соответствии с пунктом 10 Правил указанная в стр.1 составляющая предельного уровня цены на тепловую энергию (мощность), обеспечивающая учет отклонений фактических показателей от прогнозных показателей, используемых при расчете предельного уровня цены на тепловую энергию (мощность), в i-м расчетном периоде регулирования не рассчитывается в отношении систем теплоснабжения, в которых преобладающим видом топлива является уголь или мазут.

Sheet И3
B1: Предельный уровень цены на тепловую энергию (мощность), рассчитанный в соответствии с частью 1 статьи 23.6 Федерального закона от 27.07.2010 № 190-ФЗ "О теплоснабжении" и Постановлением № 1562, а также сведения о параметрах, использованных при расчете
B2: Дата: | C2: =TODAY() -> 2024-03-25
B3: Информация о системе теплоснабжения, в отношении которой выполняется расчет:
B4: =И1!D13 -> Субъект Российской Федерации | C4: =И1!E13 -> Ненецкий автономный округ
B5: =И1!D14 -> Тип муниципального образования (выберите из списка) | C5: =И1!E14 -> Заполярный район
B6: =IF(И1!E15="","",И1!D15) ->  | C6: =IF(И1!E15="","",И1!E15) -> 
B7: =И1!D16 -> Код ОКТМО | C7: =И1!E16 -> Нижняя Пеша; Верхняя Пеша; Волоковая
B8: =И1!D17 -> Система теплоснабжения | C8: =И1!E17 -> 0
B9: =И1!D8 -> Период регулирования (i)-й | C9: =И1!E8 -> 2024
B10: =И1!D9 -> Период регулирования (i-1)-й | C10: =И1!E9 -> 2023
B11: =И1!D10 -> Период регулирования (i-2)-й | C11: =И1!E10 -> 2022
B12: =И1!D11 -> Базовый год (б) | C12: =И1!E11 -> 2019
B13: =И1!D18 -> Вид топлива, использование которого преобладает в системе теплоснабжения | C13: ='С1.1'!E13 -> каменный уголь
A14: Предельный уровень цены на тепловую энергию (мощность) и его составляющие, обеспечивающие компенсацию расходов:
A15: №пп | B15: Наименование | C15: Значения
A16: 1 | B16: 2 | C16: 3
A17: 1 | B17: Уровень цены на тепловую энергию (мощность) без НДС, руб./Гкал | C17: =SUM(C18:C22) -> 10533.64813
A18: 1.1 | B18: Составляющая предельного уровня цены на тепловую энергию (мощность), обеспечивающая компенсацию расходов на топливо при производстве тепловой энергии котельной в i-м расчетном периоде регулирования, руб./Гкал (РТi) | C18: =С1!F12 -> 4455.505036
A19: 1.2 | B19: Составляющая предельного уровня цены на тепловую энергию (мощность), обеспечивающая возврат капитальных затрат на строительство котельной и тепловых сетей в i-м расчетном периоде регулирования, руб./Гкал (КРi) | C19: =С2!F12 -> 2357.020669
A20: 1.3 | B20: Составляющая предельного уровня цены на тепловую энергию (мощность), обеспечивающая компенсацию расходов на уплату налогов в i-м расчетном периоде регулирования (Нi) | C20: =С3!F12 -> 561.3820345
A21: 1.4 | B21: Составляющая предельного уровня цены на тепловую энергию (мощность), обеспечивающая компенсацию прочих расходов при производстве тепловой энергии котельной в i-м расчетном периоде регулирования, руб./Гкал (ПРi) | C21: =С4!F12 -> 2953.198274
A22: 1.5 | B22: Составляющая предельного уровня цены на тепловую энергию (мощность), обеспечивающая создание резерва по сомнительным долгам в i-м расчетном периоде регулирования, руб./Гкал (РДi) | C22: =С5!F12 -> 206.5421203
A23: 1.6 | B23: Составляющая предельного уровня цены на тепловую энергию (мощность), обеспечивающая учет отклонений фактических показателей от прогнозных показателей, используемых при расчете предельного уровня цены на тепловую энергию (мощность), в i-м расчетном периоде регулирования, руб./Гкал (ΔBi) | C23: =С6!F12 -> -
A25: №пп | B25: Наименование | C25: Значения | D25: Источник информации
A26: 1 | B26: 2 | C26: 3 | D26: 4
A27: 1 | B27: Параметры, использованные при расчете составляющей предельного уровня цены на тепловую энергию (мощность), обеспечивающей компенсацию расходов на топливо при производстве тепловой энергии котельной в i-м расчетном периоде регулирования
A28: 1.1 | B28: Низшая теплота сгорания натурального топлива (угля), ккал/кг | C28: ='С1.1'!E16 -> 5500 | D28: ='С1.1'!F16 -> договор от 07.04.2022 № 58/2022
A29: 1.2 | B29: Фактическая цена на топливо (уголь), используемое при производстве тепловой энергии котельной, с учетом затрат на его доставку, сложившаяся в системе теплоснабжения в (i-2)-м расчетном периоде регулирования, без НДС, руб. / т н.т. (ЦТi-2,kф, нат.) | C29: ='С1.1'!E27 -> 21220.53666 | D29: =IF('С1.1'!E23='С1.1'!I9,'С1.1'!F24,IF('С1.1'!E23='С1.1'!I10,'С1.1'!I10,IF('С1.1'!E23='С1.1'!I11,'С1.3'!G9,IF('С1.1'!E23='С1.1'!I12,'С1.1'!F25,IF('С1.1'!E23='С1.1'!I13,'С1.1'!F26,""))))) -> информация с официального сайта единой информационной системы в сфере закупок
A30: 1.3 | B30: Прогнозный индекс роста цены на топливо в (i-1)-м расчетном периоде регулирования, % (Ii-1,kП) | C30: ='С1.1'!E19 -> -0.199 | D30: ='С1.1'!F19 -> Прогноз социально-экономического развития Российской Федерации на 2024 год и на плановый период 2025 и 2026 годов (размещен на официальном сайте Министерства экономического развития Российской Федерации (далее - Минэкономразвития России) 22.09.2023): файл в формате Microsoft Excel "6. Дефляторы базовый", таблица "Прогноз индексов цен производителей и индексов-дефляторов по видам экономической деятельности, в % г/г (Базовый)", "Добыча полезных ископаемых (Раздел B)", строка "Добыча угля (05)", (показатель "ИЦП")
A31: 1.4 | B31: Прогнозный индекс роста цены на топливо в i-м расчетном периоде регулирования, % (Ii,kП) | C31: ='С1.1'!E20 -> 0.057 | D31: ='С1.1'!F20 -> Прогноз социально-экономического развития Российской Федерации на 2024 год и на плановый период 2025 и 2026 годов (размещен на официальном сайте Министерства экономического развития Российской Федерации (далее - Минэкономразвития России) 22.09.2023): файл в формате Microsoft Excel "6. Дефляторы базовый", таблица "Прогноз индексов цен производителей и индексов-дефляторов по видам экономической деятельности, в % г/г (Базовый)", "Добыча полезных ископаемых (Раздел B)", строка "Добыча угля (05)", (показатель "ИЦП")
A32: 1.5 | B32: Удельный расход условного топлива при производстве тепловой энергии котельной с использованием угля в i-м расчетном периоде регулирования, кг у.т./Гкал (bi,k) | C32: =С1!F13 -> 176.4 | D32: Таблица ТЭП (I)
A33: 1.6 | B33: Низшая теплота сгорания 1 кг условного топлива | C33: =С1!F16 -> 7000 | D33: Постановление №1562
A34: 1.7 | B34: Коэффициент перевода натурального топлива в условное топливо, кг у.т./кг (К) | C34: =С1!F17 -> 0.7857142857
A35: 1.8 | B35: Объем отпуска тепловой энергии с коллекторов котельной (QОТП) | C35: =С1!F20 -> 26.04200613
A36: 1.8.1 | B36: Объем полезного отпуска тепловой энергии котельной (QПО) | C36: =С1!F21 -> 24.684366
A37: 1.8.2 | B37: Коэффициент учета потерь тепловой энергии в тепловых сетях(КП) | C37: =С1!F22 -> 1.055 | D37: Таблица ТЭП (II.1.)
A38: 1.9 | B38: Коэффициент учета стоимости транспортных услуг, оказываемых на подъездных железнодорожных путях организациями промышленного железнодорожного транспорта и другими хозяйствующими субъектами независимо от организационно-правовой формы, за исключением организаций федерального железнодорожного транспорта (Кппжт) | C38: =С1!F23 -> 1.047 | D38: Таблица ТЭП (II.2.)
A40: 2 | B40: Параметры, использованные при расчете составляющей предельного уровня цены на тепловую энергию (мощность), обеспечивающей возврат капитальных затрат на строительство котельной и тепловых сетей в i-м расчетном периоде регулирования
A41: 2.1 | B41: Температурная зона, к которой относится поселение или городской округ, на территории которого находится система теплоснабжения | C41: ='С2.1'!E12 -> IV | D41: Таблица ТЭП (IX)
A42: 2.2 | B42: Степень сейсмической опасности сейсмического района, к которому относится поселение или городской округ, на территории которого находится система теплоснабжения | C42: ='С2.1'!E13 -> 6 и менее баллов | D42: ='С2.1'!F13 -> Приложение А (обязательное) "Общее сейсмическое районирование территории Российской Федерации ОСР-2015. Список населенных пунктов Российской Федерации, расположенных в сейсмических районах, с указанием расчетной сейсмической интенсивности в баллах шкалы MSK-64 для средних грунтовых условий и трех степеней сейсмической опасности - A (10%), B (5%), C (1%) в течение 50 лет" к своду правил "СП 14.13330.2018 Строительство в сейсмических районах. Актуализир. редакция СНиП II-7-81".
A43: 2.3 | B43: Расстояние от границы системы теплоснабжения до границы ближайшего административного центра субъекта Российской Федерации с железнодорожным сообщением, км | C43: ='С2.1'!E14 -> от 500 до 1000 | D43: ='С2.1'!F14 -> Карта Российской Федерации в масштабе, позволяющем определить расстояние на транспортировку основных средств котельной, определяется как расстояние от границы системы теплоснабжения до границы ближайшего административного центра субъекта РФ с железнодорожным сообщением
A44: 2.4 | B44: Поселение, городской округ, на территории которого находится система теплоснабжения, отнесено к территории распространения вечномерзлых грунтов? | C44: ='С2.1'!E15 -> да | D44: ='С2.1'!F15 -> 0
A45: 2.5 | B45: Величина капитальных затрат на строительство тепловых сетей в i-м расчетном периоде регулирования, тыс. руб. (КЗiсети) | C45: =С2!F18 -> 133807.821
A46: 2.5.1 | B46: Базовая величина капитальных затрат на строительство тепловых сетей в базовом (2019) году, тыс. руб. (КЗбсети(б)) | C46: =IF(С2!F19>0,С2!F19,С2!F20) -> 89346.58229
A47: 2.5.1.1 | B47: Расчетная температура наружного воздуха, которая соответствует температуре воздуха наиболее холодной пятидневки, в поселении, городском округе,°C | C47: ='С2.1'!E19 -> -39 | D47: =CONCATENATE('С2.1'!F19," ",'С2.1'!F20) -> Свод правил СП 131.13330.2020 "СНиП 23-01-99* Строительная климатология" "Температура воздуха наиболее холодной пятидневки с обеспеченностью 0,92"
A48: 2.5.1.2 | B48: Поселение, городской округ, на территории которого находится система теплоснабжения, отнесено к районам Крайнего Севера или местностям, приравненным к районам Крайнего Севера? | C48: ='С2.1'!E22 -> относится к районам Крайнего Севера | D48: ='С2.1'!F22 -> 0
A49: 2.5.1.3 | B49: Сметная стоимость строительно-монтажных и пусконаладочных работ по объекту строительства "Внешние инженерные сети теплоснабжения", учитывающая прямые затраты, накладные расходы и сметную прибыль, в ценах 2001 года,тыс. рублей (Р) | C49: ='С2.2'!E10 -> 5802 | D49: Таблица ТЭП (II) Таблица 2
A50: 2.5.1.4 | B50: Индекс изменения сметной стоимости строительно-монтажных и пусконаладочных работ по объекту строительства "Внешние инженерные сети теплоснабжения" на базовый год (И) | C50: ='С2.2'!E12 -> 8.39 | D50: Таблица ТЭП (II) Таблица 3
A51: 2.5.1.5 | B51: Коэффициент, применяемый для учета повышенной нормы накладных расходов к индексам изменения сметной стоимости строительно-монтажных и пусконаладочных работ в базовом году в случае отнесения поселения, городского округа к районам Крайнего Севера или местностям, приравненным к районам Крайнего Севера (Ккс) | C51: ='С2.2'!E13 -> 1.02 | D51: Постановление №1562
A52: 2.5.1.6 | B52: Базовая величина капитальных затрат на основные средства тепловых сетей в базовом году, тыс.рублей (КЗОбсети(б)) | C52: ='С2.2'!E14 -> 25605 | D52: Таблица ТЭП (II) Таблица 2
A53: 2.5.1.7 | B53: Сметная норма дополнительных затрат по виду строительства "Энергетическое строительство. Тепловые сети",% (z) | C53: ='С2.2'!E15 -> 0.036 | D53: таблица 4 Сборника сметных норм дополнительных затрат при производстве строительно-монтажных работ в зимнее время (ГСН 81-05-02-2007)
A54: 2.5.1.8 | B54: Коэффициент к сметным нормам по видам строительства (h) | C54: ='С2.2'!E16 -> 1.4 | D54: Приложение № 1 Сборника сметных норм дополнительных затрат при производстве строительно-монтажных работ в зимнее время (ГСН 81-05-02-2007).
A55: 2.5.2 | B55: Коэффициент сейсмического влияния для тепловых сетей (Ксети,с) | C55: =С2!F21 -> 1 | D55: Таблица ТЭП (VIII)
A56: 2.6 | B56: Величина капитальных затрат на строительство котельной с использованием угля в i-м расчетном периоде регулирования, тыс. руб. (КЗi,kкот) | C56: =С2!F13 -> 181661.0301
A57: 2.6.1 | B57: Базовая величина капитальных затрат на строительство котельной с использованием угля в базовом (2019) году (КЗб,kкот(б)) | C57: =С2!F14 -> 113455 | D57: Таблица ТЭП (I)
A58: 2.6.2 | B58: Коэффициент температурной зоны для котельной (Ккот,т) | C58: =С2!F15 -> 1.038 | D58: Таблица ТЭП (VII)
A59: 2.6.3 | B59: Коэффициент сейсмического влияния для котельной(Ккот,с) | C59: =С2!F16 -> 1 | D59: Таблица ТЭП (VIII)
A60: 2.6.4 | B60: Коэффициент влияния расстояния на транспортировку основных средств котельной (Ктр) | C60: =С2!F17 -> 1.03 | D60: Таблица ТЭП (X)
A61: 2.6.5 | B61: Срок возврата инвестированного капитала, лет (СВК) | C61: =С2!F33 -> 10 | D61: Таблица ТЭП (XI)
A62: 2.7 | B62: Стоимость земельного участка для размещения котельной в i-м расчетном периоде регулирования, тыс.руб. (Зi,k) | C62: =С2!F26 -> 7908.172401
A63: 2.7.1 | B63: Удельная базовая стоимость земельного участка,тыс. руб./ кв. м (Рk,б) | C63: =С2!F27 -> 1.257254747 | D63: ='С2.4'!F12 -> 0
A64: 2.7.2 | B64: Площадь земельного участка для размещения котельной с использованием угля, кв. м (Sk) | C64: =С2!F28 -> 4200 | D64: Таблица ТЭП (I)
A65: 2.8 | B65: Затраты на подключение (технологическое присоединение) котельной с использованием угля к электрическим сетям, к централизованной системе водоснабжения и водоотведения в i-м расчетном периоде регулирования, тыс. руб. (ТПi,k) | C65: =С2!F22 -> 40408.71241
A66: 2.8.1 | B66: Базовая величина затрат на подключение (технологическое присоединение) котельной с использованием угля к электрическим сетям (ТПб,kэс) | C66: =С2!F23 -> 3132 | D66: Таблица ТЭП (III)
A67: 2.8.2 | B67: Затраты на подключение (технологическое присоединение) котельной к централизованной системе водоснабжения в базовом (2019) году, тыс. руб. (ТПбвс) | C67: ='С2.1'!E27 -> 14307.87679
A68: 2.8.2.1 | B68: Гарантирующая организация в сфере холодного водоснабжения, обеспечивающая максимальный объем отпуска воды в поселении, городском округе, на территории которого находится система теплоснабжения | C68: ='С2.3'!E21 -> 0 | D68: ='С2.3'!F21 -> 0
A69: 2.8.2.2 | B69: Величина подключаемой (технологически присоединяемой) нагрузки к централизованной системе водоснабжения, куб. м/сут | C69: ='С2.3'!E11 -> 9.89 | D69: Таблица ТЭП (IV)
A70: 2.8.2.3 | B70: Протяженность сетей от котельной до места подключения к централизованной системе водоснабжения и водоотведения, м | C70: ='С2.3'!E13 -> 300 | D70: Таблица ТЭП (IV)
A71: 2.8.2.4 | B71: Ставка тарифа за подключаемую (технологически присоединяемую) нагрузку водопроводной сети, действующая на день окончания базового (2019) года, без НДС, руб./куб. м/сут | C71: =IF('С2.3'!E22>0,'С2.3'!E22,'С2.3'!E14) -> 61211 | D71: =IF(C71='С2.3'!E14,"Таблица ТЭП (IV)",'С2.3'!F22) -> Таблица ТЭП (IV)
A72: 2.8.2.5 | B72: Ставка тарифа за расстояние от точки подключения (технологического присоединения) котельной до точки подключения водопроводных сетей к централизованной системе водоснабжения, действующих на день окончания базового (2019) года, без НДС, руб./м | C72: =IF('С2.3'!E23>0,'С2.3'!E23,'С2.3'!E15) -> 45675 | D72: =IF(C72='С2.3'!E15,"Таблица ТЭП (IV)",'С2.3'!F23) -> Таблица ТЭП (IV)
A73: 2.8.3 | B73: Затраты на подключение (технологическое присоединение) котельной к централизованной системе водоотведения в базовом (2019) году, тыс. руб. (ТПбво) | C73: ='С2.1'!E28 -> 9541.95672
A74: 2.8.3.1 | B74: Гарантирующая организация в сфере холодного водоотведения, обеспечивающая максимальный объем принятых сточных вод в поселении, городском округе, на территории которого находится система теплоснабжения | C74: ='С2.3'!E25 -> 0 | D74: ='С2.3'!F25 -> 0
A75: 2.8.3.2 | B75: Величина подключаемой (технологически присоединяемой) нагрузки к централизованной системе водоотведения, куб. м/сут | C75: ='С2.3'!E12 -> 0.56 | D75: Таблица ТЭП (IV)
A76: 2.8.3.3 | B76: Протяженность сетей от котельной до места подключения к централизованной системе водоснабжения и водоотведения, м | C76: ='С2.3'!E13 -> 300 | D76: Таблица ТЭП (IV)
A77: 2.8.3.4 | B77: Ставка тарифа за подключаемую (технологически присоединяемую) нагрузку канализационной сети, действующая на день окончания базового (2019) года, без НДС, руб./куб. м/сут | C77: =IF('С2.3'!E26>0,'С2.3'!E26,'С2.3'!E16) -> 65637 | D77: =IF(C77='С2.3'!E16,"Таблица ТЭП (IV)",'С2.3'!F26) -> Таблица ТЭП (IV)
A78: 2.8.3.5 | B78: Ставка тарифа за расстояние от точки подключения (технологического присоединения) котельной до точки подключения канализационных сетей к централизованной системе водоотведения, действующая на день окончания базового (2019) года, без НДС, руб./м | C78: =IF('С2.3'!E27>0,'С2.3'!E27,'С2.3'!E17) -> 31684 | D78: =IF(C78='С2.3'!E17,"Таблица ТЭП (IV)",'С2.3'!F27) -> Таблица ТЭП (IV)
A79: 2.9 | B79: Норма доходности инвестированного капитала в i-м расчетном периоде регулирования, % (НДi) | C79: =С2!F29 -> 0.09596286526
A80: 2.9.1 | B80: Средневзвешенная по дням 9 месяцев (i-1)-го расчетного периода регулирования ключевая ставка Центрального банка Российской Федерации, % (КСi-1) | C80: =С2!F30 -> 0.08402930403 | D80: ='С2.6'!G11 -> Информация с официального сайта Банка России
A81: 2.9.2 | B81: Базовый уровень нормы доходности инвестированного капитала,% (НДб) | C81: =С2!F31 -> 0.1388 | D81: Таблица ТЭП (XI)
A82: 2.9.3 | B82: Базовый уровень ключевой ставки Центрального банка Российской Федерации, % (КСб) | C82: =С2!F32 -> 0.1264 | D82: Таблица ТЭП (XI)
A84: 3 | B84: Параметры, использованные при расчете составляющей предельного уровня цены на тепловую энергию (мощность), обеспечивающей компенсацию расходов на уплату налогов в i-м расчетном периоде регулирования
A85: 3.1 | B85: Расходы на уплату налога на прибыль от деятельности, связанной с производством и поставкой тепловой энергии (мощности), в i-м расчетном периоде регулирования, тыс. руб. (Нiп) | C85: =С3!F14 -> 8614.09749
A86: 3.1.1 | B86: Ставка налога на прибыль от деятельности, связанной с производством и поставкой тепловой энергии (мощности), установленная в соответствии с законодательством Российской Федерации о налогах и сборах и действующая в i-м расчетном периоде регулирования, % (tiп) | C86: =С3!F15 -> 0.2 | D86: ='С3.1'!F12 -> "Налоговый кодекс Российской Федерации (часть вторая)" от 05.08.2000 N 117-ФЗ
A87: 3.1.2 | B87: Период амортизации котельной и тепловых сетей, лет (ПА) | C87: =С3!F18 -> 15 | D87: Таблица ТЭП (XI)
A88: 3.2 | B88: Расходы на уплату налога на имущество в i-м расчетном периоде регулирования, тыс. руб. (Нiим) | C88: =С3!F19 -> 5219.537598
A89: 3.2.1 | B89: Ставка налога на имущество, установленная в соответствующем субъекте Российской Федерации (без учета специальных льгот по налогу на имущество организаций) в соответствии с законодательством Российской Федерации о налогах и сборах и действующая в i-м расчетном периоде регулирования, % (tiим) | C89: =С3!F20 -> 0.022 | D89: ='С3.1'!F13 -> "Налоговый кодекс Российской Федерации (часть вторая)" от 05.08.2000 N 117-ФЗ
A90: 3.2.2 | B90: Срок возврата инвестированного капитала, лет (СВК) | C90: =С3!F21 -> 10 | D90: Таблица ТЭП (XI)
A91: 3.3 | B91: Расходы на уплату земельного налога в i-м расчетном периоде регулирования, тыс. руб. (Нiз) | C91: =С3!F22 -> 23.7245172
A92: 3.3.1 | B92: Ставка земельного налога, установленная в соответствии с законодательством Российской Федерации о налогах и сборах и нормативными правовыми актами представительных органов муниципального образования, на территории которого находится система теплоснабжения, и действующая в i-м расчетном периоде регулирования, % (tiз) | C92: =С3!F23 -> 0.003 | D92: ='С3.1'!F14 -> Решение Совета МО "Муниципальный район "Заполярный район" от 27 октября 2006 г. N 108
A93: 3.3.2 | B93: Стоимость земельного участка для размещения котельной в i-м расчетном периоде регулирования, тыс.руб. (Зi,k) | C93: =С3!F24 -> 7908.172401
A95: 4 | B95: Параметры, использованные при расчете составляющей предельного уровня цены на тепловую энергию (мощность), обеспечивающей компенсацию прочих расходов при производстве тепловой энергии котельной в i-м расчетном периоде регулирования
A96: 4.1 | B96: Расходы на техническое обслуживание и ремонт основных средств котельной с использованием угля и тепловых сетей в базовом (2019) году, тыс. руб. (ТОб,k) | C96: =С4!F16 -> 1855.015
A97: 4.1.1 | B97: Базовая величина капитальных затрат на основные средства котельной с использованием угля в базовом году, тыс. руб. (КЗОб,kкот(б)) | C97: =С4!F17 -> 73547 | D97: Таблица ТЭП (I)
A98: 4.1.2 | B98: Коэффициент расходов на техническое обслуживание и ремонт основных средств котельной (Кkкот, ТО) | C98: =С4!F18 -> 0.02 | D98: Таблица ТЭП (I)
A99: 4.1.3 | B99: Базовая величина капитальных затрат на основные средства тепловых сетей в базовом году, тыс. руб. (КЗОбсети(б)) | C99: =С4!F19 -> 25605 | D99: Таблица ТЭП (II)
A100: 4.1.4 | B100: Коэффициент расходов на техническое обслуживание и ремонт основных средств тепловых сетей (Ксети, ТО) | C100: =С4!F20 -> 0.015 | D100: Таблица ТЭП (II)
A101: 4.2 | B101: Расходы на электрическую энергию на собственные нужды котельной с использованием угля в базовом (2019) году, тыс. руб. (РЭб,k) | C101: =С4!F21 -> 24777.10869
A102: 4.2.1 | B102: Наименование гарантирующего поставщика | C102: =IF('С4.2'!F8="да",'С4.2'!D21,'С4.2'!D15) -> Муниципальное предприятие Заполярного района «Севержилкомсервис»
A103: 4.2.2 | B103: Среднеарифметическая величина из значений цен (тарифов) на электрическую энергию (мощность), поставляемую покупателям на розничном рынке, функционирующем в поселении или городском округе, на территории которого находится система теплоснабжения, в базовом (2019) году для категории потребителей, установленной технико-экономическими параметрами работы котельных и тепловых сетей, без НДС, руб./кВтч (ЦЭб) | C103: =С4!F22 -> 39.035 | D103: =IF('С4.2'!F8="да",'С4.2'!E21,'С4.2'!E15) -> Приказ Управления по государственному регулированию цен (тарифов) НАО от 18.12.18 №61
A104: 4.2.3 | B104: Общая максимальная мощность энергопринимающих устройств котельной с использованием угля, кВт (Эk) | C104: =С4!F23 -> 180 | D104: Таблица ТЭП (III)
A105: 4.2.4 | B105: Продолжительность годовой работы оборудования котельной с учетом коэффициента готовности, ч (ГР) | C105: =С4!F24 -> 8497.2 | D105: Таблица ТЭП (I)
A106: 4.2.5 | B106: Коэффициент использования установленной тепловой мощности котельной (КИУМ) | C106: =С4!F25 -> 0.415 | D106: Таблица ТЭП (VI)
A107: 4.3 | B107: Расходы на водоподготовку и водоотведение котельной в базовом (2019) году, тыс. руб. (РВб) | C107: =С4!F26 -> 11903.42433
A108: 4.3.1 | B108: Гарантирующая организация в сфере холодного водоснабжения, обеспечивающая максимальный объем отпуска воды в поселении, городском округе, на территории которого находится система теплоснабжения | C108: ='С4.3'!E16 -> 0 | D108: ='С4.3'!F16 -> 0
A109: 4.3.2 | B109: Тариф на питьевую воду (питьевое водоснабжение), действующий на день окончания базового (2019) года, без НДС, руб./куб. м | C109: ='С4.3'!E17 -> 3394.19 | D109: ='С4.3'!F17 -> Приказ Управления по государственному регулированию цен (тарифов) НАО от 18.12.2018 № 65
A110: 4.3.3 | B110: Гарантирующая организация в сфере холодного водоотведения, обеспечивающая максимальный объем принятых сточных вод в поселении, городском округе, на территории которого находится система теплоснабжения | C110: ='С4.3'!E18 -> 0 | D110: ='С4.3'!F18 -> 0
A111: 4.3.4 | B111: Тариф на водоотведение, действующий на день окончания базового (2019) года, без НДС, руб./куб. м | C111: ='С4.3'!E19 -> 0 | D111: ='С4.3'!F19 -> 0
A112: 4.3.5 | B112: Расход воды на водоподготовку, куб.м/год | C112: ='С4.3'!E11 -> 1871 | D112: Таблица ТЭП (I)
A113: 4.3.6 | B113: Расход воды на собственные нужды котельной, куб.м/год | C113: ='С4.3'!E12 -> 1636 | D113: Таблица ТЭП (I)
A114: 4.3.7 | B114: Объем водоотведения, куб.м/год | C114: ='С4.3'!E13 -> 204 | D114: Таблица ТЭП (I)
A115: 4.4 | B115: Расходы на оплату труда персонала котельной с использованием угля в базовом (2019) году, тыс. руб. (РПб,k) | C115: =С4!F27 -> 3654.1059
A116: 4.4.1 | B116: Заработная плата сотрудников котельной, производящей тепловую энергию с использованием угля, в базовом (2019) году, тыс. руб. | C116: =С4!F28 -> 2749.619746
A117: 4.4.2 | B117: Расходы на уплату в базовом (2019) году страховых взносов по персоналу котельной, определяемые в соответствии с требованиями законодательства Российской Федерации о страховых взносах исходя из расходов на оплату труда персонала котельной, тыс. руб. (Рб,kСВ) | C117: =С4!F29 -> 904.486154
A118: 4.5 | B118: Иные прочие расходы при производстве тепловой энергии котельной в i-м расчетном периоде регулирования, тыс. руб. (ПРiиные) | C118: =С4!F30 -> 9713.477819
A119: 4.5.1 | B119: Расходы на плату за выбросы загрязняющих веществ в атмосферный воздух в пределах установленных нормативов и (или) лимитов, на утилизацию и размещение золы и шлака для котельной с использованием угля в i-м расчетном периоде регулирования, тыс. руб. (ЗВiуголь) | C119: =С4!F33 -> 7716.735266
A120: 4.5.1.1 | B120: Дополнительные расходы на плату за выбросы загрязняющих веществ в атмосферный воздух в пределах установленных нормативов и (или) лимитов для котельной с использованием угля (Yiуголь) | C120: =С4!F35 -> 18.043074
A121: 4.5.1.1.1 | B121: Базовая величина платы за выбросы загрязняющих веществ в атмосферный воздух, руб. (ПВб) | C121: =С4!F36 -> 14319.9 | D121: Таблица ТЭП (XIV)
A122: 4.5.1.1.2 | B122: Коэффициент, применяемый к базовой величине платы за выбросы загрязняющих веществ в атмосферный воздух (КiОС) | C122: =С4!F37 -> 1.26 | D122: ='С4.1'!F12 -> Постановление Правительства РФ от 20 марта 2023 г. № 437
A124: 5 | B124: Параметры, использованные при расчете составляющей предельного уровня цены на тепловую энергию (мощность), обеспечивающей создание резерва по сомнительным долгам в i-м расчетном периоде регулирования
A125: 5.1 | B125: Коэффициент, отражающий размер резерва по сомнительным долгам (kРД) | C125: =С5!F17 -> 0.02 | D125: Постановление №1562
A127: 6 | B127: Параметры, использованные при расчете составляющей предельного уровня цены на тепловую энергию (мощность), обеспечивающей учет отклонений фактических показателей от прогнозных показателей, используемых при расчете предельного уровня цены на тепловую энергию (мощность), в i-м расчетном периоде регулирования
A128: 6.1 | B128: Составляющая предельного уровня цены на тепловую энергию (мощность), обеспечивающая учет отклонений фактических показателей от прогнозных показателей при расчете составляющей предельного уровня цены на тепловую энергию (мощность), обеспечивающей компенсацию расходов на топливо при производстве тепловой энергии котельной в (i-2)-м расчетном периоде регулирования, определяемой в i-м расчетном периоде регулирования, руб./Гкал (ΔPTi-2) | C128: - | D128: Постановление №1562
A129: 6.1.1 | B129: Фактическая цена на k-й вид топлива, используемый при производстве тепловой энергии котельной, с учетом затрат на его доставку, сложившаяся в системе теплоснабжения в (i-2)-м расчетном периоде регулирования, без НДС, руб./т н. т. (руб./тыс. куб. м) (ЦТi-2,kф, нат.)
A130: 6.2 | B130: Составляющая предельного уровня цены на тепловую энергию (мощность), обеспечивающая учет отклонений фактических показателей от прогнозных показателей при расчете составляющей предельного уровня цены на тепловую энергию (мощность), обеспечивающей компенсацию расходов на уплату налогов в (i-2)-м расчетном периоде регулирования, определяемой в i-м расчетном периоде регулирования, руб./Гкал (ΔHi-2) | C130: - | D130: Постановление №1562
A131: 6.2.1 | B131: Фактическая ставка налога на прибыль от деятельности, связанной с производством и поставкой тепловой энергии (мощности), установленная в соответствии с законодательством Российской Федерации о налогах и сборах и действующая в (i-2)-м расчетном периоде регулирования, % (ti-2п)
A132: 6.2.2 | B132: Фактическая ставка налога на имущество, установленная в соответствующем субъекте Российской Федерации (без учета специальных льгот по налогу на имущество организаций) в соответствии с законодательством Российской Федерации о налогах и сборах и действующая в (i-2)-м расчетном периоде регулирования, % (ti-2им)
A133: 6.2.3 | B133: Фактическая ставка земельного налога, установленная в соответствии с законодательством Российской Федерации о налогах и сборах и нормативными правовыми актами представительных органов муниципального образования, на территории которого находится система теплоснабжения, и действующая в (i-2)-м расчетном периоде регулирования, % (ti-2з)
A135: 7 | B135: Объем полезного отпуска тепловой энергии котельной, тыс. Гкал (QПО) | C135: =С2!F37 -> 24.684366
A136: 7.1 | B136: Установленная тепловая мощность котельной, Гкал/ч (p) | C136: =С2!F38 -> 7 | D136: Таблица ТЭП (I)
A137: 7.2 | B137: Коэффициент готовности, учитывающий продолжительность годовой работы оборудования (Кr) | C137: =С2!F40 -> 0.97 | D137: Таблица ТЭП (I)
A138: 7.3 | B138: Коэффициент использования установленной тепловой мощности котельной (КИУМ) | C138: =С2!F42 -> 0.415 | D138: Таблица ТЭП (VI)
A140: 8 | B140: Прогнозный индекс цен производителей промышленной продукции (накопленным итогом), % (ИЦПi) | C140: =С2!F35 -> 1.497626631 | D140: ='С2.5'!D15 -> на 2020: Прогноз социально-экономического развития Российской Федерации на 2022 год и на плановый период 2023 и 2024 годов (размещен на официальном сайте Минэкономразвития России 30.09.2021): файл в формате Microsoft Excel «12. Дефляторы базовый», таблица «Прогноз индексов цен производителей и индексов-дефляторов по видам экономической деятельности, в % г/г (Базовый вариант)», отрасль «Промышленность (BСDE)», (показатель «ИЦП»). На 2021 год: Прогноз социально-экономического развития Российской Федерации на 2023 год и на плановый период 2024 и 2025 годов (размещен на официальном сайте Минэкономразвития России 28.09.2022): файл в формате Microsoft Excel «7. Дефляторы базовый», таблица «Прогноз индексов цен производителей и индексов-дефляторов по видам экономической деятельности, в % г/г (Базовый)», отрасль «Промышленность (BСDE)», (показатель «ИЦП»); на 2022-2024 годы: Прогноз социально-экономического развития Российской Федерации на 2024 год и на плановый период 2025 и 2026 годов (размещен на официальном сайте Минэкономразвития России 22.09.2023): файл в формате Microsoft Excel «6. Дефляторы базовый», таблица «Прогноз индексов цен производителей и индексов-дефляторов по видам экономической деятельности, в % г/г (Базовый)», отрасль «Промышленность (BСDE)», (показатель «ИЦП»)
A141: 8.1 | B141: Индекс цен производителей промышленной продукции (в среднем за год к предыдущему году), % г/г (ИЦПпб+1, ИЦПпб+2,…,ИЦПпi)
B142: Год
B143: 2020 | C143: ='С2.5'!$E$11 -> -0.029
B144: =B143+1 -> 2021 | C144: ='С2.5'!$F$11 -> 0.245
B145: =B144+1 -> 2022 | C145: ='С2.5'!$G$11 -> 0.114
B146: 2023 | C146: ='С2.5'!$H$11 -> 0.024
B147: 2024 | C147: ='С2.5'!$I$11 -> 0.086
B148: 2025 | C148: ='С2.5'!$J$11 -> 0.2121596086
B149: 2026 | C149: ='С2.5'!$K$11 -> 0.03581336177
B150: 2027 | C150: ='С2.5'!$L$11 -> 0.0326823036
B151: 2028 | C151: ='С2.5'!$M$11 -> 0
B152: 2029 | C152: ='С2.5'!$N$11 -> 0
B153: 2030 | C153: ='С2.5'!$O$11 -> 0
B154: 2031 | C154: ='С2.5'!$P$11 -> 0
B155: 2032 | C155: ='С2.5'!$Q$11 -> 0
B156: 2033 | C156: ='С2.5'!$R$11 -> 0
B157: 2034 | C157: ='С2.5'!$S$11 -> 0
B158: 2035 | C158: ='С2.5'!$T$11 -> 0
B159: 2036 | C159: ='С2.5'!$U$11 -> 0
B160: 2037 | C160: ='С2.5'!$V$11 -> 0
B161: 2038 | C161: ='С2.5'!$W$11 -> 0
B162: 2039 | C162: ='С2.5'!$X$11 -> 0
B163: 2040 | C163: ='С2.5'!$Y$11 -> 0
B164: 2041 | C164: ='С2.5'!$Z$11 -> 0
B165: 2042 | C165: ='С2.5'!$AA$11 -> 0
B166: 2043 | C166: ='С2.5'!$AB$11 -> 0
B167: 2044 | C167: ='С2.5'!$AC$11 -> 0
B168: 2045 | C168: ='С2.5'!$AD$11 -> 0
B169: 2046 | C169: ='С2.5'!$AE$11 -> 0
B170: 2047 | C170: ='С2.5'!$AF$11 -> 0
B171: 2048 | C171: ='С2.5'!$AG$11 -> 0
B172: 2049 | C172: ='С2.5'!$AH$11 -> 0
B173: 2050 | C173: ='С2.5'!$AI$11 -> 0
B174: 2051 | C174: ='С2.5'!$AJ$11 -> 0
B175: 2052 | C175: ='С2.5'!$AK$11 -> 0
B176: 2053 | C176: ='С2.5'!$AL$11 -> 0
B177: 2054 | C177: ='С2.5'!$AM$11 -> 0
B178: 2055 | C178: ='С2.5'!$AN$11 -> 0
B179: 2056 | C179: ='С2.5'!$AO$11 -> 0
B180: 2057 | C180: ='С2.5'!$AP$11 -> 0
B181: 2058 | C181: ='С2.5'!$AQ$11 -> 0
B182: 2059 | C182: ='С2.5'!$AR$11 -> 0
B183: 2060 | C183: ='С2.5'!$AS$11 -> 0
B184: 2061 | C184: ='С2.5'!$AT$11 -> 0
B185: 2062 | C185: ='С2.5'!$AU$11 -> 0
B186: 2063 | C186: ='С2.5'!$AV$11 -> 0
B187: 2064 | C187: ='С2.5'!$AW$11 -> 0
B188: 2065 | C188: ='С2.5'!$AX$11 -> 0
B189: 2066 | C189: ='С2.5'!$AY$11 -> 0
B190: 2067 | C190: ='С2.5'!$AZ$11 -> 0
B191: 2068 | C191: ='С2.5'!$BA$11 -> 0
B192: 2069 | C192: ='С2.5'!$BB$11 -> 0
B193: 2070 | C193: ='С2.5'!$BC$11 -> 0
B194: 2071 | C194: ='С2.5'!$BD$11 -> 0
B195: 2072 | C195: ='С2.5'!$BE$11 -> 0
B196: 2073 | C196: ='С2.5'!$BF$11 -> 0
B197: 2074 | C197: ='С2.5'!$BG$11 -> 0
B198: 2075 | C198: ='С2.5'!$BH$11 -> 0
B199: 2076 | C199: ='С2.5'!$BI$11 -> 0
B200: 2077 | C200: ='С2.5'!$BJ$11 -> 0
B201: 2078 | C201: ='С2.5'!$BK$11 -> 0
B202: 2079 | C202: ='С2.5'!$BL$11 -> 0
B203: 2080 | C203: ='С2.5'!$BM$11 -> 0
B204: 2081 | C204: ='С2.5'!$BN$11 -> 0
B205: 2082 | C205: ='С2.5'!$BO$11 -> 0
B206: 2083 | C206: ='С2.5'!$BP$11 -> 0
B207: 2084 | C207: ='С2.5'!$BQ$11 -> 0
B208: 2085 | C208: ='С2.5'!$BR$11 -> 0
... 15 more rows

Sheet Проверка
A3: Ссылка | B3: Причина

Sheet ИПЦ_ИПГ
B1: Вспомогательный лист с индексами инфляции и индексом совокупного платежа граждан за коммунальные услуги
B3: № пп | C3: Показатель / годы | D3: 2022 | E3: 2023 | F3: 2024 | G3: 2025 | H3: 2026 | I3: 2027 | J3: 2028 | K3: 2029 | L3: 2030 | M3: 2031 | N3: 2032 | O3: 2033 | P3: 2034 | Q3: 2035 | R3: 2036 | S3: 2037 | T3: 2038 | U3: 2039 | V3: 2040 | W3: 2041 | X3: 2042 | Y3: 2043 | Z3: 2044 | AA3: 2045 | AB3: 2046 | AC3: 2047 | AD3: 2048 | AE3: 2049 | AF3: 2050 | AG3: 2051 | AH3: 2052 | AI3: 2053 | AJ3: 2054 | AK3: 2055 | AL3: 2056 | AM3: 2057 | AN3: 2058 | AO3: 2059 | AP3: 2060 | AQ3: 2061 | AR3: 2062 | AS3: 2063 | AT3: 2064 | AU3: 2065 | AV3: 2066 | AW3: 2067 | AX3: 2068 | AY3: 2069 | AZ3: 2070 | BA3: 2071 | BB3: 2072 | BC3: 2073 | BD3: 2074 | BE3: 2075 | BF3: 2076 | BG3: 2077 | BH3: 2078 | BI3: 2079 | BJ3: 2080 | BK3: 2081 | BL3: 2082 | BM3: 2083 | BN3: 2084 | BO3: 2085 | BP3: 2086 | BQ3: 2087 | BR3: 2088 | BS3: 2089 | BT3: 2090 | BU3: 2091 | BV3: 2092 | BW3: 2093 | BX3: 2094 | BY3: 2095 | BZ3: 2096 | CA3: 2097 | CB3: 2098 | CC3: 2099 | CD3: 2100
B4: 1 | C4: Инфляция (ИПЦ)1, в среднем за год, % | D4: 0.139 | E4: 0.06 | F4: 0.047 | G4: 0.04 | H4: =G4 -> 0.04 | I4: =H4 -> 0.04 | J4: 0.04 | K4: 0.04 | L4: 0.04 | M4: 0.04 | N4: 0.04 | O4: 0.04 | P4: 0.04 | Q4: 0.04 | R4: 0.04 | S4: 0.04 | T4: 0.04 | U4: 0.04 | V4: 0.04 | W4: 0.04 | X4: 0.04 | Y4: 0.04 | Z4: 0.04 | AA4: 0.04 | AB4: 0.04 | AC4: 0.04 | AD4: 0.04 | AE4: 0.04 | AF4: 0.04 | AG4: 0.04 | AH4: 0.04 | AI4: 0.04 | AJ4: 0.04 | AK4: 0.04 | AL4: 0.04 | AM4: 0.04 | AN4: 0.04 | AO4: 0.04 | AP4: 0.04 | AQ4: 0.04 | AR4: 0.04 | AS4: 0.04 | AT4: 0.04 | AU4: 0.04 | AV4: 0.04 | AW4: 0.04 | AX4: 0.04 | AY4: 0.04 | AZ4: 0.04 | BA4: 0.04 | BB4: 0.04 | BC4: 0.04 | BD4: 0.04 | BE4: 0.04 | BF4: 0.04 | BG4: 0.04 | BH4: 0.04 | BI4: 0.04 | BJ4: 0.04 | BK4: 0.04 | BL4: 0.04 | BM4: 0.04 | BN4: 0.04 | BO4: 0.04 | BP4: 0.04 | BQ4: 0.04 | BR4: 0.04 | BS4: 0.04 | BT4: 0.04 | BU4: =BT4 -> 0.04 | BV4: 0.04 | BW4: 0.04 | BX4: 0.04 | BY4: 0.04 | BZ4: 0.04 | CA4: 0.04 | CB4: 0.04 | CC4: 0.04 | CD4: 0.04
C5: Инфляция (ИПЦ), в среднем за год (накопленным итогом), % | D5: - | E5: =(1+E4) -> 1.06 | F5: =E5*(1+F4) -> 1.10982 | G5: =F5*(1+G4) -> 1.1542128 | H5: =G5*(1+H4) -> 1.200381312 | I5: =H5*(1+I4) -> 1.248396564 | J5: =I5*(1+J4) -> 1.298332427 | K5: 1.350265724 | L5: 1.404276353 | M5: 1.460447407 | N5: 1.518865304 | O5: 1.579619916 | P5: 1.642804712 | Q5: 1.708516901 | R5: 1.776857577 | S5: 1.84793188 | T5: 1.921849155 | U5: =T5*(1+U4) -> 1.998723121 | V5: =U5*(1+V4) -> 2.078672046 | W5: 2.161818928 | X5: 2.248291685 | Y5: 2.338223353 | Z5: 2.431752287 | AA5: 2.529022378 | AB5: 2.630183273 | AC5: 2.735390604 | AD5: 2.844806228 | AE5: 2.958598477 | AF5: 3.076942417 | AG5: 3.200020113 | AH5: 3.328020918 | AI5: 3.461141754 | AJ5: 3.599587425 | AK5: 3.743570922 | AL5: 3.893313758 | AM5: 4.049046309 | AN5: 4.211008161 | AO5: 4.379448488 | AP5: 4.554626427 | AQ5: 4.736811484 | AR5: 4.926283944 | AS5: 5.123335301 | AT5: 5.328268713 | AU5: 5.541399462 | AV5: 5.76305544 | AW5: 5.993577658 | AX5: 6.233320764 | AY5: 6.482653595 | AZ5: 6.741959739 | BA5: 7.011638128 | BB5: 7.292103653 | BC5: 7.583787799 | BD5: 7.887139311 | BE5: 8.202624884 | BF5: 8.530729879 | BG5: 8.871959074 | BH5: 9.226837437 | BI5: 9.595910935 | BJ5: 9.979747372 | BK5: 10.37893727 | BL5: 10.79409476 | BM5: 11.22585855 | BN5: 11.67489289 | BO5: 12.14188861 | BP5: 12.62756415 | BQ5: 13.13266672 | BR5: 13.65797338 | BS5: 14.20429232 | BT5: 14.77246401 | BU5: 15.36336257 | BV5: 15.97789708 | BW5: 16.61701296 | BX5: 17.28169348 | BY5: 17.97296122 | BZ5: 18.69187967 | CA5: 19.43955485 | CB5: 20.21713705 | CC5: 21.02582253 | CD5: 21.86685543
C6: Инфляция (ИПЦ)+0,04, в среднем за год (накопленным итогом), % | D6: - | E6: =(1+E4+0.04) -> 1.1 | F6: =E6*(1+F4+0.04) -> 1.1957 | G6: =F6*(1+G4+0.04) -> 1.291356 | H6: 1.39466448 | I6: 1.506237638 | J6: 1.626736649 | K6: 1.756875581 | L6: 1.897425628 | M6: 2.049219678 | N6: 2.213157252 | O6: 2.390209833 | P6: 2.581426619 | Q6: 2.787940749 | R6: 3.010976009 | S6: 3.251854089 | T6: 3.512002417 | U6: 3.79296261 | V6: 4.096399619 | W6: 4.424111588 | X6: 4.778040515 | Y6: 5.160283756 | Z6: 5.573106457 | AA6: 6.018954973 | AB6: 6.500471371 | AC6: 7.020509081 | AD6: 7.582149808 | AE6: 8.188721792 | AF6: 8.843819535 | AG6: 9.551325098 | AH6: 10.31543111 | AI6: 11.14066559 | AJ6: 12.03191884 | AK6: 12.99447235 | AL6: 14.03403014 | AM6: 15.15675255 | AN6: 16.36929275 | AO6: 17.67883617 | AP6: 19.09314307 | AQ6: 20.62059451 | AR6: 22.27024207 | AS6: 24.05186144 | AT6: 25.97601035 | AU6: 28.05409118 | AV6: 30.29841848 | AW6: 32.72229195 | AX6: 35.34007531 | AY6: 38.16728134 | AZ6: 41.22066384 | BA6: 44.51831695 | BB6: 48.07978231 | BC6: 51.92616489 | BD6: 56.08025808 | BE6: 60.56667873 | BF6: 65.41201303 | BG6: 70.64497407 | BH6: 76.29657199 | BI6: 82.40029775 | BJ6: 88.99232157 | BK6: 96.1117073 | BL6: 103.8006439 | BM6: 112.1046954 | BN6: 121.073071 | BO6: 130.7589167 | BP6: 141.21963 | BQ6: 152.5172004 | BR6: 164.7185765 | BS6: =BR6*(1+BS4+0.04) -> 177.8960626 | BT6: 192.1277476 | BU6: 207.4979674 | BV6: 224.0978048 | BW6: 242.0256292 | BX6: 261.3876795 | BY6: 282.2986939 | BZ6: 304.8825894 | CA6: 329.2731966 | CB6: 355.6150523 | CC6: 384.0642565 | CD6: =CC6*(1+CD4+0.04) -> 414.789397
B7: 2 | C7: Индекс изменения размера вносимой гражданами платы за коммунальные услуги в среднем по Российской Федерации2, % | D7: =(1+4%)*(1+9%)-1 -> 0.1336 | E7: 0 | F7: 0.063 | G7: 0.053 | H7: =G7 -> 0.053 | I7: =H7 -> 0.053 | J7: 0.053 | K7: 0.053 | L7: 0.053 | M7: 0.053 | N7: 0.053 | O7: 0.053 | P7: 0.053 | Q7: 0.053 | R7: 0.053 | S7: 0.053 | T7: 0.053 | U7: 0.053 | V7: 0.053 | W7: 0.053 | X7: 0.053 | Y7: 0.053 | Z7: 0.053 | AA7: 0.053 | AB7: 0.053 | AC7: 0.053 | AD7: 0.053 | AE7: 0.053 | AF7: 0.053 | AG7: 0.053 | AH7: 0.053 | AI7: 0.053 | AJ7: 0.053 | AK7: 0.053 | AL7: 0.053 | AM7: 0.053 | AN7: 0.053 | AO7: 0.053 | AP7: 0.053 | AQ7: 0.053 | AR7: 0.053 | AS7: 0.053 | AT7: 0.053 | AU7: 0.053 | AV7: 0.053 | AW7: 0.053 | AX7: 0.053 | AY7: 0.053 | AZ7: 0.053 | BA7: 0.053 | BB7: 0.053 | BC7: 0.053 | BD7: 0.053 | BE7: 0.053 | BF7: 0.053 | BG7: 0.053 | BH7: 0.053 | BI7: 0.053 | BJ7: 0.053 | BK7: 0.053 | BL7: 0.053 | BM7: 0.053 | BN7: 0.053 | BO7: 0.053 | BP7: 0.053 | BQ7: 0.053 | BR7: 0.053 | BS7: 0.053 | BT7: 0.053 | BU7: =BT7 -> 0.053 | BV7: 0.053 | BW7: 0.053 | BX7: 0.053 | BY7: 0.053 | BZ7: 0.053 | CA7: 0.053 | CB7: 0.053 | CC7: 0.053 | CD7: 0.053
C8: Индекс изменения размера вносимой гражданами платы за коммунальные услуги в среднем по Российской Федерации (накопленным итогом), % | D8: - | E8: =(1+E7) -> 1 | F8: =E8*(1+F7) -> 1.063 | G8: =F8*(1+G7) -> 1.119339 | H8: =G8*(1+H7) -> 1.178663967 | I8: =H8*(1+I7) -> 1.241133157 | J8: =I8*(1+J7) -> 1.306913215 | K8: =J8*(1+K7) -> 1.376179615 | L8: 1.449117135 | M8: 1.525920343 | N8: 1.606794121 | O8: 1.691954209 | P8: 1.781627782 | Q8: 1.876054055 | R8: 1.97548492 | S8: 2.08018562 | T8: 2.190435458 | U8: =T8*(1+U7) -> 2.306528538 | V8: =U8*(1+V7) -> 2.42877455 | W8: 2.557499601 | X8: 2.69304708 | Y8: 2.835778575 | Z8: 2.98607484 | AA8: 3.144336806 | AB8: 3.310986657 | AC8: 3.48646895 | AD8: 3.671251804 | AE8: 3.86582815 | AF8: 4.070717042 | AG8: 4.286465045 | AH8: 4.513647693 | AI8: 4.75287102 | AJ8: 5.004773184 | AK8: 5.270026163 | AL8: 5.54933755 | AM8: 5.84345244 | AN8: 6.153155419 | AO8: 6.479272656 | AP8: 6.822674107 | AQ8: 7.184275835 | AR8: 7.565042454 | AS8: 7.965989704 | AT8: 8.388187158 | AU8: 8.832761078 | AV8: 9.300897415 | AW8: 9.793844978 | AX8: 10.31291876 | AY8: 10.85950346 | AZ8: 11.43505714 | BA8: 12.04111517 | BB8: 12.67929427 | BC8: 13.35129687 | BD8: 14.0589156 | BE8: 14.80403813 | BF8: 15.58865215 | BG8: 16.41485071 | BH8: 17.2848378 | BI8: 18.20093421 | BJ8: 19.16558372 | BK8: 20.18135965 | BL8: 21.25097172 | BM8: 22.37727322 | BN8: 23.5632687 | BO8: 24.81212194 | BP8: 26.1271644 | BQ8: 27.51190412 | BR8: 28.97003503 | BS8: 30.50544689 | BT8: 32.12223558 | BU8: 33.82471406 | BV8: 35.61742391 | BW8: 37.50514737 | BX8: 39.49292018 | BY8: 41.58604495 | BZ8: 43.79010534 | CA8: 46.11098092 | CB8: 48.55486291 | CC8: 51.12827064 | CD8: 53.83806899
C10: 1 Инфляция (ИПЦ), в среднем за год: на 2022-2025 годы: Прогноз социально-экономического развития Российской Федерации на 2023 год и на плановый период 2024 и 2025 годов (размещен на официальном сайте Минэкономразвития России 28.09.2022): файл в формате MS Excel "6. ИПЦ базовый", таблица "Прогноз показателей инфляции (Базовый вариант)", показатель "потребительские цены (ИПЦ), в среднем за год, %"; на 2026 и последующие годы: индекс приравнивается к уровню 2025 года.
C11: 2 Совокупный платеж граждан за коммунальные услуги - размеры индексации: на 2022-2025 годы: Прогноз социально-экономического развития Российской Федерации на 2023 год и на плановый период 2024 и 2025 годов (размещен на официальном сайте Минэкономразвития России 28.09.2022): файл в формате PDF, таблица «Прогнозируемые изменения цен (тарифов) на продукцию (услуги) компаний инфраструктурного сектора на 2023-2025 гг.,%, показатель "Совокупный платеж граждан за коммунальные услуги - размеры индексации"; на 2026 и последующие годы: индекс приравнивается к уровню 2025 года.

Sheet АК_прогноз
A2: =CONCATENATE("Прогноз предельного уровня цены на тепловую энергию (мощность) (цены",CHAR(34),"альтернативной котельной",CHAR(34),") на ",И1!E8," - ",W5," годы, руб./Гкал (без НДС)") -> Прогноз предельного уровня цены на тепловую энергию (мощность) (цены"альтернативной котельной") на 2024 - 2044 годы, руб./Гкал (без НДС)
A3: =И1!E13&" "&И1!E14&" "&И1!E17 -> Ненецкий автономный округ Заполярный район
B4: годы № | C4: 1 | D4: 2 | E4: 3 | F4: 4 | G4: 5 | H4: 6 | I4: 7 | J4: 8 | K4: 9 | L4: 10 | M4: 11 | N4: 12 | O4: 13 | P4: 14 | Q4: 15 | R4: 16 | S4: 17 | T4: 18 | U4: 19 | V4: 20 | W4: 21
A5: Параметр расчета \ годы | B5: Ед. изм. | C5: =CONCATENATE("2пг",И1!E8) -> 2пг2024 | D5: =И1!$E8+1 -> 2025 | E5: =D5+1 -> 2026 | F5: =E5+1 -> 2027 | G5: 2028 | H5: 2029 | I5: 2030 | J5: 2031 | K5: 2032 | L5: 2033 | M5: 2034 | N5: 2035 | O5: 2036 | P5: 2037 | Q5: 2038 | R5: 2039 | S5: 2040 | T5: =S5+1 -> 2041 | U5: =T5+1 -> 2042 | V5: =U5+1 -> 2043 | W5: =V5+1 -> 2044
A6: Цена "альтернативной котельной" | B6: руб. / Гкал | C6: =И3!C17 -> 10533.64813 | D6: =C6*(1+D7) -> 10954.99406 | E6: =D6*(1+E7) -> 11393.19382 | F6: 11848.92157 | G6: 12322.87844 | H6: 12815.79358 | I6: 13328.42532 | J6: 13861.56233 | K6: 14416.02482 | L6: 14992.66582 | M6: 15592.37245 | N6: 16216.06735 | O6: 16864.71004 | P6: 17539.29844 | Q6: 18240.87038 | R6: 18970.5052 | S6: =R6*(1+S7) -> 19729.3254 | T6: =S6*(1+T7) -> 20518.49842 | U6: =T6*(1+U7) -> 21339.23836 | V6: 22192.80789 | W6: 23080.52021
A7: Инфляция (ИПЦ), в среднем за год | B7: % | C7: =HLOOKUP(D5-1,ИПЦ_ИПГ!$D$3:$CD$4,2,FALSE) -> 0.047 | D7: =HLOOKUP(D5,ИПЦ_ИПГ!$D$3:$CD$4,2,FALSE) -> 0.04 | E7: =HLOOKUP(E5,ИПЦ_ИПГ!$D$3:$CD$4,2,FALSE) -> 0.04 | F7: =HLOOKUP(F5,ИПЦ_ИПГ!$D$3:$CD$4,2,FALSE) -> 0.04 | G7: =HLOOKUP(G5,ИПЦ_ИПГ!$D$3:$CD$4,2,FALSE) -> 0.04 | H7: =HLOOKUP(H5,ИПЦ_ИПГ!$D$3:$CD$4,2,FALSE) -> 0.04 | I7: =HLOOKUP(I5,ИПЦ_ИПГ!$D$3:$CD$4,2,FALSE) -> 0.04 | J7: =HLOOKUP(J5,ИПЦ_ИПГ!$D$3:$CD$4,2,FALSE) -> 0.04 | K7: =HLOOKUP(K5,ИПЦ_ИПГ!$D$3:$CD$4,2,FALSE) -> 0.04 | L7: =HLOOKUP(L5,ИПЦ_ИПГ!$D$3:$CD$4,2,FALSE) -> 0.04 | M7: =HLOOKUP(M5,ИПЦ_ИПГ!$D$3:$CD$4,2,FALSE) -> 0.04 | N7: =HLOOKUP(N5,ИПЦ_ИПГ!$D$3:$CD$4,2,FALSE) -> 0.04 | O7: =HLOOKUP(O5,ИПЦ_ИПГ!$D$3:$CD$4,2,FALSE) -> 0.04 | P7: =HLOOKUP(P5,ИПЦ_ИПГ!$D$3:$CD$4,2,FALSE) -> 0.04 | Q7: =HLOOKUP(Q5,ИПЦ_ИПГ!$D$3:$CD$4,2,FALSE) -> 0.04 | R7: =HLOOKUP(R5,ИПЦ_ИПГ!$D$3:$CD$4,2,FALSE) -> 0.04 | S7: =HLOOKUP(S5,ИПЦ_ИПГ!$D$3:$CD$4,2,FALSE) -> 0.04 | T7: =HLOOKUP(T5,ИПЦ_ИПГ!$D$3:$CD$4,2,FALSE) -> 0.04 | U7: =HLOOKUP(U5,ИПЦ_ИПГ!$D$3:$CD$4,2,FALSE) -> 0.04 | V7: =HLOOKUP(V5,ИПЦ_ИПГ!$D$3:$CD$4,2,FALSE) -> 0.04 | W7: =HLOOKUP(W5,ИПЦ_ИПГ!$D$3:$CD$4,2,FALSE) -> 0.04

Sheet ПУЦ (п.67) (hidden)
B4: Прогноз предельного уровня цены на тепловую энергию (мощность) с учетом особенностей, предусмотренных разделом V Правил, утверждаемых постановлением Правительства Российской Федерации от 03.11.2022 № 1985 "О внесении изменений в постановление Правительства Российской Федерации от 15 декабря 2017 г. № 1562"
B6: 1 | C6: Предельный уровень цены на тепловую энергию (мощность), рассчитанный в соответствии с разделом II Правил и действовавший на дату вступления в силу изменений (на 2 пг 2022), руб./Гкал (без НДС) | E6: Вписать реквизиты решения органа регулирования
B9: № пп | C9: Параметр расчета \ годы | D9: =И1!E8 -> 2024 | E9: =D9+1 -> 2025 | F9: 2026 | G9: 2027 | H9: 2028 | I9: 2029 | J9: 2030 | K9: 2031 | L9: 2032 | M9: 2033 | N9: 2034 | O9: 2035 | P9: 2036 | Q9: 2037 | R9: 2038 | S9: 2039 | T9: 2040 | U9: 2041 | V9: 2042 | W9: 2043 | X9: 2044
B10: 1 | C10: Инфляция (индекс потребительских цен), в среднем за год, % | D10: =HLOOKUP(D9,ИПЦ_ИПГ!$D$3:$CD$7,2,TRUE) -> 0.047 | E10: =HLOOKUP(E9,ИПЦ_ИПГ!$D$3:$CD$7,2,TRUE) -> 0.04 | F10: =HLOOKUP(F9,ИПЦ_ИПГ!$D$3:$CD$7,2,TRUE) -> 0.04 | G10: =HLOOKUP(G9,ИПЦ_ИПГ!$D$3:$CD$7,2,TRUE) -> 0.04 | H10: =HLOOKUP(H9,ИПЦ_ИПГ!$D$3:$CD$7,2,TRUE) -> 0.04 | I10: =HLOOKUP(I9,ИПЦ_ИПГ!$D$3:$CD$7,2,TRUE) -> 0.04 | J10: =HLOOKUP(J9,ИПЦ_ИПГ!$D$3:$CD$7,2,TRUE) -> 0.04 | K10: =HLOOKUP(K9,ИПЦ_ИПГ!$D$3:$CD$7,2,TRUE) -> 0.04 | L10: =HLOOKUP(L9,ИПЦ_ИПГ!$D$3:$CD$7,2,TRUE) -> 0.04 | M10: =HLOOKUP(M9,ИПЦ_ИПГ!$D$3:$CD$7,2,TRUE) -> 0.04 | N10: =HLOOKUP(N9,ИПЦ_ИПГ!$D$3:$CD$7,2,TRUE) -> 0.04 | O10: =HLOOKUP(O9,ИПЦ_ИПГ!$D$3:$CD$7,2,TRUE) -> 0.04 | P10: =HLOOKUP(P9,ИПЦ_ИПГ!$D$3:$CD$7,2,TRUE) -> 0.04 | Q10: =HLOOKUP(Q9,ИПЦ_ИПГ!$D$3:$CD$7,2,TRUE) -> 0.04 | R10: =HLOOKUP(R9,ИПЦ_ИПГ!$D$3:$CD$7,2,TRUE) -> 0.04 | S10: =HLOOKUP(S9,ИПЦ_ИПГ!$D$3:$CD$7,2,TRUE) -> 0.04 | T10: =HLOOKUP(T9,ИПЦ_ИПГ!$D$3:$CD$7,2,TRUE) -> 0.04 | U10: =HLOOKUP(U9,ИПЦ_ИПГ!$D$3:$CD$7,2,TRUE) -> 0.04 | V10: =HLOOKUP(V9,ИПЦ_ИПГ!$D$3:$CD$7,2,TRUE) -> 0.04 | W10: =HLOOKUP(W9,ИПЦ_ИПГ!$D$3:$CD$7,2,TRUE) -> 0.04 | X10: =HLOOKUP(X9,ИПЦ_ИПГ!$D$3:$CD$7,2,TRUE) -> 0.04
C11: Инфляция (ИПЦ), в среднем за год (накопленным итогом), % | D11: =HLOOKUP(D9,ИПЦ_ИПГ!$D$3:$CD$7,3,TRUE) -> 1.10982 | E11: =HLOOKUP(E9,ИПЦ_ИПГ!$D$3:$CD$7,3,TRUE) -> 1.1542128 | F11: =HLOOKUP(F9,ИПЦ_ИПГ!$D$3:$CD$7,3,TRUE) -> 1.200381312 | G11: =HLOOKUP(G9,ИПЦ_ИПГ!$D$3:$CD$7,3,TRUE) -> 1.248396564 | H11: =HLOOKUP(H9,ИПЦ_ИПГ!$D$3:$CD$7,3,TRUE) -> 1.298332427 | I11: =HLOOKUP(I9,ИПЦ_ИПГ!$D$3:$CD$7,3,TRUE) -> 1.350265724 | J11: =HLOOKUP(J9,ИПЦ_ИПГ!$D$3:$CD$7,3,TRUE) -> 1.404276353 | K11: =HLOOKUP(K9,ИПЦ_ИПГ!$D$3:$CD$7,3,TRUE) -> 1.460447407 | L11: =HLOOKUP(L9,ИПЦ_ИПГ!$D$3:$CD$7,3,TRUE) -> 1.518865304 | M11: =HLOOKUP(M9,ИПЦ_ИПГ!$D$3:$CD$7,3,TRUE) -> 1.579619916 | N11: =HLOOKUP(N9,ИПЦ_ИПГ!$D$3:$CD$7,3,TRUE) -> 1.642804712 | O11: =HLOOKUP(O9,ИПЦ_ИПГ!$D$3:$CD$7,3,TRUE) -> 1.708516901 | P11: =HLOOKUP(P9,ИПЦ_ИПГ!$D$3:$CD$7,3,TRUE) -> 1.776857577 | Q11: =HLOOKUP(Q9,ИПЦ_ИПГ!$D$3:$CD$7,3,TRUE) -> 1.84793188 | R11: =HLOOKUP(R9,ИПЦ_ИПГ!$D$3:$CD$7,3,TRUE) -> 1.921849155 | S11: =HLOOKUP(S9,ИПЦ_ИПГ!$D$3:$CD$7,3,TRUE) -> 1.998723121 | T11: =HLOOKUP(T9,ИПЦ_ИПГ!$D$3:$CD$7,3,TRUE) -> 2.078672046 | U11: =HLOOKUP(U9,ИПЦ_ИПГ!$D$3:$CD$7,3,TRUE) -> 2.161818928 | V11: =HLOOKUP(V9,ИПЦ_ИПГ!$D$3:$CD$7,3,TRUE) -> 2.248291685 | W11: =HLOOKUP(W9,ИПЦ_ИПГ!$D$3:$CD$7,3,TRUE) -> 2.338223353 | X11: =HLOOKUP(X9,ИПЦ_ИПГ!$D$3:$CD$7,3,TRUE) -> 2.431752287
B12: 2 | C12: Индекс изменения размера вносимой гражданами платы за коммунальные услуги в среднем по Российской Федерации, % | D12: =HLOOKUP(D9,ИПЦ_ИПГ!$D$3:$CD$7,5,TRUE) -> 0.063 | E12: =HLOOKUP(E9,ИПЦ_ИПГ!$D$3:$CD$7,5,TRUE) -> 0.053 | F12: =HLOOKUP(F9,ИПЦ_ИПГ!$D$3:$CD$7,5,TRUE) -> 0.053 | G12: =HLOOKUP(G9,ИПЦ_ИПГ!$D$3:$CD$7,5,TRUE) -> 0.053 | H12: =HLOOKUP(H9,ИПЦ_ИПГ!$D$3:$CD$7,5,TRUE) -> 0.053 | I12: =HLOOKUP(I9,ИПЦ_ИПГ!$D$3:$CD$7,5,TRUE) -> 0.053 | J12: =HLOOKUP(J9,ИПЦ_ИПГ!$D$3:$CD$7,5,TRUE) -> 0.053 | K12: =HLOOKUP(K9,ИПЦ_ИПГ!$D$3:$CD$7,5,TRUE) -> 0.053 | L12: =HLOOKUP(L9,ИПЦ_ИПГ!$D$3:$CD$7,5,TRUE) -> 0.053 | M12: =HLOOKUP(M9,ИПЦ_ИПГ!$D$3:$CD$7,5,TRUE) -> 0.053 | N12: =HLOOKUP(N9,ИПЦ_ИПГ!$D$3:$CD$7,5,TRUE) -> 0.053 | O12: =HLOOKUP(O9,ИПЦ_ИПГ!$D$3:$CD$7,5,TRUE) -> 0.053 | P12: =HLOOKUP(P9,ИПЦ_ИПГ!$D$3:$CD$7,5,TRUE) -> 0.053 | Q12: =HLOOKUP(Q9,ИПЦ_ИПГ!$D$3:$CD$7,5,TRUE) -> 0.053 | R12: =HLOOKUP(R9,ИПЦ_ИПГ!$D$3:$CD$7,5,TRUE) -> 0.053 | S12: =HLOOKUP(S9,ИПЦ_ИПГ!$D$3:$CD$7,5,TRUE) -> 0.053 | T12: =HLOOKUP(T9,ИПЦ_ИПГ!$D$3:$CD$7,5,TRUE) -> 0.053 | U12: =HLOOKUP(U9,ИПЦ_ИПГ!$D$3:$CD$7,5,TRUE) -> 0.053 | V12: =HLOOKUP(V9,ИПЦ_ИПГ!$D$3:$CD$7,5,TRUE) -> 0.053 | W12: =HLOOKUP(W9,ИПЦ_ИПГ!$D$3:$CD$7,5,TRUE) -> 0.053 | X12: =HLOOKUP(X9,ИПЦ_ИПГ!$D$3:$CD$7,5,TRUE) -> 0.053
C13: Индекс изменения размера вносимой гражданами платы за коммунальные услуги в среднем по Российской Федерации (накопленным итогом), % | D13: =HLOOKUP(D9,ИПЦ_ИПГ!$D$3:$CD$8,6,TRUE) -> 1.063 | E13: =HLOOKUP(E9,ИПЦ_ИПГ!$D$3:$CD$8,6,TRUE) -> 1.119339 | F13: =HLOOKUP(F9,ИПЦ_ИПГ!$D$3:$CD$8,6,TRUE) -> 1.178663967 | G13: =HLOOKUP(G9,ИПЦ_ИПГ!$D$3:$CD$8,6,TRUE) -> 1.241133157 | H13: =HLOOKUP(H9,ИПЦ_ИПГ!$D$3:$CD$8,6,TRUE) -> 1.306913215 | I13: =HLOOKUP(I9,ИПЦ_ИПГ!$D$3:$CD$8,6,TRUE) -> 1.376179615 | J13: =HLOOKUP(J9,ИПЦ_ИПГ!$D$3:$CD$8,6,TRUE) -> 1.449117135 | K13: =HLOOKUP(K9,ИПЦ_ИПГ!$D$3:$CD$8,6,TRUE) -> 1.525920343 | L13: =HLOOKUP(L9,ИПЦ_ИПГ!$D$3:$CD$8,6,TRUE) -> 1.606794121 | M13: =HLOOKUP(M9,ИПЦ_ИПГ!$D$3:$CD$8,6,TRUE) -> 1.691954209 | N13: =HLOOKUP(N9,ИПЦ_ИПГ!$D$3:$CD$8,6,TRUE) -> 1.781627782 | O13: =HLOOKUP(O9,ИПЦ_ИПГ!$D$3:$CD$8,6,TRUE) -> 1.876054055 | P13: =HLOOKUP(P9,ИПЦ_ИПГ!$D$3:$CD$8,6,TRUE) -> 1.97548492 | Q13: =HLOOKUP(Q9,ИПЦ_ИПГ!$D$3:$CD$8,6,TRUE) -> 2.08018562 | R13: =HLOOKUP(R9,ИПЦ_ИПГ!$D$3:$CD$8,6,TRUE) -> 2.190435458 | S13: =HLOOKUP(S9,ИПЦ_ИПГ!$D$3:$CD$8,6,TRUE) -> 2.306528538 | T13: =HLOOKUP(T9,ИПЦ_ИПГ!$D$3:$CD$8,6,TRUE) -> 2.42877455 | U13: =HLOOKUP(U9,ИПЦ_ИПГ!$D$3:$CD$8,6,TRUE) -> 2.557499601 | V13: =HLOOKUP(V9,ИПЦ_ИПГ!$D$3:$CD$8,6,TRUE) -> 2.69304708 | W13: =HLOOKUP(W9,ИПЦ_ИПГ!$D$3:$CD$8,6,TRUE) -> 2.835778575 | X13: =HLOOKUP(X9,ИПЦ_ИПГ!$D$3:$CD$8,6,TRUE) -> 2.98607484
B14: 3 | C14: Прогноз предельного уровня цены на тепловую энергию (мощность) с учетом особенностей, предусмотренных разделом V Правил (пункт 67 Правил), руб./Гкал (без НДС) | D14: =$D$6*MIN(D11,D13) -> 0 | E14: =$D$6*MIN(E11,E13) -> 0 | F14: =$D$6*MIN(F11,F13) -> 0 | G14: =$D$6*MIN(G11,G13) -> 0 | H14: =$D$6*MIN(H11,H13) -> 0 | I14: =$D$6*MIN(I11,I13) -> 0 | J14: =$D$6*MIN(J11,J13) -> 0 | K14: =$D$6*MIN(K11,K13) -> 0 | L14: =$D$6*MIN(L11,L13) -> 0 | M14: =$D$6*MIN(M11,M13) -> 0 | N14: =$D$6*MIN(N11,N13) -> 0 | O14: =$D$6*MIN(O11,O13) -> 0 | P14: =$D$6*MIN(P11,P13) -> 0 | Q14: =$D$6*MIN(Q11,Q13) -> 0 | R14: =$D$6*MIN(R11,R13) -> 0 | S14: =$D$6*MIN(S11,S13) -> 0 | T14: =$D$6*MIN(T11,T13) -> 0 | U14: =$D$6*MIN(U11,U13) -> 0 | V14: =$D$6*MIN(V11,V13) -> 0 | W14: =$D$6*MIN(W11,W13) -> 0 | X14: =$D$6*MIN(X11,X13) -> 0

Sheet АК_прогноз_j (hidden)
B4: ="Предельный уровень цены на тепловую энергию (мощность) (цена "&CHAR(34)&"альтернативной котельной"&CHAR(34)&") на очередной j-й расчетный период регулирования ("&И1!E8&" год) и его прогноз на "&И1!E8+1&" - "&AL13&" годы" -> Предельный уровень цены на тепловую энергию (мощность) (цена "альтернативной котельной") на очередной j-й расчетный период регулирования (2024 год) и его прогноз на 2025 - 34 годы
B5: =И1!E13&" "&И1!E14&" "&И1!E17 -> Ненецкий автономный округ Заполярный район
B7: 1 | C7: Период регулирования (j)-й | D7: =И1!$E$8 -> 2024
B8: 2 | C8: Период регулирования (i)-й
B9: 3 | C9: Предельный уровень цены на тепловую энергию (мощность) (цена "альтернативной котельной") на i-й расчетный период регулирования, рассчитанный в соответствии с пунктом 10 Правил , руб./Гкал (без НДС) | E9: Вписать реквизиты решения органа регулирования
B13: № пп | C13: Параметр расчета \ годы | D13: =D8 -> 0 | E13: =D13+1 -> 1 | F13: =E13+1 -> 2 | G13: 3 | H13: 4 | I13: 5 | J13: 6 | K13: 7 | L13: 8 | M13: 9 | N13: 10 | O13: 11 | P13: 12 | Q13: 13 | R13: 14 | S13: 15 | T13: 16 | U13: 17 | V13: 18 | W13: 19 | X13: 20 | Y13: 21 | Z13: =Y13+1 -> 22 | AA13: =Z13+1 -> 23 | AB13: =AA13+1 -> 24 | AC13: =AB13+1 -> 25 | AD13: =AC13+1 -> 26 | AE13: =AD13+1 -> 27 | AF13: =AE13+1 -> 28 | AG13: =AF13+1 -> 29 | AH13: =AG13+1 -> 30 | AI13: =AH13+1 -> 31 | AJ13: =AI13+1 -> 32 | AK13: =AJ13+1 -> 33 | AL13: =AK13+1 -> 34
B14: 1 | C14: Инфляция (индекс потребительских цен), в среднем за год, % | D14: - | E14: =HLOOKUP(E13,ИПЦ_ИПГ!$D$3:$CD$7,2,TRUE) ->  | F14: =HLOOKUP(F13,ИПЦ_ИПГ!$D$3:$CD$7,2,TRUE) ->  | G14: =HLOOKUP(G13,ИПЦ_ИПГ!$D$3:$CD$7,2,TRUE) ->  | H14: =HLOOKUP(H13,ИПЦ_ИПГ!$D$3:$CD$7,2,TRUE) ->  | I14: =HLOOKUP(I13,ИПЦ_ИПГ!$D$3:$CD$7,2,TRUE) ->  | J14: =HLOOKUP(J13,ИПЦ_ИПГ!$D$3:$CD$7,2,TRUE) ->  | K14: =HLOOKUP(K13,ИПЦ_ИПГ!$D$3:$CD$7,2,TRUE) ->  | L14: =HLOOKUP(L13,ИПЦ_ИПГ!$D$3:$CD$7,2,TRUE) ->  | M14: =HLOOKUP(M13,ИПЦ_ИПГ!$D$3:$CD$7,2,TRUE) ->  | N14: =HLOOKUP(N13,ИПЦ_ИПГ!$D$3:$CD$7,2,TRUE) ->  | O14: =HLOOKUP(O13,ИПЦ_ИПГ!$D$3:$CD$7,2,TRUE) ->  | P14: =HLOOKUP(P13,ИПЦ_ИПГ!$D$3:$CD$7,2,TRUE) ->  | Q14: =HLOOKUP(Q13,ИПЦ_ИПГ!$D$3:$CD$7,2,TRUE) ->  | R14: =HLOOKUP(R13,ИПЦ_ИПГ!$D$3:$CD$7,2,TRUE) ->  | S14: =HLOOKUP(S13,ИПЦ_ИПГ!$D$3:$CD$7,2,TRUE) ->  | T14: =HLOOKUP(T13,ИПЦ_ИПГ!$D$3:$CD$7,2,TRUE) ->  | U14: =HLOOKUP(U13,ИПЦ_ИПГ!$D$3:$CD$7,2,TRUE) ->  | V14: =HLOOKUP(V13,ИПЦ_ИПГ!$D$3:$CD$7,2,TRUE) ->  | W14: =HLOOKUP(W13,ИПЦ_ИПГ!$D$3:$CD$7,2,TRUE) ->  | X14: =HLOOKUP(X13,ИПЦ_ИПГ!$D$3:$CD$7,2,TRUE) ->  | Y14: =HLOOKUP(Y13,ИПЦ_ИПГ!$D$3:$CD$7,2,TRUE) ->  | Z14: =HLOOKUP(Z13,ИПЦ_ИПГ!$D$3:$CD$7,2,TRUE) ->  | AA14: =HLOOKUP(AA13,ИПЦ_ИПГ!$D$3:$CD$7,2,TRUE) ->  | AB14: =HLOOKUP(AB13,ИПЦ_ИПГ!$D$3:$CD$7,2,TRUE) ->  | AC14: =HLOOKUP(AC13,ИПЦ_ИПГ!$D$3:$CD$7,2,TRUE) ->  | AD14: =HLOOKUP(AD13,ИПЦ_ИПГ!$D$3:$CD$7,2,TRUE) ->  | AE14: =HLOOKUP(AE13,ИПЦ_ИПГ!$D$3:$CD$7,2,TRUE) ->  | AF14: =HLOOKUP(AF13,ИПЦ_ИПГ!$D$3:$CD$7,2,TRUE) ->  | AG14: =HLOOKUP(AG13,ИПЦ_ИПГ!$D$3:$CD$7,2,TRUE) ->  | AH14: =HLOOKUP(AH13,ИПЦ_ИПГ!$D$3:$CD$7,2,TRUE) ->  | AI14: =HLOOKUP(AI13,ИПЦ_ИПГ!$D$3:$CD$7,2,TRUE) ->  | AJ14: =HLOOKUP(AJ13,ИПЦ_ИПГ!$D$3:$CD$7,2,TRUE) ->  | AK14: =HLOOKUP(AK13,ИПЦ_ИПГ!$D$3:$CD$7,2,TRUE) ->  | AL14: =HLOOKUP(AL13,ИПЦ_ИПГ!$D$3:$CD$7,2,TRUE) -> 
C15: Инфляция (ИПЦ), в среднем за год (накопленным итогом), % | D15: - | E15: =1+E14 ->  | F15: =E15*(1+F14) ->  | G15: =F15*(1+G14) ->  | H15: =G15*(1+H14) ->  | Z15: =Y15*(1+Z14) ->  | AA15: =Z15*(1+AA14) ->  | AB15: =AA15*(1+AB14) ->  | AC15: =AB15*(1+AC14) ->  | AD15: =AC15*(1+AD14) ->  | AE15: =AD15*(1+AE14) ->  | AF15: =AE15*(1+AF14) ->  | AG15: =AF15*(1+AG14) ->  | AH15: =AG15*(1+AH14) ->  | AI15: =AH15*(1+AI14) ->  | AJ15: =AI15*(1+AJ14) ->  | AK15: =AJ15*(1+AK14) ->  | AL15: =AK15*(1+AL14) -> 
B16: 2 | C16: Предельный уровень цены на тепловую энергию (мощность) (цена "альтернативной котельной"), рассчитанный в соответствии с пунктом 431 Правил на j-й год, (Цj) и его прогноз, руб./Гкал (без НДС) | D16: - | E16: =IF($E$13:$Y$13>=$D$7,$D$9*E15,"-") -> - | F16: =IF($E$13:$Y$13>=$D$7,$D$9*F15,"-") -> - | G16: - | H16: - | I16: - | J16: - | K16: - | L16: - | M16: - | N16: - | O16: - | P16: - | Q16: - | R16: - | S16: - | T16: - | U16: - | V16: - | W16: - | X16: - | Y16: - | Z16: =IF($E$13:$AL$13>=$D$7,$D$9*Z15,"-") -> - | AA16: =IF($E$13:$AL$13>=$D$7,$D$9*AA15,"-") -> - | AB16: =IF($E$13:$AL$13>=$D$7,$D$9*AB15,"-") -> - | AC16: - | AD16: - | AE16: - | AF16: - | AG16: - | AH16: - | AI16: - | AJ16: - | AK16: - | AL16: =IF($E$13:$AL$13>=$D$7,$D$9*AL15,"-") -> -

Sheet Гр&ПУЦ_v1
B1: Формирование расчетных темпов роста тарифов на тепловую энергию до цены "альтерантивной котельной", предложений по графикам равномерного поэтапного доведения предельного уровня цены на тепловую энергию (мощность) до цены "альтернативной котельной" с учетом прогноза ее изменения (далее - график), расчетного предельного уровня цены на тепловую энергию (мощность) на основании графика, цены на тепловую энергию (мощность) для потребителей с предполагаемым темпом роста в случае если цена "альтернативной котельной" выше тарифа на тепловую энергию на 2 полугодие первого расчетного периода Вариант расчета через равномерный темп роста предельного уровня цены на тепловую энергию (мощность)
B2: 0 | C2: Видом топлива, использование которого преобладает в поселении, городском округе, является уголь и в этом поселении, городском округе есть источники тепловой энергии, функционирующие в режиме комбинированной выработки электрической и тепловой энергии (выберите из списка: да/нет)
B3: =МУ770_Т1!B10 -> 1 | C3: ="Утвержденный тариф на тепловую энергию (мощность), поставляемую потребителям, на предполагаемую дату окончания переходного периода 01.07."&И1!E8&", без НДС, руб./Гкал" -> Утвержденный тариф на тепловую энергию (мощность), поставляемую потребителям, на предполагаемую дату окончания переходного периода 01.07.2024, без НДС, руб./Гкал | H3: Вписать наименование тарифа и реквизиты решения органа регулирования
B4: 2 | C4: Предполагаемый срок графика равномерного поэтапного доведения предельного уровня цены на тепловую энергию (мощность) до цены "альтернативной котельной", лет
B5: 3 | C5: Прогноз цены "альтернативной котельной" на дату окончания графика доведения предельного уровня цены на тепловую энергию (мощность) до цены "альтернативной котельной", руб./Гкал | G5: =IF(OR(AND(G2="да",G4>=6,G4<=10),AND(G2="нет",G4<=5)),SUMIF(АК_прогноз!C4:L4,'Гр&ПУЦ_v1'!G4,АК_прогноз!C6:G6),"введите допустимый срок графика") -> введите допустимый срок графика
G6: 1 | I6: 2 | K6: 3 | M6: 4 | O6: 5 | Q6: 6 | S6: 7 | U6: 8 | W6: 9 | Y6: 10 | AA6: 11 | AC6: 12 | AE6: 13 | AG6: 14 | AI6: 15 | AK6: 16 | AM6: 17 | AO6: 18 | AQ6: 19 | AS6: 20 | AU6: 21
B7: № пп | C7: Субъект Российской Федерации | D7: Поселение, городской округ | E7: ЕТО, система теплоснабжения | F7: Параметр расчета \ годы | G7: =И1!E8 -> 2024 | H7: =G7+1 -> 2025 | J7: =H7+1 -> 2026 | L7: =J7+1 -> 2027 | N7: =L7+1 -> 2028 | P7: =N7+1 -> 2029 | R7: =P7+1 -> 2030 | T7: =R7+1 -> 2031 | V7: =T7+1 -> 2032 | X7: =V7+1 -> 2033 | Z7: =X7+1 -> 2034 | AB7: =Z7+1 -> 2035 | AD7: =AB7+1 -> 2036 | AF7: =AD7+1 -> 2037 | AH7: =AF7+1 -> 2038 | AJ7: =AH7+1 -> 2039 | AL7: =AJ7+1 -> 2040 | AN7: =AL7+1 -> 2041 | AP7: =AN7+1 -> 2042 | AR7: =AP7+1 -> 2043 | AT7: =AR7+1 -> 2044
G8: ="2пг"&G7 -> 2пг2024 | H8: ="1пг"&H7 -> 1пг2025 | I8: ="2пг"&H7 -> 2пг2025 | J8: ="1пг"&J7 -> 1пг2026 | K8: ="2пг"&J7 -> 2пг2026 | L8: ="1пг"&L7 -> 1пг2027 | M8: ="2пг"&L7 -> 2пг2027 | N8: ="1пг"&N7 -> 1пг2028 | O8: ="2пг"&N7 -> 2пг2028 | P8: ="1пг"&P7 -> 1пг2029 | Q8: ="2пг"&P7 -> 2пг2029 | R8: ="1пг"&R7 -> 1пг2030 | S8: ="2пг"&R7 -> 2пг2030 | T8: ="1пг"&T7 -> 1пг2031 | U8: ="2пг"&T7 -> 2пг2031 | V8: ="1пг"&V7 -> 1пг2032 | W8: ="2пг"&V7 -> 2пг2032 | X8: ="1пг"&X7 -> 1пг2033 | Y8: ="2пг"&X7 -> 2пг2033 | Z8: ="1пг"&Z7 -> 1пг2034 | AA8: ="2пг"&Z7 -> 2пг2034 | AB8: ="1пг"&AB7 -> 1пг2035 | AC8: ="2пг"&AB7 -> 2пг2035 | AD8: ="1пг"&AD7 -> 1пг2036 | AE8: ="2пг"&AD7 -> 2пг2036 | AF8: ="1пг"&AF7 -> 1пг2037 | AG8: ="2пг"&AF7 -> 2пг2037 | AH8: ="1пг"&AH7 -> 1пг2038 | AI8: ="2пг"&AH7 -> 2пг2038 | AJ8: ="1пг"&AJ7 -> 1пг2039 | AK8: ="2пг"&AJ7 -> 2пг2039 | AL8: ="1пг"&AL7 -> 1пг2040 | AM8: ="2пг"&AL7 -> 2пг2040 | AN8: ="1пг"&AN7 -> 1пг2041 | AO8: ="2пг"&AN7 -> 2пг2041 | AP8: ="1пг"&AP7 -> 1пг2042 | AQ8: ="2пг"&AP7 -> 2пг2042 | AR8: ="1пг"&AR7 -> 1пг2043 | AS8: ="2пг"&AR7 -> 2пг2043 | AT8: ="1пг"&AT7 -> 1пг2044 | AU8: 2пг2044
B9: 1 | C9: =И1!$E$13 -> Ненецкий автономный округ | F9: Темп роста предельного уровня цены на тепловую энергию (мощность) по графику, % | G9: =IF(G6:O6<=G4,POWER($G$5/$G$3,1/$G$4)-1,0) -> 0 | H9: 0 | I9: =IF(G6:O6<=G4,POWER($G$5/$G$3,1/$G$4)-1,0) -> 0 | J9: 0 | K9: =IF(G6:O6<=G4,POWER($G$5/$G$3,1/$G$4)-1,0) -> 0 | L9: 0 | M9: =IF(G6:O6<=G4,POWER($G$5/$G$3,1/$G$4)-1,0) -> 0 | N9: 0 | O9: =IF(G6:O6<=G4,POWER($G$5/$G$3,1/$G$4)-1,0) -> 0 | P9: 0 | Q9: =IF(G6:Y6<=G4,POWER($G$5/$G$3,1/$G$4)-1,0) -> 0 | R9: 0 | S9: =IF(G6:Y6<=G4,POWER($G$5/$G$3,1/$G$4)-1,0) -> 0 | T9: 0 | U9: =IF(G6:Y6<=G4,POWER($G$5/$G$3,1/$G$4)-1,0) -> 0 | V9: 0 | W9: =IF(G6:Y6<=G4,POWER($G$5/$G$3,1/$G$4)-1,0) -> 0 | X9: 0 | Y9: =IF(G6:Y6<=G4,POWER($G$5/$G$3,1/$G$4)-1,0) -> 0
B10: 2 | C10: =C9 -> Ненецкий автономный округ | D10: =D9 -> 0 | E10: =E9 -> 0 | F10: Графики равномерного поэтапного доведения предельного уровня цены до цены "альтернативной котельной", % | G10: =IF(G6:O6<=G4,$G$3*(1+G9)/АК_прогноз!$C$6,"-") -> - | H10: =IF(G10=100%,"-",G10) -> - | I10: =IF(G6:O6<=G4,$G$3*(1+I9)^(H7-$G$7+1)/АК_прогноз!$D$6,"-") -> - | J10: =IF(I10=100%,"-",I10) -> - | K10: =IF(G6:O6<=G4,$G$3*(1+K9)^(J7-$G$7+1)/АК_прогноз!$E$6,"-") -> - | L10: =IF(K10=100%,"-",K10) -> - | M10: =IF(G6:O6<=G4,$G$3*(1+M9)^(L7-$G$7+1)/АК_прогноз!$F$6,"-") -> - | N10: =IF(M10=100%,"-",M10) -> - | O10: =IF(G6:O6<=G4,$G$3*(1+O9)^(N7-$G$7+1)/АК_прогноз!$G$6,"-") -> - | P10: =IF(O10=100%,"-",O10) -> - | Q10: =IF(G6:Y6<=G4,$G$3*(1+Q9)^(P7-$G$7+1)/АК_прогноз!$H$6,"-") -> - | R10: =IF(Q10=100%,"-",Q10) -> - | S10: =IF(G6:Y6<=G4,$G$3*(1+S9)^(R7-$G$7+1)/АК_прогноз!$I$6,"-") -> - | T10: =IF(S10=100%,"-",S10) -> - | U10: =IF(G6:Y6<=G4,$G$3*(1+U9)^(T7-$G$7+1)/АК_прогноз!$J$6,"-") -> - | V10: =IF(U10=100%,"-",U10) -> - | W10: =IF(G6:Y6<=G4,$G$3*(1+W9)^(V7-$G$7+1)/АК_прогноз!$K$6,"-") -> - | X10: =IF(W10=100%,"-",W10) -> - | Y10: =IF(G6:Y6<=G4,$G$3*(1+Y9)^(X7-$G$7+1)/АК_прогноз!$L$6,"-") -> -
B11: 3 | C11: =C10 -> Ненецкий автономный округ | D11: =D10 -> 0 | E11: =E10 -> 0 | F11: Изменение доли ПУЦ по графику доведения, % | G11: - | H11: =IF(G10:O10="-",0,H10-G10) -> 0 | I11: =IF(G10:O10="-",0,I10-H10) -> 0 | J11: =IF($G$10:$Y$10="-",0,J10-I10) -> 0 | K11: 0 | L11: 0 | M11: 0 | N11: 0 | O11: 0 | P11: 0 | Q11: 0 | R11: 0 | S11: 0 | T11: 0 | U11: 0 | V11: 0 | W11: 0 | X11: 0 | Y11: 0
B12: 4 | C12: Ненецкий автономный округ | D12: 0 | E12: 0 | F12: Прогноз предельного уровня цены на основании графика, утверждаемого органом регулирования, без НДС, руб./Гкал | G12: =IF(G10:O10<100%,G10*АК_прогноз!C6,АК_прогноз!C6) -> 10533.64813 | H12: =G12 -> 10533.64813 | I12: =IF(G10:O10<100%,I10*АК_прогноз!$D$6,АК_прогноз!$D$6) -> 10954.99406 | J12: =I12 -> 10954.99406 | K12: =IF(G10:O10<100%,K10*АК_прогноз!$E$6,АК_прогноз!$E$6) -> 11393.19382 | L12: =K12 -> 11393.19382 | M12: =IF(G10:O10<100%,M10*АК_прогноз!$F$6,АК_прогноз!$F$6) -> 11848.92157 | N12: =M12 -> 11848.92157 | O12: =IF(G10:O10<100%,O10*АК_прогноз!$G$6,АК_прогноз!$G$6) -> 12322.87844 | P12: =O12 -> 12322.87844 | Q12: =IF(G10:Y10<100%,Q10*АК_прогноз!$H$6,АК_прогноз!$H$6) -> 12815.79358 | R12: =Q12 -> 12815.79358 | S12: =IF(G10:Y10<100%,S10*АК_прогноз!$I$6,АК_прогноз!$I$6) -> 13328.42532 | T12: =S12 -> 13328.42532 | U12: =IF(G10:Y10<100%,U10*АК_прогноз!$J$6,АК_прогноз!$J$6) -> 13861.56233 | V12: =U12 -> 13861.56233 | W12: =IF(G10:Y10<100%,W10*АК_прогноз!$K$6,АК_прогноз!$K$6) -> 14416.02482 | X12: =W12 -> 14416.02482 | Y12: =IF(G10:Y10<100%,Y10*АК_прогноз!$L$6,АК_прогноз!$L$6) -> 14992.66582 | Z12: =Y12 -> 14992.66582 | AA12: =АК_прогноз!M6 -> 15592.37245 | AB12: =AA12 -> 15592.37245 | AC12: =АК_прогноз!N6 -> 16216.06735 | AD12: =AC12 -> 16216.06735 | AE12: =АК_прогноз!O6 -> 16864.71004 | AF12: =AE12 -> 16864.71004 | AG12: =АК_прогноз!P6 -> 17539.29844 | AH12: =AG12 -> 17539.29844 | AI12: =АК_прогноз!Q6 -> 18240.87038 | AJ12: =AI12 -> 18240.87038 | AK12: =АК_прогноз!R6 -> 18970.5052 | AL12: =AK12 -> 18970.5052 | AM12: =АК_прогноз!S6 -> 19729.3254 | AN12: =AM12 -> 19729.3254 | AO12: =АК_прогноз!T6 -> 20518.49842 | AP12: =AO12 -> 20518.49842 | AQ12: =АК_прогноз!U6 -> 21339.23836 | AR12: =AQ12 -> 21339.23836 | AS12: =АК_прогноз!V6 -> 22192.80789 | AT12: =AS12 -> 22192.80789 | AU12: =АК_прогноз!W6 -> 23080.52021
B13: 5 | C13: Ненецкий автономный округ | D13: 0 | E13: 0 | F13: Предполагаемый темп роста цены на тепловую энергию (мощность) на основании соглашения об исполнении схемы теплоснабжения, % | H13: 0 | J13: 0 | L13: 0 | N13: 0 | P13: 0 | R13: 0 | T13: 0 | V13: 0 | X13: 0 | Z13: 0 | AB13: 0 | AD13: 0 | AF13: 0 | AH13: 0 | AJ13: 0 | AL13: 0 | AN13: 0 | AP13: 0 | AR13: 0 | AT13: 0
B14: 6 | C14: Ненецкий автономный округ | D14: 0 | E14: 0 | F14: Предполагаемый темп роста цены на тепловую энергию (мощность) сверх совокупного индекса платежа граждан за коммунальные услуги, % 1 | G14: =G13-ИПЦ_ИПГ!E7 -> 0 | H14: =H13 -> 0 | I14: =I13-ИПЦ_ИПГ!F7 -> -0.063 | J14: =J13 -> 0 | K14: =K13-ИПЦ_ИПГ!G7 -> -0.053 | L14: =L13 -> 0 | M14: =M13-ИПЦ_ИПГ!H7 -> -0.053 | N14: =N13 -> 0 | O14: =O13-ИПЦ_ИПГ!I7 -> -0.053 | P14: =P13 -> 0 | Q14: =Q13-ИПЦ_ИПГ!J7 -> -0.053 | R14: =R13 -> 0 | S14: =S13-ИПЦ_ИПГ!K7 -> -0.053 | T14: =T13 -> 0 | U14: =U13-ИПЦ_ИПГ!L7 -> -0.053 | V14: =V13 -> 0 | W14: =W13-ИПЦ_ИПГ!M7 -> -0.053 | X14: =X13 -> 0 | Y14: =Y13-ИПЦ_ИПГ!N7 -> -0.053 | Z14: =Z13 -> 0 | AA14: =AA13-ИПЦ_ИПГ!O7 -> -0.053 | AB14: =AB13 -> 0 | AC14: =AC13-ИПЦ_ИПГ!P7 -> -0.053 | AD14: =AD13 -> 0 | AE14: =AE13-ИПЦ_ИПГ!Q7 -> -0.053 | AF14: =AF13 -> 0 | AG14: =AG13-ИПЦ_ИПГ!R7 -> -0.053 | AH14: =AH13 -> 0 | AI14: =AI13-ИПЦ_ИПГ!S7 -> -0.053 | AJ14: =AJ13 -> 0 | AK14: =AK13-ИПЦ_ИПГ!T7 -> -0.053 | AL14: =AL13 -> 0 | AM14: =AM13-ИПЦ_ИПГ!U7 -> -0.053 | AN14: =AN13 -> 0 | AO14: =AO13-ИПЦ_ИПГ!V7 -> -0.053 | AP14: =AP13 -> 0 | AQ14: =AQ13-ИПЦ_ИПГ!W7 -> -0.053 | AR14: =AR13 -> 0 | AS14: =AS13-ИПЦ_ИПГ!X7 -> -0.053 | AT14: =AT13 -> 0 | AU14: =AU13-ИПЦ_ИПГ!Y7 -> -0.053
B15: 7 | C15: Ненецкий автономный округ | D15: 0 | E15: 0 | F15: Цена на тепловую энергию (мощность) для потребителей c предполагаемым темпом роста, без НДС, руб./Гкал | G15: =IF($G$13:$AU$13="",$G$12:$AU$12,MIN(G3*(1+G13),G12)) -> 10533.64813 | H15: =IF($G$13:$AU$13="",$G$12:$AU$12,MIN(G15*(1+H13),H12)) -> 10533.64813 | I15: 10954.99406 | J15: 10954.99406 | K15: 11393.19382 | L15: 11393.19382 | M15: 11848.92157 | N15: 11848.92157 | O15: 12322.87844 | P15: 12322.87844 | Q15: 12815.79358 | R15: 12815.79358 | S15: 13328.42532 | T15: 13328.42532 | U15: 13861.56233 | V15: 13861.56233 | W15: 14416.02482 | X15: 14416.02482 | Y15: 14992.66582 | Z15: 14992.66582 | AA15: 15592.37245 | AB15: 15592.37245 | AC15: 16216.06735 | AD15: 16216.06735 | AE15: 16864.71004 | AF15: 16864.71004 | AG15: 17539.29844 | AH15: 17539.29844 | AI15: 18240.87038 | AJ15: 18240.87038 | AK15: 18970.5052 | AL15: 18970.5052 | AM15: 19729.3254 | AN15: 19729.3254 | AO15: 20518.49842 | AP15: 20518.49842 | AQ15: 21339.23836 | AR15: 21339.23836 | AS15: 22192.80789 | AT15: 22192.80789 | AU15: 23080.52021
C16: Ненецкий автономный округ | D16: 0 | E16: 0 | F16: Разница между утвержденным предельным уровнем цены и ценой для потребителей, руб/Гкал | G16: =G15-G12 -> 0 | H16: 0 | I16: 0 | J16: 0 | K16: 0 | L16: 0 | M16: 0 | N16: 0 | O16: 0 | P16: 0 | Q16: 0 | R16: 0 | S16: 0 | T16: 0 | U16: 0 | V16: 0 | W16: 0 | X16: 0 | Y16: 0 | Z16: 0 | AA16: 0 | AB16: 0 | AC16: 0 | AD16: 0 | AE16: 0 | AF16: 0 | AG16: 0 | AH16: 0 | AI16: 0 | AJ16: 0 | AK16: 0 | AL16: 0 | AM16: 0 | AN16: 0 | AO16: 0 | AP16: 0 | AQ16: 0 | AR16: 0 | AS16: 0 | AT16: 0 | AU16: 0
C17: Ненецкий автономный округ | D17: 0 | E17: 0 | F17: Темп роста цены на тепловую энергию (мощность) для потребителей с предполагаемым темпом роста, % | G17: - | I17: =I15/G15-1 -> 0.04 | K17: =K15/I15-1 -> 0.04 | M17: =M15/K15-1 -> 0.04 | O17: =O15/M15-1 -> 0.04 | Q17: 0.04 | S17: 0.04 | U17: 0.04 | W17: 0.04 | Y17: 0.04 | AA17: 0.04 | AC17: 0.04 | AE17: 0.04 | AG17: 0.04 | AI17: 0.04 | AK17: 0.04 | AM17: =AM15/AK15-1 -> 0.04 | AO17: =AO15/AM15-1 -> 0.04 | AQ17: =AQ15/AO15-1 -> 0.04 | AS17: =AS15/AQ15-1 -> 0.04 | AU17: =AU15/AS15-1 -> 0.04
B18: 8 | C18: Ненецкий автономный округ | D18: 0 | E18: 0 | F18: Срок доведения до цены "альтернативной котельной" при применении предполагаемого темпа роста цены на тепловую энергию (мощность), лет | G18: =ROUNDUP(((COUNTIF(G16:AU16,"<0")+1)/2),0) -> 1
B20: 1 Совокупный платеж граждан за коммунальные услуги - размеры индексации: на 2023-2024 годы: Прогноз социально-экономического развития Российской Федерации на 2023 год и на плановый период 2024 и 2025 годов (размещен на официальном сайте Минэкономразвития России 28.09.2022): файл в формате PDF, таблица «Прогнозируемые изменения цен (тарифов) на продукцию (услуги) компаний инфраструктурного сектора на 2023-2025 гг.,%, показатель "Совокупный платеж граждан за коммунальные услуги - размеры индексации"; на 2026 и последующие годы: индекс приравнивается к уровню 2025 года.

Sheet Заморозка
B1: Определение прогнозного срока "заморозки" тарифа на тепловую энергию, на который предельный уровень цены на тепловую энергию (мощность) предполагается устанавливать на уровне тарифа на тепловую энергию (мощность), в случае если цена "альтернативной котельной" ниже тарифа на тепловую энергию на 2 полугодие первого расчетного периода
B3: 1 | C3: ="Утвержденный тариф на тепловую энергию (мощность), поставляемую потребителям, на предполагаемую дату окончания переходного периода 01.07."&И1!E8&", без НДС, руб./Гкал" -> Утвержденный тариф на тепловую энергию (мощность), поставляемую потребителям, на предполагаемую дату окончания переходного периода 01.07.2024, без НДС, руб./Гкал | H3: Вписать наименование тарифа и реквизиты решения органа регулирования
B5: № пп | C5: Субъект Российской Федерации | D5: Поселение, городской округ | E5: ЕТО, система теплоснабжения | F5: Параметр расчета | G5: 1 | H5: 2 | I5: 3 | J5: 4 | K5: 5 | L5: 6 | M5: 7 | N5: 8 | O5: 9 | P5: 10 | Q5: 11 | R5: 12 | S5: 13 | T5: 14 | U5: 15 | V5: 16 | W5: 17 | X5: 18 | Y5: 19 | Z5: 20 | AA5: 21
G6: ="2пг "&И1!$E$8&"/ 1пг "&И1!$E$8+G5 -> 2пг 2024/ 1пг 2025 | H6: ="2пг "&И1!$E$8+G5&"/ 1пг "&И1!$E$8+H5 -> 2пг 2025/ 1пг 2026 | I6: ="2пг "&И1!$E$8+H5&"/ 1пг "&И1!$E$8+I5 -> 2пг 2026/ 1пг 2027 | J6: ="2пг "&И1!$E$8+I5&"/ 1пг "&И1!$E$8+J5 -> 2пг 2027/ 1пг 2028 | K6: ="2пг "&И1!$E$8+J5&"/ 1пг "&И1!$E$8+K5 -> 2пг 2028/ 1пг 2029 | L6: ="2пг "&И1!$E$8+K5&"/ 1пг "&И1!$E$8+L5 -> 2пг 2029/ 1пг 2030 | M6: ="2пг "&И1!$E$8+L5&"/ 1пг "&И1!$E$8+M5 -> 2пг 2030/ 1пг 2031 | N6: ="2пг "&И1!$E$8+M5&"/ 1пг "&И1!$E$8+N5 -> 2пг 2031/ 1пг 2032 | O6: ="2пг "&И1!$E$8+N5&"/ 1пг "&И1!$E$8+O5 -> 2пг 2032/ 1пг 2033 | P6: ="2пг "&И1!$E$8+O5&"/ 1пг "&И1!$E$8+P5 -> 2пг 2033/ 1пг 2034 | Q6: ="2пг "&И1!$E$8+P5&"/ 1пг "&И1!$E$8+Q5 -> 2пг 2034/ 1пг 2035 | R6: ="2пг "&И1!$E$8+Q5&"/ 1пг "&И1!$E$8+R5 -> 2пг 2035/ 1пг 2036 | S6: ="2пг "&И1!$E$8+R5&"/ 1пг "&И1!$E$8+S5 -> 2пг 2036/ 1пг 2037 | T6: ="2пг "&И1!$E$8+S5&"/ 1пг "&И1!$E$8+T5 -> 2пг 2037/ 1пг 2038 | U6: ="2пг "&И1!$E$8+T5&"/ 1пг "&И1!$E$8+U5 -> 2пг 2038/ 1пг 2039 | V6: ="2пг "&И1!$E$8+U5&"/ 1пг "&И1!$E$8+V5 -> 2пг 2039/ 1пг 2040 | W6: ="2пг"&И1!$E$8+V5 -> 2пг2040 | X6: 2пг 2040/ 1пг 2041 | Y6: 2пг 2041/ 1пг 2042 | Z6: 2пг 2042/ 1пг 2043 | AA6: 2пг 2043
B7: 1 | C7: ='Гр&ПУЦ_v1'!C9 -> Ненецкий автономный округ | F7: Прогноз предельного уровня цены при "заморозке" тарифа, без НДС, руб./Гкал | G7: =IF(АК_прогноз!C6<$G$3,$G$3,АК_прогноз!C6) -> 10533.64813 | H7: =IF(АК_прогноз!D6<$G$3,$G$3,АК_прогноз!D6) -> 10954.99406 | I7: =IF(АК_прогноз!E6<$G$3,$G$3,АК_прогноз!E6) -> 11393.19382 | J7: =IF(АК_прогноз!F6<$G$3,$G$3,АК_прогноз!F6) -> 11848.92157 | K7: =IF(АК_прогноз!G6<$G$3,$G$3,АК_прогноз!G6) -> 12322.87844 | L7: =IF(АК_прогноз!H6<$G$3,$G$3,АК_прогноз!H6) -> 12815.79358 | M7: =IF(АК_прогноз!I6<$G$3,$G$3,АК_прогноз!I6) -> 13328.42532 | N7: =IF(АК_прогноз!J6<$G$3,$G$3,АК_прогноз!J6) -> 13861.56233 | O7: =IF(АК_прогноз!K6<$G$3,$G$3,АК_прогноз!K6) -> 14416.02482 | P7: =IF(АК_прогноз!L6<$G$3,$G$3,АК_прогноз!L6) -> 14992.66582 | Q7: =IF(АК_прогноз!M6<$G$3,$G$3,АК_прогноз!M6) -> 15592.37245 | R7: =IF(АК_прогноз!N6<$G$3,$G$3,АК_прогноз!N6) -> 16216.06735 | S7: =IF(АК_прогноз!O6<$G$3,$G$3,АК_прогноз!O6) -> 16864.71004 | T7: =IF(АК_прогноз!P6<$G$3,$G$3,АК_прогноз!P6) -> 17539.29844 | U7: =IF(АК_прогноз!Q6<$G$3,$G$3,АК_прогноз!Q6) -> 18240.87038 | V7: =IF(АК_прогноз!R6<$G$3,$G$3,АК_прогноз!R6) -> 18970.5052 | W7: =IF(АК_прогноз!S6<$G$3,$G$3,АК_прогноз!S6) -> 19729.3254 | X7: =IF(АК_прогноз!T6<$G$3,$G$3,АК_прогноз!T6) -> 20518.49842 | Y7: =IF(АК_прогноз!U6<$G$3,$G$3,АК_прогноз!U6) -> 21339.23836 | Z7: =IF(АК_прогноз!V6<$G$3,$G$3,АК_прогноз!V6) -> 22192.80789 | AA7: =IF(АК_прогноз!W6<$G$3,$G$3,АК_прогноз!W6) -> 23080.52021
B8: 2 | C8: =C7 -> Ненецкий автономный округ | D8: =D7 -> 0 | E8: =E7 -> 0 | F8: Срок "заморозки" тарифа, лет | G8: =COUNTIF(G9:AA9,"="&0) -> 0 | H8: - | I8: - | J8: - | K8: - | L8: - | M8: - | N8: - | O8: - | P8: - | Q8: - | R8: - | S8: - | T8: - | U8: - | V8: - | W8: - | X8: - | Y8: - | Z8: - | AA8: -
F9: Темп роста цены на тепловую энергию (мощность) для потребителей, % | G9: =G7/G3-1 ->  | H9: =H7/G7-1 -> 0.04 | I9: =I7/H7-1 -> 0.04 | J9: 0.04 | K9: 0.04 | L9: 0.04 | M9: 0.04 | N9: 0.04 | O9: 0.04 | P9: 0.04 | Q9: 0.04 | R9: 0.04 | S9: =S7/R7-1 -> 0.04 | T9: =T7/S7-1 -> 0.04 | U9: =U7/T7-1 -> 0.04 | V9: =V7/U7-1 -> 0.04 | W9: =W7/V7-1 -> 0.04 | X9: =X7/W7-1 -> 0.04 | Y9: =Y7/X7-1 -> 0.04 | Z9: =Z7/Y7-1 -> 0.04 | AA9: =AA7/Z7-1 -> 0.04

Sheet ИПГ_мо
B1: ="Оценка возможного изменения предельного (максимального) индекса изменения размера вносимой гражданами платы за коммунальные услуги в поселении, городском округе в случае его отнесения к ценовой зоне теплоснабжения в "&И1!$E$8&" году" -> Оценка возможного изменения предельного (максимального) индекса изменения размера вносимой гражданами платы за коммунальные услуги в поселении, городском округе в случае его отнесения к ценовой зоне теплоснабжения в 2024 году | BB1: (выберите из списка)
BB2: на основании графика доведения
B3: № пп | C3: Параметр расчета | J3: ="Значение "&И1!E8&" г. " -> Значение 2024 г. | K3: ="Значение "&И1!E8+1&" г. " -> Значение 2025 г. | L3: Источник данных | BB3: с учетом заморозки тарифа
B4: 1 | C4: Разница между предполагаемым размером предельного (максимального) индекса изменения размера вносимой гражданами платы за коммунальные услуги в случае отнесения поселения, городского округа к ценовой зоне теплоснабжения и размером утвержденного предельного (максимального) индекса изменения размера вносимой гражданами платы за коммунальные услуги (расчет исходя из предполагаемого темпа роста предельного уровня цены на тепловую энергию (мощность)), % | J4: =J6-J5 ->  | K4: =K6-K5 -> 
B5: 2 | C5: Размер утвержденного предельного (максимального) индекса изменения размера вносимой гражданами платы за коммунальные услуги,%1 | J5: =H28 ->  | K5: =K28 -> 
B6: 3 | C6: Предполагаемый размер предельного (максимального) индекса изменения размера вносимой гражданами платы за коммунальные услуги в случае отнесения поселения, городского округа к ценовой зоне теплоснабжения (расчет исходя из предполагаемого темпа роста предельного уровня цены на тепловую энергию (мощность)), % | J6: =H46 ->  | K6: =K46 -> 
B7: 1Указывается значение, установленное в соответствии с законодательством Российской Федерации на соответствующий год (год окончания переходного периода), а при его отсутствии - в ячейке J5 указывается предполагаемый размер предельного (максимального) индекса изменения размера вносимой гражданами платы за коммунальные услуги в случае, если поселение, городской округ не будут отнесены к ценовой зоне теплоснабжения
B8: Порядок перехода к применению цены "альтернативной котельной" (выберите из списка) | E8: (выберите из списка)
C10: Площадь помещения | D10: м2 | P10: Площадь помещения | Q10: м2 | AC10: Площадь помещения | AD10: м2
C11: Количество проживающих | D11: чел | P11: Количество проживающих | Q11: чел | AC11: Количество проживающих | AD11: чел
B13: Расчет предполагаемого изменения предельного (максимального) индекса платы за коммунальные услуги в поселении, городском округе без отнесения к ценовой зоне теплоснабжения | O13: Расчет предполагаемого изменения предельного (максимального) индекса платы за коммунальные услуги в поселении, городском округе без отнесения к ценовой зоне теплоснабжения | AB13: Расчет предполагаемого изменения предельного (максимального) индекса платы за коммунальные услуги в поселении, городском округе без отнесения к ценовой зоне теплоснабжения
B16: № пп | C16: Вид услуги | D16: Ед. изм. | E16: Объем коммунальных услуг | F16: =И1!$E$8-1&" (2 пол)" -> 2023 (2 пол) | H16: =И1!$E$8&" (2 пол)" -> 2024 (2 пол) | K16: =И1!$E$8+1&" (2 пол)" -> 2025 (2 пол) | O16: № пп | P16: Вид услуги | Q16: Ед. изм. | R16: Объем коммунальных услуг | S16: =И1!$E$8-1&" (2 пол)" -> 2023 (2 пол) | U16: =И1!$E$8&" (2 пол)" -> 2024 (2 пол) | X16: =И1!$E$8+1&" (2 пол)" -> 2025 (2 пол) | AB16: № пп | AC16: Вид услуги | AD16: Ед. изм. | AE16: Объем коммунальных услуг | AF16: =И1!$E$8-1&" (2 пол)" -> 2023 (2 пол) | AH16: =И1!$E$8&" (2 пол)" -> 2024 (2 пол) | AK16: =И1!$E$8+1&" (2 пол)" -> 2025 (2 пол)
F17: Тариф, руб. с НДС | G17: Плата, руб. | H17: Тариф, руб. с НДС | I17: Плата, руб. | J17: % роста | K17: Тариф, руб. с НДС | L17: Плата, руб. | M17: % роста | S17: Тариф, руб. с НДС | T17: Плата, руб. | U17: Тариф, руб. с НДС | V17: Плата, руб. | W17: % роста | X17: Тариф, руб. с НДС | Y17: Плата, руб. | Z17: % роста | AF17: Тариф, руб. с НДС | AG17: Плата, руб. | AH17: Тариф, руб. с НДС | AI17: Плата, руб. | AJ17: % роста | AK17: Тариф, руб. с НДС | AL17: Плата, руб. | AM17: % роста
B18: 1 | C18: Водоотведение | D18: м3/чел. | G18: =E18*F18*E11 -> 0 | I18: =H18*$E$11*E18 -> 0 | J18: =I18/G18-1 ->  | L18: =K18*$E$11*E18 -> 0 | M18: =L18/I18-1 ->  | O18: 1 | P18: Водоотведение | Q18: м3/чел. | T18: =R18*S18*R11 -> 0 | V18: =U18*$R$11*R18 -> 0 | W18: =V18/T18-1 ->  | Y18: =X18*$R$11*R18 -> 0 | Z18: =Y18/V18-1 ->  | AB18: 1 | AC18: Водоотведение | AD18: м3/чел. | AG18: =AE18*AF18*AE11 -> 0 | AI18: =AH18*$AE$11*AE18 -> 0 | AJ18: =AI18/AG18-1 ->  | AL18: =AK18*$AE$11*AE18 -> 0 | AM18: =AL18/AI18-1 -> 
B19: 2 | C19: Холодное водоснабжение | D19: м3/чел. | G19: =E19*F19*E11 -> 0 | I19: =H19*$E$11*E19 -> 0 | J19: =I19/G19-1 ->  | L19: =K19*$E$11*E19 -> 0 | M19: =L19/I19-1 ->  | O19: 2 | P19: Холодное водоснабжение | Q19: м3/чел. | T19: =R19*S19*R11 -> 0 | V19: =U19*$R$11*R19 -> 0 | W19: =V19/T19-1 ->  | Y19: =X19*$R$11*R19 -> 0 | Z19: =Y19/V19-1 ->  | AB19: 2 | AC19: Холодное водоснабжение | AD19: м3/чел. | AG19: =AE19*AF19*AE11 -> 0 | AI19: =AH19*$AE$11*AE19 -> 0 | AJ19: =AI19/AG19-1 ->  | AL19: =AK19*$AE$11*AE19 -> 0 | AM19: =AL19/AI19-1 -> 
B20: 3 | C20: Газоснабжение | D20: м3/чел. | G20: =E20*F20*E11 -> 0 | I20: =H20*$E$11*E20 -> 0 | L20: =K20*$E$11*E20 -> 0 | M20: =L20/I20-1 ->  | O20: 3 | P20: Газоснабжение | Q20: м3/чел. | T20: =R20*S20*R11 -> 0 | V20: =U20*$R$11*R20 -> 0 | W20: =V20/T20-1 ->  | Y20: 0 | AB20: 3 | AC20: Газоснабжение | AD20: м3/чел. | AG20: =AE20*AF20*AE11 -> 0 | AI20: =AH20*$AE$11*AE20 -> 0 | AJ20: =AI20/AG20-1 ->  | AL20: 0
B21: 4 | C21: Электроснабжение | D21: кВтч/чел. | G21: =E21*F21*E11 -> 0 | I21: =H21*$E$11*E21 -> 0 | L21: 0 | M21: =L21/I21-1 ->  | O21: 4 | P21: Электроснабжение | Q21: кВтч/чел. | T21: =R21*S21*R11 -> 0 | V21: =U21*$R$11*R21 -> 0 | Y21: 0 | AB21: 4 | AC21: Электроснабжение | AD21: кВтч/чел. | AG21: =AE21*AF21*AE11 -> 0 | AI21: =AH21*$AE$11*AE21 -> 0 | AL21: 0
B22: 5 | C22: Горячее водоснабжение | D22: м3/чел. | G22: =E22*F22*E11 -> 0 | I22: =H22*$E$11*E22 -> 0 | L22: 0 | M22: =L22/I22-1 ->  | O22: 5 | P22: Горячее водоснабжение | Q22: м3/чел. | T22: =R22*S22*R11 -> 0 | V22: =U22*$R$11*R22 -> 0 | Y22: 0 | AB22: 5 | AC22: Горячее водоснабжение | AD22: м3/чел. | AG22: =AE22*AF22*AE11 -> 0 | AI22: =AH22*$AE$11*AE22 -> 0 | AL22: 0
B23: 6 | C23: ТКО | D23: кг/чел. | G23: =E23*F23*$E$11 -> 0 | I23: =E23*H23*$E$11 -> 0 | L23: 0 | O23: 6 | P23: ТКО | Q23: кг/чел. | T23: =R23*S23*$R$11 -> 0 | V23: =R23*U23*$R$11 -> 0 | Y23: 0 | AB23: 6 | AC23: ТКО | AD23: кг/чел. | AG23: =AE23*AF23*$AE$11 -> 0 | AI23: =AH23*AE23*AE11 -> 0 | AL23: 0
B24: 7 | C24: Отопление | D24: Гкал/м2 | G24: =E24*F24*E10 -> 0 | H24: =IF($E$8=$BB$2,'Гр&ПУЦ_v1'!$G$3,IF($E$8=$BB$3,Заморозка!$G$3,"-"))*1.2 ->  | I24: =E24*H24*$E$10 ->  | J24: =I24/G24-1 ->  | K24: =H24*(1+HLOOKUP(И1!$E$8+1,ИПЦ_ИПГ!$D$3:$CD$7,5,FALSE)) ->  | L24: =K24*$E$10*E24 ->  | M24: =L24/I24-1 ->  | O24: 7 | P24: Отопление | Q24: Гкал/м2 | T24: =R24*S24*R10 -> 0 | U24: =IF($E$8=$BB$2,'Гр&ПУЦ_v1'!$G$3,IF($E$8=$BB$3,Заморозка!$G$3,"-"))*1.2 ->  | V24: =R24*U24*$E$10 ->  | W24: =V24/T24-1 ->  | X24: =U24*(1+HLOOKUP(И1!$E$8+1,ИПЦ_ИПГ!$D$3:$CD$7,5,FALSE)) ->  | Y24: =X24*$R$10*R24 ->  | Z24: =Y24/V24-1 ->  | AB24: 7 | AC24: Отопление | AD24: Гкал/м2 | AG24: =AE24*AF24*AE10 -> 0 | AH24: =IF($E$8=$BB$2,'Гр&ПУЦ_v1'!$G$3,IF($E$8=$BB$3,Заморозка!$G$3,"-"))*1.2 ->  | AI24: =AE24*AH24*$E$10 ->  | AJ24: =AI24/AG24-1 ->  | AK24: =AH24*(1+HLOOKUP(И1!$E$8+1,ИПЦ_ИПГ!$D$3:$CD$7,5,FALSE)) ->  | AL24: =AK24*$AE$10*AE24 ->  | AM24: =AL24/AI24-1 -> 
B25: 8 | C25: Бытовой газ в баллонах | J25: =I25/G25-1 ->  | M25: =L25/I25-1 ->  | O25: 8 | P25: Бытовой газ в баллонах | W25: =V25/T25-1 ->  | Z25: =Y25/V25-1 ->  | AB25: 8 | AC25: Бытовой газ в баллонах | AJ25: =AI25/AG25-1 ->  | AM25: =AL25/AI25-1 -> 
B26: 9 | C26: Твёрдое топливо | O26: 9 | P26: Твёрдое топливо | AB26: 9 | AC26: Твёрдое топливо
B27: 10 | C27: Итого плата граждан | G27: =SUM(G18:G26) -> 0 | I27: =SUM(I18:I26) ->  | L27: =SUM(L18:L26) ->  | O27: 10 | P27: Итого плата граждан | T27: =SUM(T18:T26) -> 0 | V27: =SUM(V18:V26) ->  | Y27: =SUM(Y18:Y26) ->  | AB27: 10 | AC27: Итого плата граждан | AG27: =SUM(AG18:AG26) -> 0 | AI27: =SUM(AI18:AI26) ->  | AL27: =SUM(AL18:AL26) -> 
B28: 11 | C28: Индекс роста платы | H28: =I27/G27-1 ->  | K28: =L27/I27-1 ->  | O28: 11 | P28: Индекс роста платы | U28: =V27/T27-1 ->  | X28: =Y27/V27-1 ->  | AB28: 11 | AC28: Индекс роста платы | AH28: =AI27/AG27-1 ->  | AK28: =AL27/AI27-1 -> 
B31: Расчет предполагаемого изменения предельного (максимального) индекса платы за коммунальные услуги в поселении, городском округе в случае отнесения к ценовой зоне теплоснабжения | O31: Расчет предполагаемого изменения предельного (максимального) индекса платы за коммунальные услуги в поселении, городском округе в случае отнесения к ценовой зоне теплоснабжения | AB31: Расчет предполагаемого изменения предельного (максимального) индекса платы за коммунальные услуги в поселении, городском округе в случае отнесения к ценовой зоне теплоснабжения
B34: № пп | C34: Вид услуги | D34: Ед. изм. | E34: Объем коммунальных услуг | F34: =И1!$E$8-1&" (2 пол)" -> 2023 (2 пол) | H34: =И1!$E$8&" (2 пол)" -> 2024 (2 пол) | K34: =И1!$E$8+1&" (2 пол)" -> 2025 (2 пол) | O34: № пп | P34: Вид услуги | Q34: Ед. изм. | R34: Объем коммунальных услуг | S34: =И1!$E$8-1&" (2 пол)" -> 2023 (2 пол) | U34: =И1!$E$8&" (2 пол)" -> 2024 (2 пол) | X34: =И1!$E$8+1&" (2 пол)" -> 2025 (2 пол) | AB34: № пп | AC34: Вид услуги | AD34: Ед. изм. | AE34: Объем коммунальных услуг | AF34: =И1!$E$8-1&" (2 пол)" -> 2023 (2 пол) | AH34: =И1!$E$8&" (2 пол)" -> 2024 (2 пол) | AK34: =И1!$E$8+1&" (2 пол)" -> 2025 (2 пол)
F35: Тариф, руб. с НДС | G35: Плата, руб. | H35: Тариф, руб. с НДС | I35: Плата, руб. | J35: % роста | K35: Тариф, руб. с НДС | L35: Плата, руб. | M35: % роста | S35: Тариф, руб. с НДС | T35: Плата, руб. | U35: Тариф, руб. с НДС | V35: Плата, руб. | W35: % роста | X35: Тариф, руб. с НДС | Y35: Плата, руб. | Z35: % роста | AF35: Тариф, руб. с НДС | AG35: Плата, руб. | AH35: Тариф, руб. с НДС | AI35: Плата, руб. | AJ35: % роста | AK35: Тариф, руб. с НДС | AL35: Плата, руб. | AM35: % роста
B36: 1 | C36: Водоотведение | D36: м3/чел. | G36: =E36*F36*$E$11 -> 0 | I36: =H36*$E$11*E36 -> 0 | J36: =I36/G36-1 ->  | L36: =K36*$E$11*E36 -> 0 | M36: =L36/I36-1 ->  | O36: 1 | P36: Водоотведение | Q36: м3/чел. | T36: =R36*S36*$R$11 -> 0 | V36: =U36*R11*R36 -> 0 | W36: =V36/T36-1 ->  | Y36: =X36*$R$11*R36 -> 0 | Z36: =Y36/V36-1 ->  | AB36: 1 | AC36: Водоотведение | AD36: м3/чел. | AG36: =AE36*AF36*$AE$11 -> 0 | AI36: =AH36*AE11*AE36 -> 0 | AJ36: =AI36/AG36-1 ->  | AL36: =AK36*$AE$11*AE36 -> 0 | AM36: =AL36/AI36-1 -> 
B37: 2 | C37: Холодное водоснабжение | D37: м3/чел. | G37: =E37*F37*$E$11 -> 0 | I37: =H37*$E$11*E37 -> 0 | J37: =I37/G37-1 ->  | L37: =K37*$E$11*E37 -> 0 | M37: =L37/I37-1 ->  | O37: 2 | P37: Холодное водоснабжение | Q37: м3/чел. | T37: =R37*S37*R11 -> 0 | V37: =U37*R11*R37 -> 0 | W37: =V37/T37-1 ->  | Y37: =X37*$R$11*R37 -> 0 | Z37: =Y37/V37-1 ->  | AB37: 2 | AC37: Холодное водоснабжение | AD37: м3/чел. | AG37: =AE37*AF37*AE11 -> 0 | AI37: =AH37*AE11*AE37 -> 0 | AJ37: =AI37/AG37-1 ->  | AL37: =AK37*$AE$11*AE37 -> 0 | AM37: =AL37/AI37-1 -> 
B38: 3 | C38: Газоснабжение | D38: м3/чел. | G38: =E38*F38*$E$11 -> 0 | I38: =H38*$E$11*E38 -> 0 | L38: =K38*$E$11*E38 -> 0 | M38: =L38/I38-1 ->  | O38: 3 | P38: Газоснабжение | Q38: м3/чел. | T38: =R38*S38*R11 -> 0 | V38: =U38*R11*R38 -> 0 | Y38: 0 | AB38: 3 | AC38: Газоснабжение | AD38: м3/чел. | AG38: =AE38*AF38*AE11 -> 0 | AI38: =AH38*AE11*AE38 -> 0 | AL38: 0
B39: 4 | C39: Электроснабжение | D39: кВтч/чел. | G39: 0 | I39: =H39*$E$11*E39 -> 0 | L39: =K39*$E$11*E39 -> 0 | M39: =L39/I39-1 ->  | O39: 4 | P39: Электроснабжение | Q39: кВтч/чел. | T39: =R39*S39*R11 -> 0 | V39: =U39*R11*R39 -> 0 | Y39: 0 | AB39: 4 | AC39: Электроснабжение | AD39: кВтч/чел. | AG39: =AE39*AF39*AE11 -> 0 | AI39: =AH39*AE11*AE39 -> 0 | AL39: =AK39*$AE$11*AE39 -> 0
B40: 5 | C40: Горячее водоснабжение | D40: м3/чел. | G40: 0 | I40: =H40*$E$11*E40 -> 0 | L40: 0 | M40: =L40/I40-1 ->  | O40: 5 | P40: Горячее водоснабжение | Q40: м3/чел. | T40: =R40*S40*R11 -> 0 | V40: =U40*R11*R40 -> 0 | Y40: 0 | AB40: 5 | AC40: Горячее водоснабжение | AD40: м3/чел. | AG40: =AE40*AF40*AE11 -> 0 | AI40: =AH40*AE11*AE40 -> 0 | AL40: 0
B41: 6 | C41: ТКО | D41: кг/чел. | G41: =E41*F41*$E$11 -> 0 | I41: =H41*E41*$E$11 -> 0 | J41: =I41/G41-1 ->  | L41: 0 | O41: 6 | P41: ТКО | Q41: кг/чел. | T41: =R41*S41*R11 -> 0 | V41: =U41*R41*R11 -> 0 | W41: =V41/T41-1 ->  | Y41: 0 | AB41: 6 | AC41: ТКО | AD41: кг/чел. | AG41: =AE41*AF41*AE11 -> 0 | AI41: =AH41*AE41*AE11 -> 0 | AJ41: =AI41/AG41-1 ->  | AL41: 0
B42: 7 | C42: Отопление | D42: Гкал/м2 | G42: =F42*E42*E10 -> 0 | H42: =IF($E$8=$BB$2,'Гр&ПУЦ_v1'!$G$15,IF($E$8=$BB$3,Заморозка!$G$7,"-"))*1.2 ->  | I42: =H42*E42*$E$10 ->  | J42: =I42/G42-1 ->  | K42: =IF($E$8=$BB$2,'Гр&ПУЦ_v1'!$I$15,IF($E$8=$BB$3,Заморозка!$H$7,"-"))*1.2 ->  | L42: =K42*$E$10*E42 ->  | M42: =L42/I42-1 ->  | O42: 7 | P42: Отопление | Q42: Гкал/м2 | T42: =S42*R42*R10 -> 0 | U42: =IF($E$8=$BB$2,'Гр&ПУЦ_v1'!$G$15,IF($E$8=$BB$3,Заморозка!$G$7,"-"))*1.2 ->  | V42: =U42*R42*R10 ->  | W42: =V42/T42-1 ->  | X42: =IF($E$8=$BB$2,'Гр&ПУЦ_v1'!$I$15,IF($E$8=$BB$3,Заморозка!$H$7,"-"))*1.2 ->  | Y42: =X42*$R$10*R42 ->  | Z42: =Y42/V42-1 ->  | AB42: 7 | AC42: Отопление | AD42: Гкал/м2 | AG42: =AF42*AE42*AE10 -> 0 | AH42: =IF($E$8=$BB$2,'Гр&ПУЦ_v1'!$G$15,IF($E$8=$BB$3,Заморозка!$G$7,"-"))*1.2 ->  | AI42: =AH42*AE42*AE10 ->  | AJ42: =AI42/AG42-1 ->  | AK42: =IF($E$8=$BB$2,'Гр&ПУЦ_v1'!$I$15,IF($E$8=$BB$3,Заморозка!$H$7,"-"))*1.2 ->  | AL42: =AK42*$AE$10*AE42 ->  | AM42: =AL42/AI42-1 -> 
B43: 8 | C43: Бытовой газ в баллонах | J43: =I43/G43-1 ->  | M43: =L43/I43-1 ->  | O43: 8 | P43: Бытовой газ в баллонах | W43: =V43/T43-1 ->  | Z43: =Y43/V43-1 ->  | AB43: 8 | AC43: Бытовой газ в баллонах | AJ43: =AI43/AG43-1 ->  | AM43: =AL43/AI43-1 -> 
B44: 9 | C44: Твёрдое топливо | O44: 9 | P44: Твёрдое топливо | AB44: 9 | AC44: Твёрдое топливо
B45: 10 | C45: Итого плата граждан | G45: =SUM(G36:G44) -> 0 | I45: =SUM(I36:I44) ->  | L45: =SUM(L36:L44) ->  | O45: 10 | P45: Итого плата граждан | T45: =SUM(T36:T44) -> 0 | V45: =SUM(V36:V44) ->  | Y45: =SUM(Y36:Y44) ->  | AB45: 10 | AC45: Итого плата граждан | AG45: =SUM(AG36:AG44) -> 0 | AI45: =SUM(AI36:AI44) ->  | AL45: =SUM(AL36:AL44) -> 
B46: 11 | C46: Индекс роста платы | H46: =I45/G45-1 ->  | K46: =L45/I45-1 ->  | O46: 11 | P46: Индекс роста платы | U46: =V45/T45-1 ->  | X46: =Y45/V45-1 ->  | AB46: 11 | AC46: Индекс роста платы | AH46: =AI45/AG45-1 ->  | AK46: =AL45/AI45-1 -> 

Sheet ИПГ_рег
B2: Расчет предполагаемого размера превышения установленного индекса изменения размера вносимой гражданами платы за коммунальные услуги в среднем по субъекту Российской Федерации более чем на величину отклонения по субъекту Российской Федерации в случае отнесения поселения, городского округа к ценовой зоне теплоснабжения
B4: № пп | C4: ="Прогноз предполагаемого предельного (максимального) индекса изменения размера вносимой гражданами платы за коммунальные услуги в поселении, городском округе в "&И1!$E$8&" году" -> Прогноз предполагаемого предельного (максимального) индекса изменения размера вносимой гражданами платы за коммунальные услуги в поселении, городском округе в 2024 году | D4: Значение | E4: Источник данных
B5: 1 | C5: =ИПГ_мо!$C$6 -> Предполагаемый размер предельного (максимального) индекса изменения размера вносимой гражданами платы за коммунальные услуги в случае отнесения поселения, городского округа к ценовой зоне теплоснабжения (расчет исходя из предполагаемого темпа роста предельного уровня цены на тепловую энергию (мощность)), % | D5: =ИПГ_мо!$J$6 -> 
B6: 2 | C6: Размер установленного индекса изменения размера вносимой гражданами платы за коммунальные услуги в среднем по субъекту Российской Федерации1, %
B7: 3 | C7: Предельно допустимое отклонение по муниципальному образованию от величины индекса по субъекту Российской Федерации (далее - отклонение по субъекту Российской Федерации)2, %
B8: 4 | C8: Разница между предполагаемым размером предельного (максимального) индекса изменения размера вносимой гражданами платы за коммунальные услуги в случае отнесения поселения, городского округа к ценовой зоне теплоснабжения и размером установленного индекса изменения размера вносимой гражданами платы за коммунальные услуги в среднем по субъекту Российской Федерации, увеличенного на отклонение по субъекту Российской Федерации3, % | D8: =$D$5-$D$6-$D$7 -> 
B9: 1Указываются значения, установленные в соответствии с законодательством Российской Федерации на соответствующий год (год окончания переходного периода), а при их отсутствии в ячейке D6 указывается значение индекса совокупного платежа граждан за коммунальные услуги в соответствии с Прогнозом социально-экономического развития Российской Федерации на 2023 год и на плановый период 2024 и 2025 годов (размещен на официальном сайте Минэкономразвития России 28.09.2022).
B10: 2 Указываются значения, установленные в Распоряжении Правительства РФ от 15.11.2018 N 2490-р "Об индексах изменения размера вносимой гражданами платы за коммунальные услуги в среднем по субъектам РФ и предельно допустимых отклонениях по отдельным муниципальным образованиям от величины указанных индексов на 2019 - 2023 годы"
B11: 3 Расчет исходя из предполагаемого темпа роста предельного уровня цены на тепловую энергию (мощность)

Sheet Темп VS ИПГ
B2: Оценка отклонений расчетных темпов роста от индексов изменения размера вносимой гражданами платы за коммунальные услуги в среднем по субъекту Российской Федерации и установленного отклонения по субъекту Российской Федерации, предельных (максимальных) индексов изменения размера вносимой гражданами платы за коммунальные услуги по муниципальным образованиям, на территории которых находятся рассматриваемые системы теплоснабжения
B4: № пп | C4: Параметр расчета | D4: Значение
B5: 1 | C5: =ИПГ_мо!$C$6 -> Предполагаемый размер предельного (максимального) индекса изменения размера вносимой гражданами платы за коммунальные услуги в случае отнесения поселения, городского округа к ценовой зоне теплоснабжения (расчет исходя из предполагаемого темпа роста предельного уровня цены на тепловую энергию (мощность)), % | D5: =ИПГ_мо!$J$6 -> 
B6: 2 | C6: Размер установленного индекса изменения размера вносимой гражданами платы за коммунальные услуги в среднем по субъекту Российской Федерации, увеличенный на отклонение по субъекту Российской Федерации, % | D6: =ИПГ_рег!$D$6+ИПГ_рег!$D$7 -> 0
B7: 3 | C7: Разница между расчетным темпом роста и размером установленного индекса изменения размера вносимой гражданами платы за коммунальные услуги в среднем по субъекту Российской Федерации, увеличенного на отклонение по субъекту Российской Федерации1, % | D7: ='Гр&ПУЦ_v1'!$G$13-$D$6 -> 0
B8: 1 Расчет исходя из предполагаемого темпа роста предельного уровня цены на тепловую энергию (мощность)

Sheet МУ770_Т1
AT1: (выберите из списка)
AT2: на основании графика доведения
B3: Порядок перехода к применению цены "альтернативной котельной" (выберите из списка) | G3: (выберите из списка) | O3: Таблица 1 | AT3: с учетом заморозки тарифа
G4: Основные ценовые параметры внедрения целевой модели рынка тепловой энергии на территории
I5: =IF(И1!$D$14="Городской округ",И1!$E$14,И1!$E$15) -> 0
I6: (наименование поселения, городского округа)
B8: N | C8: Наименование единой теплоснабжающей организации | D8: Номер (код, индекс) системы теплоснабжения | E8: Наименования источников в системе теплоснабжения | F8: Объем отпуска тепловой энергии, тыс. Гкал | G8: Преобладающий вид топлива в соответствии с постановлением № 1562 (газ/уголь/мазут) | H8: ="Утвержденный тариф на тепловую энергию (мощность), поставляемую потребителям, на предполагаемую дату окончания переходного периода 01.07."&И1!E8&", без НДС, руб/Гкал" -> Утвержденный тариф на тепловую энергию (мощность), поставляемую потребителям, на предполагаемую дату окончания переходного периода 01.07.2024, без НДС, руб/Гкал | I8: ="Расчет цены "&CHAR(34)&"альтернативной котельной"&CHAR(34)&" на предполагаемый первый год функционирования ценовой зоны теплоснабжения "&И1!E8&" год, без НДС, руб/Гкал" -> Расчет цены "альтернативной котельной" на предполагаемый первый год функционирования ценовой зоны теплоснабжения 2024 год, без НДС, руб/Гкал | J8: Разница между утвержденным тарифом и расчетной ценой "альтернативной котельной" на предполагаемый первый год функционирования ценовой зоны теплоснабжения (столбец 8/столбец 7 - 1), % | K8: Предполагаемый срок графика равномерного поэтапного доведения предельного уровня цены на тепловую энергию (мощность) до цены "альтернативной котельной", лет | L8: Прогноз цены "альтернативной котельной" на дату окончания графика доведения предельного уровня цены на тепловую энергию (мощность) до цены "альтернативной котельной", руб/Гкал | M8: Предполагаемый равномерный ежегодный темп доведения предельного уровня цены на тепловую энергию (мощность) до цены "альтернативной котельной" сверх инфляции <*> на основании графика равномерного поэтапного доведения предельного уровня цены на тепловую энергию (мощность) до цены "альтернативной котельной", % | N8: Предполагаемое изменение предельного (максимального) индекса изменения размера вносимой гражданами платы за коммунальные услуги в поселении, городском округе в случае его отнесения к ценовой зоне теплоснабжения, % <**> | O8: Предполагаемое необходимое превышение установленного индекса изменения размера вносимой гражданами платы за коммунальные услуги в среднем по субъекту Российской Федерации более чем на величину отклонения по субъекту Российской Федерации в случае отнесения поселения, городского округа в случае к ценовой зоне теплоснабжения, % <***>
B9: 1 | C9: 2 | D9: 3 | E9: 4 | F9: 5 | G9: 6 | H9: 7 | I9: 8 | J9: 9 | K9: 10 | L9: 11 | M9: 12 | N9: 13 | O9: 14
B10: 1 | G10: =И1!E18 -> Уголь | H10: =IF($G$3=$AT$2,'Гр&ПУЦ_v1'!$G$3,IF($G$3=$AT$3,Заморозка!$G$3,)) -> 0 | I10: =АК_прогноз!$C$6 -> 10533.64813 | J10: =I10/H10-1 ->  | K10: =IF($G$3=$AT$2,'Гр&ПУЦ_v1'!$G$4,"-") -> - | L10: =IF($G$3=$AT$2,'Гр&ПУЦ_v1'!$G$5,"-") -> - | M10: =IF($G$3=$AT$3,"-",IF($G$3=$AT$2,'Гр&ПУЦ_v1'!G9-ИПЦ_ИПГ!E4,"-")) -> - | N10: =ИПГ_мо!$J$4 ->  | O10: =IF(ИПГ_мо!$J$6-'Темп VS ИПГ'!$D$6<=0,0,ИПГ_мо!$J$6-'Темп VS ИПГ'!$D$6) -> 
B12: Уполномоченное должностное лицо | H12: Уполномоченное должностное лицо единой
B13: исполнительно-распорядительного | H13: теплоснабжающей организации
B14: органа муниципального образования | H14: (уполномоченные должностные лица
H15: единых теплоснабжающих организаций)
B17: (подпись, расшифровка подписи) | H17: (подпись, расшифровка подписи)
B19: (дата подписи) | H19: (дата подписи)
B21: <*> Индекс потребительских цен (в среднем за год к предыдущему году), определенный в актуальном прогнозе социально-экономического развития Российской Федерации, одобренном Правительством Российской Федерации (базовый вариант);
B22: <**> Разница между предполагаемым размером предельного (максимального) индекса изменения размера вносимой гражданами платы за коммунальные услуги в случае отнесения поселения, городского округа к ценовой зоне теплоснабжения и размером утвержденного предельного (максимального) индекса изменения размера вносимой гражданами платы за коммунальные услуги. В отдельной таблице рекомендуется указать расчет предполагаемого изменения предельного (максимального) индекса изменения размера вносимой гражданами платы за коммунальные услуги в поселении, городском округе в случае его отнесения к ценовой зоне теплоснабжения;
B23: <***> Разница между предполагаемым размером предельного (максимального) индекса изменения размера вносимой гражданами платы за коммунальные услуги в случае отнесения поселения, городского округа к ценовой зоне теплоснабжения и размером установленного индекса изменения размера вносимой гражданами платы за коммунальные услуги в среднем по субъекту Российской Федерации, увеличенного на отклонение по субъекту Российской Федерации. В отдельной таблице рекомендуется указать расчет предполагаемого размера превышения установленного индекса изменения размера вносимой гражданами платы за коммунальные услуги в среднем по субъекту Российской Федерации более чем на величину отклонения по субъекту Российской Федерации в случае отнесения поселения, городского округа к ценовой зоне теплоснабжения.

Sheet Гр&ПУЦ_v2
B1: Дополнительный справочный расчет Графики равномерного поэтапного доведения предельного уровня цены на тепловую энергию (мощность) до уровня, определяемого в соответствии с разделом II Правил определения в ценовых зонах теплоснабжения предельного уровня цены на тепловую энергию (мощность), включая правила индексации предельного уровня цены на тепловую энергию (мощность); предельный уровень цены на тепловую энергию (мощность); цена на тепловую энергию (мощность), поставляемую потребителям
B2: Вариант расчета через равномерную долю роста предельного уровня цены по графику равномерного поэтапного доведения предельного уровня цены на тепловую энергию (мощность) до цены "альтернативной котельной"
B3: =МУ770_Т1!B10 -> 1 | C3: ='Гр&ПУЦ_v1'!C3:F3 -> Утвержденный тариф на тепловую энергию (мощность), поставляемую потребителям, на предполагаемую дату окончания переходного периода 01.07.2024, без НДС, руб./Гкал | G3: ='Гр&ПУЦ_v1'!G3 -> 0 | H3: ='Гр&ПУЦ_v1'!H3:T3 -> Вписать наименование тарифа и реквизиты решения органа регулирования
B4: 2 | C4: Предполагаемый срок графика равномерного поэтапного доведения предельного уровня цены на тепловую энергию (мощность) до цены "альтернативной котельной", лет | G4: ='Гр&ПУЦ_v1'!G4 -> 0
B5: 3 | C5: Прогноз цены "альтернативной котельной" на дату окончания графика доведения предельного уровня цены на тепловую энергию (мощность) до цены "альтернативной котельной", руб/Гкал | G5: ='Гр&ПУЦ_v1'!G5 -> введите допустимый срок графика
G6: 1 | I6: 2 | K6: 3 | M6: 4 | O6: 5 | Q6: 6 | S6: 7 | U6: 8 | W6: 9 | Y6: 10
B7: № пп | C7: Субъект Российской Федерации | D7: Поселение, городской округ | E7: ЕТО, система теплоснабжения | F7: Параметр расчета \ годы | G7: =И1!E8 -> 2024 | H7: =G7+1 -> 2025 | J7: =H7+1 -> 2026 | L7: =J7+1 -> 2027 | N7: =L7+1 -> 2028 | P7: =N7+1 -> 2029 | R7: =P7+1 -> 2030 | T7: =R7+1 -> 2031 | V7: =T7+1 -> 2032 | X7: =V7+1 -> 2033
G8: ="2пг"&G7 -> 2пг2024 | H8: ="1пг"&H7 -> 1пг2025 | I8: ="2пг"&H7 -> 2пг2025 | J8: ="1пг"&J7 -> 1пг2026 | K8: ="2пг"&J7 -> 2пг2026 | L8: ="1пг"&L7 -> 1пг2027 | M8: ="2пг"&L7 -> 2пг2027 | N8: ="1пг"&N7 -> 1пг2028 | O8: ="2пг"&N7 -> 2пг2028 | P8: ="1пг"&P7 -> 1пг2029 | Q8: ="2пг"&P7 -> 2пг2029 | R8: ="1пг"&R7 -> 1пг2030 | S8: ="2пг"&R7 -> 2пг2030 | T8: ="1пг"&T7 -> 1пг2031 | U8: ="2пг"&T7 -> 2пг2031 | V8: ="1пг"&V7 -> 1пг2032 | W8: 2пг2032 | X8: ="1пг"&X7 -> 1пг2033 | Y8: 2пг2033
B9: 1 | C9: ='Гр&ПУЦ_v1'!C9 -> Ненецкий автономный округ | D9: ='Гр&ПУЦ_v1'!D9 -> 0 | E9: ='Гр&ПУЦ_v1'!E9 -> 0 | F9: Темп роста предельного уровня цены на тепловую энергию (мощность) по графику, % | G9: =G12/G3-1 ->  | H9: 0 | I9: =IF(OR(G10=100%,G10="-"),"-",I12/H12-1) ->  | J9: 0 | K9: =IF(OR(I10=100%,I10="-"),"-",K12/J12-1) ->  | L9: 0 | M9: =IF(OR(K10=100%,K10="-"),"-",M12/L12-1) ->  | N9: 0 | O9: =IF(OR(M10=100%,M10="-"),"-",O12/N12-1) ->  | P9: 0 | Q9: =IF(OR(O10=100%,O10="-"),"-",Q12/P12-1) ->  | R9: 0 | S9: =IF(OR(Q10=100%,Q10="-"),"-",S12/R12-1) ->  | T9: 0 | U9: =IF(OR(S10=100%,S10="-"),"-",U12/T12-1) ->  | V9: 0 | W9: =IF(OR(U10=100%,U10="-"),"-",W12/V12-1) ->  | X9: 0 | Y9: =IF(OR(W10=100%,W10="-"),"-",Y12/X12-1) -> 
B10: 2 | C10: =C9 -> Ненецкий автономный округ | D10: 0 | E10: 0 | F10: Графики равномерного поэтапного доведения предельного уровня цены до цены "альтернативной котельной", % | G10: =G3/АК_прогноз!C6+G11 ->  | H10: =IF(G10=100%,"-",G10) ->  | I10: =IF(OR(G10=100%,G10="-"),"-",H10+I11) ->  | J10: =IF(I10=100%,"-",I10) ->  | K10: =IF(OR(I10=100%,I10="-"),"-",J10+K11) ->  | L10: =IF(K10=100%,"-",K10) ->  | M10: =IF(OR(K10=100%,K10="-"),"-",L10+M11) ->  | N10: =IF(M10=100%,"-",M10) ->  | O10: =IF(OR(M10=100%,M10="-"),"-",N10+O11) ->  | P10: =IF(O10=100%,"-",O10) ->  | Q10: =IF(OR(O10=100%,O10="-"),"-",P10+Q11) ->  | R10: =IF(Q10=100%,"-",Q10) ->  | S10: =IF(OR(Q10=100%,Q10="-"),"-",R10+S11) ->  | T10: =IF(S10=100%,"-",S10) ->  | U10: =IF(OR(S10=100%,S10="-"),"-",T10+U11) ->  | V10: =IF(U10=100%,"-",U10) ->  | W10: =IF(OR(U10=100%,U10="-"),"-",V10+W11) ->  | X10: =IF(W10=100%,"-",W10) ->  | Y10: =IF(OR(W10=100%,W10="-"),"-",X10+Y11) -> 
B11: 3 | C11: Ненецкий автономный округ | D11: 0 | E11: 0 | F11: Изменение доли ПУЦ при равномерном ее увеличении по графику доведения, % | G11: =(1-G3/АК_прогноз!C6)/G4 ->  | H11: 0 | I11: =IF(OR(G10=100%,G10="-"),"-",(1-$G$10+$G$11)/$G$4) ->  | J11: 0 | K11: =IF(OR(I10=100%,I10="-"),"-",(1-$G$10+$G$11)/$G$4) ->  | L11: 0 | M11: =IF(OR(K10=100%,K10="-"),"-",(1-$G$10+$G$11)/$G$4) ->  | N11: 0 | O11: =IF(OR(M10=100%,M10="-"),"-",(1-$G$10+$G$11)/$G$4) ->  | P11: 0 | Q11: =IF(OR(O10=100%,O10="-"),"-",(1-$G$10+$G$11)/$G$4) ->  | R11: 0 | S11: =IF(OR(Q10=100%,Q10="-"),"-",(1-$G$10+$G$11)/$G$4) ->  | T11: 0 | U11: =IF(OR(S10=100%,S10="-"),"-",(1-$G$10+$G$11)/$G$4) ->  | V11: 0 | W11: =IF(OR(U10=100%,U10="-"),"-",(1-$G$10+$G$11)/$G$4) ->  | X11: 0 | Y11: =IF(OR(W10=100%,W10="-"),"-",(1-$G$10+$G$11)/$G$4) -> 
B12: 4 | C12: Ненецкий автономный округ | D12: 0 | E12: 0 | F12: Прогноз предельного уровня цены, утверждаемого органом регулирования, без НДС, руб./Гкал | G12: =IF(G10:O10<>"-",АК_прогноз!C6*'Гр&ПУЦ_v2'!G10,"-") ->  | H12: =IF($G$10:$O$10<>"-",G12,"-") ->  | I12: =IF(G10:O10<>"-",АК_прогноз!D6*'Гр&ПУЦ_v2'!I10,"-") ->  | J12: =IF($G$10:$O$10<>"-",I12,"-") ->  | K12: =IF(G10:O10<>"-",АК_прогноз!E6*'Гр&ПУЦ_v2'!K10,"-") ->  | L12: =IF($G$10:$O$10<>"-",K12,"-") ->  | M12: =IF(G10:O10<>"-",АК_прогноз!F6*'Гр&ПУЦ_v2'!M10,"-") ->  | N12: =IF($G$10:$O$10<>"-",M12,"-") ->  | O12: =IF(G10:O10<>"-",АК_прогноз!G6*'Гр&ПУЦ_v2'!O10,"-") ->  | P12: =IF($G$10:$Y$10<>"-",O12,"-") ->  | Q12: =IF($G$10:$Y$10<>"-",АК_прогноз!H6*'Гр&ПУЦ_v2'!Q10,"-") ->  | R12: =IF($G$10:$Y$10<>"-",Q12,"-") ->  | S12: =IF($G$10:$Y$10<>"-",АК_прогноз!I6*'Гр&ПУЦ_v2'!S10,"-") ->  | T12: =IF($G$10:$Y$10<>"-",S12,"-") ->  | U12: =IF($G$10:$Y$10<>"-",АК_прогноз!J6*'Гр&ПУЦ_v2'!U10,"-") ->  | V12: =IF($G$10:$Y$10<>"-",U12,"-") ->  | W12: =IF($G$10:$Y$10<>"-",АК_прогноз!K6*'Гр&ПУЦ_v2'!W10,"-") ->  | X12: =IF($G$10:$Y$10<>"-",W12,"-") ->  | Y12: =IF($G$10:$Y$10<>"-",АК_прогноз!L6*'Гр&ПУЦ_v2'!Y10,"-") -> 

Sheet Системный (hidden)
A1: Инструкция
A2: Содержание
A3: И1
A4: И2
A5: С1.1
A6: С1.2
A7: С1.3
A8: С1
A9: С2.1
A10: С2.2
A11: С2.3
A12: С2.4
A13: С2.5
A14: С2.6
A15: С2
A16: С3.1
A17: С3
A18: С4.1
A19: С4.2
A20: С4.3
A21: С4.4
A22: С4
A23: С5
A24: С6
A25: И3
A26: И2.1
A27: Инвест.об.
